{"text_format":"1","workbook":"xlsx","n_sheets":5,"sheets":["Seuils","Publipostage","Listes","Tab_N","Tab_IFT"],"not_rendered":{"charts":0,"images":0,"macros":1,"external_links":0,"defined_names":4,"comments":0,"pivot_tables":0},"unopened":[],"bounds":{"document_bytes":16777216,"sheet_cells":100000,"rows_first":2000,"rows_last":500,"rows_between":2000,"halvings":0,"cell_chars":16384,"cell_head_chars":4096},"cells_cut":0,"cells_raw":0,"read":"whole","date_system":"1900"}

{"sheet":"Seuils","index":0,"n_rows":69,"n_cols":20,"rows_kept":69,"cut":false,"hidden":false,"merged":[[63,10,68,10],[50,10,56,10],[61,6,61,9],[61,2,61,5],[65,6,65,7],[65,8,65,9],[65,2,65,3],[65,4,65,5],[66,2,66,3],[67,2,67,3],[68,2,68,3],[68,4,68,5],[67,4,67,5],[66,4,66,5],[63,4,63,5],[63,2,63,3],[69,8,69,9],[69,4,69,5],[69,2,69,3],[69,6,69,7],[62,6,62,9],[62,2,62,5],[66,6,66,7],[66,8,66,9],[67,6,67,7],[67,8,67,9],[68,6,68,7],[68,8,68,9],[63,6,63,7],[63,8,63,9],[64,6,64,7],[64,8,64,9],[64,2,64,3],[64,4,64,5],[48,1,48,9],[50,1,51,1],[50,2,50,3],[50,4,50,5],[8,1,9,1],[8,2,9,2],[50,6,50,7],[50,8,50,9],[49,2,49,5],[49,6,49,9],[8,4,8,11],[38,1,38,9],[39,2,39,5],[39,6,39,9],[40,1,41,1],[24,12,25,19],[1,4,3,11],[4,4,5,11],[40,2,40,3],[40,4,40,5],[40,6,40,7],[40,8,40,9],[24,4,25,11],[8,12,8,19],[8,3,9,3]]}
[]
[null,"Echelle géographique",null,null,"MAEC"]
[null,"Alsace",null,null,null,null,null,null,null,null,null,null,"Code de la MAEC :"]
[null,"Surfaces herbacées imposées par le cahier des charges ",null,null,null,null,null,null,null,null,null,null,"Code du PAEC :"]
[null,0,null,null,"Fichier de calcul des seuils d'IFT et d'azote minéral"]
[null,"Surfaces de prairies temporaires (ha)"]
[null,0]
[]
[null,"Liste cultures","Surfaces du PAEC (ha)","Pression régionale en N minéral ","IFT Herbicides",null,null,null,null,null,null,null,"IFT Hors-Herbicides"]
[null,null,null,null,"P10","P20","P30","P40","P50","P60","P70","Comentaires","P10","P20","P30","P40","P50","P60","P70","Comentaires"]
[null,"Blé tendre",564,{"$f":"_xlfn.IFNA(INDEX(Tab_N!C:C,MATCH($B$3&$B11,Tab_N!$A:$A&Tab_N!$B:$B,0),1), INDEX(Tab_N!C:C,MATCH(\"France\"&$B11,Tab_N!$A:$A&Tab_N!$B:$B,0),1))","v":167.9},{"$f":"_xlfn.IFNA(_xlfn.IFNA(INDEX(Tab_IFT!D:D,MATCH($B$3&\"Herbicides\"&$B11,Tab_IFT!$B:$B&Tab_IFT!$A:$A&Tab_IFT!$C:$C,0),1), INDEX(Tab_IFT!D:D,MATCH(\"France métropolitaine\"&\"Herbicides\"&$B11,Tab_IFT!$B:$B&Tab_IFT!$A:$A&Tab_IFT!$C:$C,0),1)), 0)","v":0},{"$f":"_xlfn.IFNA(_xlfn.IFNA(INDEX(Tab_IFT!E:E,MATCH($B$3&\"Herbicides\"&$B11,Tab_IFT!$B:$B&Tab_IFT!$A:$A&Tab_IFT!$C:$C,0),1), INDEX(Tab_IFT!E:E,MATCH(\"France métropolitaine\"&\"Herbicides\"&$B11,Tab_IFT!$B:$B&Tab_IFT!$A:$A&Tab_IFT!$C:$C,0),1)), 0)","v":0.63},{"$f":"_xlfn.IFNA(_xlfn.IFNA(INDEX(Tab_IFT!F:F,MATCH($B$3&\"Herbicides\"&$B11,Tab_IFT!$B:$B&Tab_IFT!$A:$A&Tab_IFT!$C:$C,0),1), INDEX(Tab_IFT!F:F,MATCH(\"France métropolitaine\"&\"Herbicides\"&$B11,Tab_IFT!$B:$B&Tab_IFT!$A:$A&Tab_IFT!$C:$C,0),1)), 0)","v":0.8},{"$f":"_xlfn.IFNA(_xlfn.IFNA(INDEX(Tab_IFT!G:G,MATCH($B$3&\"Herbicides\"&$B11,Tab_IFT!$B:$B&Tab_IFT!$A:$A&Tab_IFT!$C:$C,0),1), INDEX(Tab_IFT!G:G,MATCH(\"France métropolitaine\"&\"Herbicides\"&$B11,Tab_IFT!$B:$B&Tab_IFT!$A:$A&Tab_IFT!$C:$C,0),1)), 0)","v":0.89},{"$f":"_xlfn.IFNA(_xlfn.IFNA(INDEX(Tab_IFT!H:H,MATCH($B$3&\"Herbicides\"&$B11,Tab_IFT!$B:$B&Tab_IFT!$A:$A&Tab_IFT!$C:$C,0),1), INDEX(Tab_IFT!H:H,MATCH(\"France métropolitaine\"&\"Herbicides\"&$B11,Tab_IFT!$B:$B&Tab_IFT!$A:$A&Tab_IFT!$C:$C,0),1)), 0)","v":1},{"$f":"_xlfn.IFNA(_xlfn.IFNA(INDEX(Tab_IFT!I:I,MATCH($B$3&\"Herbicides\"&$B11,Tab_IFT!$B:$B&Tab_IFT!$A:$A&Tab_IFT!$C:$C,0),1), INDEX(Tab_IFT!I:I,MATCH(\"France métropolitaine\"&\"Herbicides\"&$B11,Tab_IFT!$B:$B&Tab_IFT!$A:$A&Tab_IFT!$C:$C,0),1)), 0)","v":1.03},{"$f":"_xlfn.IFNA(_xlfn.IFNA(INDEX(Tab_IFT!J:J,MATCH($B$3&\"Herbicides\"&$B11,Tab_IFT!$B:$B&Tab_IFT!$A:$A&Tab_IFT!$C:$C,0),1), INDEX(Tab_IFT!J:J,MATCH(\"France métropolitaine\"&\"Herbicides\"&$B11,Tab_IFT!$B:$B&Tab_IFT!$A:$A&Tab_IFT!$C:$C,0),1)), 0)","v":1.21},{"$f":"IF(AND((K11=INDEX(Tab_IFT!J:J,MATCH(\"France métropolitaine\"&\"Herbicides\"&$B11,Tab_IFT!$B:$B&Tab_IFT!$A:$A&Tab_IFT!$C:$C,0),1)),(J11=INDEX(Tab_IFT!I:I,MATCH(\"France métropolitaine\"&\"Herbicides\"&$B11,Tab_IFT!$B:$B&Tab_IFT!$A:$A&Tab_IFT!$C:$C,0),1))), \" → Valeurs nationales utilisées\",\"\")","v":""},{"$f":"_xlfn.IFNA(_xlfn.IFNA(INDEX(Tab_IFT!D:D,MATCH($B$3&\"Hors herbicides (ancienne méthode traitement de semences)\"&$B11,Tab_IFT!$B:$B&Tab_IFT!$A:$A&Tab_IFT!$C:$C,0),1), INDEX(Tab_IFT!D:D,MATCH(\"France métropolitaine\"&\"Hors herbicides (ancienne méthode traitement de semences)\"&$B11,Tab_IFT!$B:$B&Tab_IFT!$A:$A&Tab_IFT!$C:$C,0),1)), 0)","v":1.17},{"$f":"_xlfn.IFNA(_xlfn.IFNA(INDEX(Tab_IFT!E:E,MATCH($B$3&\"Hors herbicides (ancienne méthode traitement de semences)\"&$B11,Tab_IFT!$B:$B&Tab_IFT!$A:$A&Tab_IFT!$C:$C,0),1), INDEX(Tab_IFT!E:E,MATCH(\"France métropolitaine\"&\"Hors herbicides (ancienne méthode traitement de semences)\"&$B11,Tab_IFT!$B:$B&Tab_IFT!$A:$A&Tab_IFT!$C:$C,0),1)), 0)","v":1.47},{"$f":"_xlfn.IFNA(_xlfn.IFNA(INDEX(Tab_IFT!F:F,MATCH($B$3&\"Hors herbicides (ancienne méthode traitement de semences)\"&$B11,Tab_IFT!$B:$B&Tab_IFT!$A:$A&Tab_IFT!$C:$C,0),1), INDEX(Tab_IFT!F:F,MATCH(\"France métropolitaine\"&\"Hors herbicides (ancienne méthode traitement de semences)\"&$B11,Tab_IFT!$B:$B&Tab_IFT!$A:$A&Tab_IFT!$C:$C,0),1)), 0)","v":1.88},{"$f":"_xlfn.IFNA(_xlfn.IFNA(INDEX(Tab_IFT!G:G,MATCH($B$3&\"Hors herbicides (ancienne méthode traitement de semences)\"&$B11,Tab_IFT!$B:$B&Tab_IFT!$A:$A&Tab_IFT!$C:$C,0),1), INDEX(Tab_IFT!G:G,MATCH(\"France métropolitaine\"&\"Hors herbicides (ancienne méthode traitement de semences)\"&$B11,Tab_IFT!$B:$B&Tab_IFT!$A:$A&Tab_IFT!$C:$C,0),1)), 0)","v":2.1},{"$f":"_xlfn.IFNA(_xlfn.IFNA(INDEX(Tab_IFT!H:H,MATCH($B$3&\"Hors herbicides (ancienne méthode traitement de semences)\"&$B11,Tab_IFT!$B:$B&Tab_IFT!$A:$A&Tab_IFT!$C:$C,0),1), INDEX(Tab_IFT!H:H,MATCH(\"France métropolitaine\"&\"Hors herbicides (ancienne méthode traitement de semences)\"&$B11,Tab_IFT!$B:$B&Tab_IFT!$A:$A&Tab_IFT!$C:$C,0),1)), 0)","v":2.42},{"$f":"_xlfn.IFNA(_xlfn.IFNA(INDEX(Tab_IFT!I:I,MATCH($B$3&\"Hors herbicides (ancienne méthode traitement de semences)\"&$B11,Tab_IFT!$B:$B&Tab_IFT!$A:$A&Tab_IFT!$C:$C,0),1), INDEX(Tab_IFT!I:I,MATCH(\"France métropolitaine\"&\"Hors herbicides (ancienne méthode traitement de semences)\"&$B11,Tab_IFT!$B:$B&Tab_IFT!$A:$A&Tab_IFT!$C:$C,0),1)), 0)","v":2.67},{"$f":"_xlfn.IFNA(_xlfn.IFNA(INDEX(Tab_IFT!J:J,MATCH($B$3&\"Hors herbicides (ancienne méthode traitement de semences)\"&$B11,Tab_IFT!$B:$B&Tab_IFT!$A:$A&Tab_IFT!$C:$C,0),1), INDEX(Tab_IFT!J:J,MATCH(\"France métropolitaine\"&\"Hors herbicides (ancienne méthode traitement de semences)\"&$B11,Tab_IFT!$B:$B&Tab_IFT!$A:$A&Tab_IFT!$C:$C,0),1)), 0)","v":2.85},{"$f":"IF(AND((R11=INDEX(Tab_IFT!I:I,MATCH(\"France métropolitaine\"&\"Hors herbicides (ancienne méthode traitement de semences)\"&$B11,Tab_IFT!$B:$B&Tab_IFT!$A:$A&Tab_IFT!$C:$C,0),1)),(S11=INDEX(Tab_IFT!J:J,MATCH(\"France métropolitaine\"&\"Hors herbicides (ancienne méthode traitement de semences)\"&$B11,Tab_IFT!$B:$B&Tab_IFT!$A:$A&Tab_IFT!$C:$C,0),1))), \" → Valeurs nationales utilisées\",\"\")","v":""}]
[null,"Blé dur",265,{"$f":"_xlfn.IFNA(INDEX(Tab_N!C:C,MATCH($B$3&$B12,Tab_N!$A:$A&Tab_N!$B:$B,0),1), INDEX(Tab_N!C:C,MATCH(\"France\"&$B12,Tab_N!$A:$A&Tab_N!$B:$B,0),1))","v":188.1},{"$f":"_xlfn.IFNA(_xlfn.IFNA(INDEX(Tab_IFT!D:D,MATCH($B$3&\"Herbicides\"&$B12,Tab_IFT!$B:$B&Tab_IFT!$A:$A&Tab_IFT!$C:$C,0),1), INDEX(Tab_IFT!D:D,MATCH(\"France métropolitaine\"&\"Herbicides\"&$B12,Tab_IFT!$B:$B&Tab_IFT!$A:$A&Tab_IFT!$C:$C,0),1)), 0)","v":0.2},{"$f":"_xlfn.IFNA(_xlfn.IFNA(INDEX(Tab_IFT!E:E,MATCH($B$3&\"Herbicides\"&$B12,Tab_IFT!$B:$B&Tab_IFT!$A:$A&Tab_IFT!$C:$C,0),1), INDEX(Tab_IFT!E:E,MATCH(\"France métropolitaine\"&\"Herbicides\"&$B12,Tab_IFT!$B:$B&Tab_IFT!$A:$A&Tab_IFT!$C:$C,0),1)), 0)","v":0.79},{"$f":"_xlfn.IFNA(_xlfn.IFNA(INDEX(Tab_IFT!F:F,MATCH($B$3&\"Herbicides\"&$B12,Tab_IFT!$B:$B&Tab_IFT!$A:$A&Tab_IFT!$C:$C,0),1), INDEX(Tab_IFT!F:F,MATCH(\"France métropolitaine\"&\"Herbicides\"&$B12,Tab_IFT!$B:$B&Tab_IFT!$A:$A&Tab_IFT!$C:$C,0),1)), 0)","v":0.97},{"$f":"_xlfn.IFNA(_xlfn.IFNA(INDEX(Tab_IFT!G:G,MATCH($B$3&\"Herbicides\"&$B12,Tab_IFT!$B:$B&Tab_IFT!$A:$A&Tab_IFT!$C:$C,0),1), INDEX(Tab_IFT!G:G,MATCH(\"France métropolitaine\"&\"Herbicides\"&$B12,Tab_IFT!$B:$B&Tab_IFT!$A:$A&Tab_IFT!$C:$C,0),1)), 0)","v":1.1100000000000001},{"$f":"_xlfn.IFNA(_xlfn.IFNA(INDEX(Tab_IFT!H:H,MATCH($B$3&\"Herbicides\"&$B12,Tab_IFT!$B:$B&Tab_IFT!$A:$A&Tab_IFT!$C:$C,0),1), INDEX(Tab_IFT!H:H,MATCH(\"France métropolitaine\"&\"Herbicides\"&$B12,Tab_IFT!$B:$B&Tab_IFT!$A:$A&Tab_IFT!$C:$C,0),1)), 0)","v":1.34},{"$f":"_xlfn.IFNA(_xlfn.IFNA(INDEX(Tab_IFT!I:I,MATCH($B$3&\"Herbicides\"&$B12,Tab_IFT!$B:$B&Tab_IFT!$A:$A&Tab_IFT!$C:$C,0),1), INDEX(Tab_IFT!I:I,MATCH(\"France métropolitaine\"&\"Herbicides\"&$B12,Tab_IFT!$B:$B&Tab_IFT!$A:$A&Tab_IFT!$C:$C,0),1)), 0)","v":1.53},{"$f":"_xlfn.IFNA(_xlfn.IFNA(INDEX(Tab_IFT!J:J,MATCH($B$3&\"Herbicides\"&$B12,Tab_IFT!$B:$B&Tab_IFT!$A:$A&Tab_IFT!$C:$C,0),1), INDEX(Tab_IFT!J:J,MATCH(\"France métropolitaine\"&\"Herbicides\"&$B12,Tab_IFT!$B:$B&Tab_IFT!$A:$A&Tab_IFT!$C:$C,0),1)), 0)","v":1.74},{"$f":"IF(AND((K12=INDEX(Tab_IFT!J:J,MATCH(\"France métropolitaine\"&\"Herbicides\"&$B12,Tab_IFT!$B:$B&Tab_IFT!$A:$A&Tab_IFT!$C:$C,0),1)),(J12=INDEX(Tab_IFT!I:I,MATCH(\"France métropolitaine\"&\"Herbicides\"&$B12,Tab_IFT!$B:$B&Tab_IFT!$A:$A&Tab_IFT!$C:$C,0),1))), \" → Valeurs nationales utilisées\",\"\")","v":" → Valeurs nationales utilisées"},{"$f":"_xlfn.IFNA(_xlfn.IFNA(INDEX(Tab_IFT!D:D,MATCH($B$3&\"Hors herbicides (ancienne méthode traitement de semences)\"&$B12,Tab_IFT!$B:$B&Tab_IFT!$A:$A&Tab_IFT!$C:$C,0),1), INDEX(Tab_IFT!D:D,MATCH(\"France métropolitaine\"&\"Hors herbicides (ancienne méthode traitement de semences)\"&$B12,Tab_IFT!$B:$B&Tab_IFT!$A:$A&Tab_IFT!$C:$C,0),1)), 0)","v":1},{"$f":"_xlfn.IFNA(_xlfn.IFNA(INDEX(Tab_IFT!E:E,MATCH($B$3&\"Hors herbicides (ancienne méthode traitement de semences)\"&$B12,Tab_IFT!$B:$B&Tab_IFT!$A:$A&Tab_IFT!$C:$C,0),1), INDEX(Tab_IFT!E:E,MATCH(\"France métropolitaine\"&\"Hors herbicides (ancienne méthode traitement de semences)\"&$B12,Tab_IFT!$B:$B&Tab_IFT!$A:$A&Tab_IFT!$C:$C,0),1)), 0)","v":1.42},{"$f":"_xlfn.IFNA(_xlfn.IFNA(INDEX(Tab_IFT!F:F,MATCH($B$3&\"Hors herbicides (ancienne méthode traitement de semences)\"&$B12,Tab_IFT!$B:$B&Tab_IFT!$A:$A&Tab_IFT!$C:$C,0),1), INDEX(Tab_IFT!F:F,MATCH(\"France métropolitaine\"&\"Hors herbicides (ancienne méthode traitement de semences)\"&$B12,Tab_IFT!$B:$B&Tab_IFT!$A:$A&Tab_IFT!$C:$C,0),1)), 0)","v":1.97},{"$f":"_xlfn.IFNA(_xlfn.IFNA(INDEX(Tab_IFT!G:G,MATCH($B$3&\"Hors herbicides (ancienne méthode traitement de semences)\"&$B12,Tab_IFT!$B:$B&Tab_IFT!$A:$A&Tab_IFT!$C:$C,0),1), INDEX(Tab_IFT!G:G,MATCH(\"France métropolitaine\"&\"Hors herbicides (ancienne méthode traitement de semences)\"&$B12,Tab_IFT!$B:$B&Tab_IFT!$A:$A&Tab_IFT!$C:$C,0),1)), 0)","v":2.35},{"$f":"_xlfn.IFNA(_xlfn.IFNA(INDEX(Tab_IFT!H:H,MATCH($B$3&\"Hors herbicides (ancienne méthode traitement de semences)\"&$B12,Tab_IFT!$B:$B&Tab_IFT!$A:$A&Tab_IFT!$C:$C,0),1), INDEX(Tab_IFT!H:H,MATCH(\"France métropolitaine\"&\"Hors herbicides (ancienne méthode traitement de semences)\"&$B12,Tab_IFT!$B:$B&Tab_IFT!$A:$A&Tab_IFT!$C:$C,0),1)), 0)","v":2.67},{"$f":"_xlfn.IFNA(_xlfn.IFNA(INDEX(Tab_IFT!I:I,MATCH($B$3&\"Hors herbicides (ancienne méthode traitement de semences)\"&$B12,Tab_IFT!$B:$B&Tab_IFT!$A:$A&Tab_IFT!$C:$C,0),1), INDEX(Tab_IFT!I:I,MATCH(\"France métropolitaine\"&\"Hors herbicides (ancienne méthode traitement de semences)\"&$B12,Tab_IFT!$B:$B&Tab_IFT!$A:$A&Tab_IFT!$C:$C,0),1)), 0)","v":2.94},{"$f":"_xlfn.IFNA(_xlfn.IFNA(INDEX(Tab_IFT!J:J,MATCH($B$3&\"Hors herbicides (ancienne méthode traitement de semences)\"&$B12,Tab_IFT!$B:$B&Tab_IFT!$A:$A&Tab_IFT!$C:$C,0),1), INDEX(Tab_IFT!J:J,MATCH(\"France métropolitaine\"&\"Hors herbicides (ancienne méthode traitement de semences)\"&$B12,Tab_IFT!$B:$B&Tab_IFT!$A:$A&Tab_IFT!$C:$C,0),1)), 0)","v":3.27},{"$f":"IF(AND((R12=INDEX(Tab_IFT!I:I,MATCH(\"France métropolitaine\"&\"Hors herbicides (ancienne méthode traitement de semences)\"&$B12,Tab_IFT!$B:$B&Tab_IFT!$A:$A&Tab_IFT!$C:$C,0),1)),(S12=INDEX(Tab_IFT!J:J,MATCH(\"France métropolitaine\"&\"Hors herbicides (ancienne méthode traitement de semences)\"&$B12,Tab_IFT!$B:$B&Tab_IFT!$A:$A&Tab_IFT!$C:$C,0),1))), \" → Valeurs nationales utilisées\",\"\")","v":" → Valeurs nationales utilisées"}]
[null,"Orge",65,{"$f":"_xlfn.IFNA(INDEX(Tab_N!C:C,MATCH($B$3&$B13,Tab_N!$A:$A&Tab_N!$B:$B,0),1), INDEX(Tab_N!C:C,MATCH(\"France\"&$B13,Tab_N!$A:$A&Tab_N!$B:$B,0),1))","v":120.1},{"$f":"_xlfn.IFNA(_xlfn.IFNA(INDEX(Tab_IFT!D:D,MATCH($B$3&\"Herbicides\"&$B13,Tab_IFT!$B:$B&Tab_IFT!$A:$A&Tab_IFT!$C:$C,0),1), INDEX(Tab_IFT!D:D,MATCH(\"France métropolitaine\"&\"Herbicides\"&$B13,Tab_IFT!$B:$B&Tab_IFT!$A:$A&Tab_IFT!$C:$C,0),1)), 0)","v":0.61},{"$f":"_xlfn.IFNA(_xlfn.IFNA(INDEX(Tab_IFT!E:E,MATCH($B$3&\"Herbicides\"&$B13,Tab_IFT!$B:$B&Tab_IFT!$A:$A&Tab_IFT!$C:$C,0),1), INDEX(Tab_IFT!E:E,MATCH(\"France métropolitaine\"&\"Herbicides\"&$B13,Tab_IFT!$B:$B&Tab_IFT!$A:$A&Tab_IFT!$C:$C,0),1)), 0)","v":0.85},{"$f":"_xlfn.IFNA(_xlfn.IFNA(INDEX(Tab_IFT!F:F,MATCH($B$3&\"Herbicides\"&$B13,Tab_IFT!$B:$B&Tab_IFT!$A:$A&Tab_IFT!$C:$C,0),1), INDEX(Tab_IFT!F:F,MATCH(\"France métropolitaine\"&\"Herbicides\"&$B13,Tab_IFT!$B:$B&Tab_IFT!$A:$A&Tab_IFT!$C:$C,0),1)), 0)","v":1.06},{"$f":"_xlfn.IFNA(_xlfn.IFNA(INDEX(Tab_IFT!G:G,MATCH($B$3&\"Herbicides\"&$B13,Tab_IFT!$B:$B&Tab_IFT!$A:$A&Tab_IFT!$C:$C,0),1), INDEX(Tab_IFT!G:G,MATCH(\"France métropolitaine\"&\"Herbicides\"&$B13,Tab_IFT!$B:$B&Tab_IFT!$A:$A&Tab_IFT!$C:$C,0),1)), 0)","v":1.28},{"$f":"_xlfn.IFNA(_xlfn.IFNA(INDEX(Tab_IFT!H:H,MATCH($B$3&\"Herbicides\"&$B13,Tab_IFT!$B:$B&Tab_IFT!$A:$A&Tab_IFT!$C:$C,0),1), INDEX(Tab_IFT!H:H,MATCH(\"France métropolitaine\"&\"Herbicides\"&$B13,Tab_IFT!$B:$B&Tab_IFT!$A:$A&Tab_IFT!$C:$C,0),1)), 0)","v":1.5},{"$f":"_xlfn.IFNA(_xlfn.IFNA(INDEX(Tab_IFT!I:I,MATCH($B$3&\"Herbicides\"&$B13,Tab_IFT!$B:$B&Tab_IFT!$A:$A&Tab_IFT!$C:$C,0),1), INDEX(Tab_IFT!I:I,MATCH(\"France métropolitaine\"&\"Herbicides\"&$B13,Tab_IFT!$B:$B&Tab_IFT!$A:$A&Tab_IFT!$C:$C,0),1)), 0)","v":1.69},{"$f":"_xlfn.IFNA(_xlfn.IFNA(INDEX(Tab_IFT!J:J,MATCH($B$3&\"Herbicides\"&$B13,Tab_IFT!$B:$B&Tab_IFT!$A:$A&Tab_IFT!$C:$C,0),1), INDEX(Tab_IFT!J:J,MATCH(\"France métropolitaine\"&\"Herbicides\"&$B13,Tab_IFT!$B:$B&Tab_IFT!$A:$A&Tab_IFT!$C:$C,0),1)), 0)","v":1.9},{"$f":"IF(AND((K13=INDEX(Tab_IFT!J:J,MATCH(\"France métropolitaine\"&\"Herbicides\"&$B13,Tab_IFT!$B:$B&Tab_IFT!$A:$A&Tab_IFT!$C:$C,0),1)),(J13=INDEX(Tab_IFT!I:I,MATCH(\"France métropolitaine\"&\"Herbicides\"&$B13,Tab_IFT!$B:$B&Tab_IFT!$A:$A&Tab_IFT!$C:$C,0),1))), \" → Valeurs nationales utilisées\",\"\")","v":" → Valeurs nationales utilisées"},{"$f":"_xlfn.IFNA(_xlfn.IFNA(INDEX(Tab_IFT!D:D,MATCH($B$3&\"Hors herbicides (ancienne méthode traitement de semences)\"&$B13,Tab_IFT!$B:$B&Tab_IFT!$A:$A&Tab_IFT!$C:$C,0),1), INDEX(Tab_IFT!D:D,MATCH(\"France métropolitaine\"&\"Hors herbicides (ancienne méthode traitement de semences)\"&$B13,Tab_IFT!$B:$B&Tab_IFT!$A:$A&Tab_IFT!$C:$C,0),1)), 0)","v":1.3},{"$f":"_xlfn.IFNA(_xlfn.IFNA(INDEX(Tab_IFT!E:E,MATCH($B$3&\"Hors herbicides (ancienne méthode traitement de semences)\"&$B13,Tab_IFT!$B:$B&Tab_IFT!$A:$A&Tab_IFT!$C:$C,0),1), INDEX(Tab_IFT!E:E,MATCH(\"France métropolitaine\"&\"Hors herbicides (ancienne méthode traitement de semences)\"&$B13,Tab_IFT!$B:$B&Tab_IFT!$A:$A&Tab_IFT!$C:$C,0),1)), 0)","v":1.73},{"$f":"_xlfn.IFNA(_xlfn.IFNA(INDEX(Tab_IFT!F:F,MATCH($B$3&\"Hors herbicides (ancienne méthode traitement de semences)\"&$B13,Tab_IFT!$B:$B&Tab_IFT!$A:$A&Tab_IFT!$C:$C,0),1), INDEX(Tab_IFT!F:F,MATCH(\"France métropolitaine\"&\"Hors herbicides (ancienne méthode traitement de semences)\"&$B13,Tab_IFT!$B:$B&Tab_IFT!$A:$A&Tab_IFT!$C:$C,0),1)), 0)","v":2},{"$f":"_xlfn.IFNA(_xlfn.IFNA(INDEX(Tab_IFT!G:G,MATCH($B$3&\"Hors herbicides (ancienne méthode traitement de semences)\"&$B13,Tab_IFT!$B:$B&Tab_IFT!$A:$A&Tab_IFT!$C:$C,0),1), INDEX(Tab_IFT!G:G,MATCH(\"France métropolitaine\"&\"Hors herbicides (ancienne méthode traitement de semences)\"&$B13,Tab_IFT!$B:$B&Tab_IFT!$A:$A&Tab_IFT!$C:$C,0),1)), 0)","v":2.33},{"$f":"_xlfn.IFNA(_xlfn.IFNA(INDEX(Tab_IFT!H:H,MATCH($B$3&\"Hors herbicides (ancienne méthode traitement de semences)\"&$B13,Tab_IFT!$B:$B&Tab_IFT!$A:$A&Tab_IFT!$C:$C,0),1), INDEX(Tab_IFT!H:H,MATCH(\"France métropolitaine\"&\"Hors herbicides (ancienne méthode traitement de semences)\"&$B13,Tab_IFT!$B:$B&Tab_IFT!$A:$A&Tab_IFT!$C:$C,0),1)), 0)","v":2.59},{"$f":"_xlfn.IFNA(_xlfn.IFNA(INDEX(Tab_IFT!I:I,MATCH($B$3&\"Hors herbicides (ancienne méthode traitement de semences)\"&$B13,Tab_IFT!$B:$B&Tab_IFT!$A:$A&Tab_IFT!$C:$C,0),1), INDEX(Tab_IFT!I:I,MATCH(\"France métropolitaine\"&\"Hors herbicides (ancienne méthode traitement de semences)\"&$B13,Tab_IFT!$B:$B&Tab_IFT!$A:$A&Tab_IFT!$C:$C,0),1)), 0)","v":2.87},{"$f":"_xlfn.IFNA(_xlfn.IFNA(INDEX(Tab_IFT!J:J,MATCH($B$3&\"Hors herbicides (ancienne méthode traitement de semences)\"&$B13,Tab_IFT!$B:$B&Tab_IFT!$A:$A&Tab_IFT!$C:$C,0),1), INDEX(Tab_IFT!J:J,MATCH(\"France métropolitaine\"&\"Hors herbicides (ancienne méthode traitement de semences)\"&$B13,Tab_IFT!$B:$B&Tab_IFT!$A:$A&Tab_IFT!$C:$C,0),1)), 0)","v":3.17},{"$f":"IF(AND((R13=INDEX(Tab_IFT!I:I,MATCH(\"France métropolitaine\"&\"Hors herbicides (ancienne méthode traitement de semences)\"&$B13,Tab_IFT!$B:$B&Tab_IFT!$A:$A&Tab_IFT!$C:$C,0),1)),(S13=INDEX(Tab_IFT!J:J,MATCH(\"France métropolitaine\"&\"Hors herbicides (ancienne méthode traitement de semences)\"&$B13,Tab_IFT!$B:$B&Tab_IFT!$A:$A&Tab_IFT!$C:$C,0),1))), \" → Valeurs nationales utilisées\",\"\")","v":" → Valeurs nationales utilisées"}]
[null,"Triticale",36,{"$f":"_xlfn.IFNA(INDEX(Tab_N!C:C,MATCH($B$3&$B14,Tab_N!$A:$A&Tab_N!$B:$B,0),1), INDEX(Tab_N!C:C,MATCH(\"France\"&$B14,Tab_N!$A:$A&Tab_N!$B:$B,0),1))","v":90.7},{"$f":"_xlfn.IFNA(_xlfn.IFNA(INDEX(Tab_IFT!D:D,MATCH($B$3&\"Herbicides\"&$B14,Tab_IFT!$B:$B&Tab_IFT!$A:$A&Tab_IFT!$C:$C,0),1), INDEX(Tab_IFT!D:D,MATCH(\"France métropolitaine\"&\"Herbicides\"&$B14,Tab_IFT!$B:$B&Tab_IFT!$A:$A&Tab_IFT!$C:$C,0),1)), 0)","v":0},{"$f":"_xlfn.IFNA(_xlfn.IFNA(INDEX(Tab_IFT!E:E,MATCH($B$3&\"Herbicides\"&$B14,Tab_IFT!$B:$B&Tab_IFT!$A:$A&Tab_IFT!$C:$C,0),1), INDEX(Tab_IFT!E:E,MATCH(\"France métropolitaine\"&\"Herbicides\"&$B14,Tab_IFT!$B:$B&Tab_IFT!$A:$A&Tab_IFT!$C:$C,0),1)), 0)","v":0.48},{"$f":"_xlfn.IFNA(_xlfn.IFNA(INDEX(Tab_IFT!F:F,MATCH($B$3&\"Herbicides\"&$B14,Tab_IFT!$B:$B&Tab_IFT!$A:$A&Tab_IFT!$C:$C,0),1), INDEX(Tab_IFT!F:F,MATCH(\"France métropolitaine\"&\"Herbicides\"&$B14,Tab_IFT!$B:$B&Tab_IFT!$A:$A&Tab_IFT!$C:$C,0),1)), 0)","v":0.78},{"$f":"_xlfn.IFNA(_xlfn.IFNA(INDEX(Tab_IFT!G:G,MATCH($B$3&\"Herbicides\"&$B14,Tab_IFT!$B:$B&Tab_IFT!$A:$A&Tab_IFT!$C:$C,0),1), INDEX(Tab_IFT!G:G,MATCH(\"France métropolitaine\"&\"Herbicides\"&$B14,Tab_IFT!$B:$B&Tab_IFT!$A:$A&Tab_IFT!$C:$C,0),1)), 0)","v":0.96},{"$f":"_xlfn.IFNA(_xlfn.IFNA(INDEX(Tab_IFT!H:H,MATCH($B$3&\"Herbicides\"&$B14,Tab_IFT!$B:$B&Tab_IFT!$A:$A&Tab_IFT!$C:$C,0),1), INDEX(Tab_IFT!H:H,MATCH(\"France métropolitaine\"&\"Herbicides\"&$B14,Tab_IFT!$B:$B&Tab_IFT!$A:$A&Tab_IFT!$C:$C,0),1)), 0)","v":1.07},{"$f":"_xlfn.IFNA(_xlfn.IFNA(INDEX(Tab_IFT!I:I,MATCH($B$3&\"Herbicides\"&$B14,Tab_IFT!$B:$B&Tab_IFT!$A:$A&Tab_IFT!$C:$C,0),1), INDEX(Tab_IFT!I:I,MATCH(\"France métropolitaine\"&\"Herbicides\"&$B14,Tab_IFT!$B:$B&Tab_IFT!$A:$A&Tab_IFT!$C:$C,0),1)), 0)","v":1.32},{"$f":"_xlfn.IFNA(_xlfn.IFNA(INDEX(Tab_IFT!J:J,MATCH($B$3&\"Herbicides\"&$B14,Tab_IFT!$B:$B&Tab_IFT!$A:$A&Tab_IFT!$C:$C,0),1), INDEX(Tab_IFT!J:J,MATCH(\"France métropolitaine\"&\"Herbicides\"&$B14,Tab_IFT!$B:$B&Tab_IFT!$A:$A&Tab_IFT!$C:$C,0),1)), 0)","v":1.55},{"$f":"IF(AND((K14=INDEX(Tab_IFT!J:J,MATCH(\"France métropolitaine\"&\"Herbicides\"&$B14,Tab_IFT!$B:$B&Tab_IFT!$A:$A&Tab_IFT!$C:$C,0),1)),(J14=INDEX(Tab_IFT!I:I,MATCH(\"France métropolitaine\"&\"Herbicides\"&$B14,Tab_IFT!$B:$B&Tab_IFT!$A:$A&Tab_IFT!$C:$C,0),1))), \" → Valeurs nationales utilisées\",\"\")","v":" → Valeurs nationales utilisées"},{"$f":"_xlfn.IFNA(_xlfn.IFNA(INDEX(Tab_IFT!D:D,MATCH($B$3&\"Hors herbicides (ancienne méthode traitement de semences)\"&$B14,Tab_IFT!$B:$B&Tab_IFT!$A:$A&Tab_IFT!$C:$C,0),1), INDEX(Tab_IFT!D:D,MATCH(\"France métropolitaine\"&\"Hors herbicides (ancienne méthode traitement de semences)\"&$B14,Tab_IFT!$B:$B&Tab_IFT!$A:$A&Tab_IFT!$C:$C,0),1)), 0)","v":0},{"$f":"_xlfn.IFNA(_xlfn.IFNA(INDEX(Tab_IFT!E:E,MATCH($B$3&\"Hors herbicides (ancienne méthode traitement de semences)\"&$B14,Tab_IFT!$B:$B&Tab_IFT!$A:$A&Tab_IFT!$C:$C,0),1), INDEX(Tab_IFT!E:E,MATCH(\"France métropolitaine\"&\"Hors herbicides (ancienne méthode traitement de semences)\"&$B14,Tab_IFT!$B:$B&Tab_IFT!$A:$A&Tab_IFT!$C:$C,0),1)), 0)","v":0.93},{"$f":"_xlfn.IFNA(_xlfn.IFNA(INDEX(Tab_IFT!F:F,MATCH($B$3&\"Hors herbicides (ancienne méthode traitement de semences)\"&$B14,Tab_IFT!$B:$B&Tab_IFT!$A:$A&Tab_IFT!$C:$C,0),1), INDEX(Tab_IFT!F:F,MATCH(\"France métropolitaine\"&\"Hors herbicides (ancienne méthode traitement de semences)\"&$B14,Tab_IFT!$B:$B&Tab_IFT!$A:$A&Tab_IFT!$C:$C,0),1)), 0)","v":1},{"$f":"_xlfn.IFNA(_xlfn.IFNA(INDEX(Tab_IFT!G:G,MATCH($B$3&\"Hors herbicides (ancienne méthode traitement de semences)\"&$B14,Tab_IFT!$B:$B&Tab_IFT!$A:$A&Tab_IFT!$C:$C,0),1), INDEX(Tab_IFT!G:G,MATCH(\"France métropolitaine\"&\"Hors herbicides (ancienne méthode traitement de semences)\"&$B14,Tab_IFT!$B:$B&Tab_IFT!$A:$A&Tab_IFT!$C:$C,0),1)), 0)","v":1},{"$f":"_xlfn.IFNA(_xlfn.IFNA(INDEX(Tab_IFT!H:H,MATCH($B$3&\"Hors herbicides (ancienne méthode traitement de semences)\"&$B14,Tab_IFT!$B:$B&Tab_IFT!$A:$A&Tab_IFT!$C:$C,0),1), INDEX(Tab_IFT!H:H,MATCH(\"France métropolitaine\"&\"Hors herbicides (ancienne méthode traitement de semences)\"&$B14,Tab_IFT!$B:$B&Tab_IFT!$A:$A&Tab_IFT!$C:$C,0),1)), 0)","v":1.43},{"$f":"_xlfn.IFNA(_xlfn.IFNA(INDEX(Tab_IFT!I:I,MATCH($B$3&\"Hors herbicides (ancienne méthode traitement de semences)\"&$B14,Tab_IFT!$B:$B&Tab_IFT!$A:$A&Tab_IFT!$C:$C,0),1), INDEX(Tab_IFT!I:I,MATCH(\"France métropolitaine\"&\"Hors herbicides (ancienne méthode traitement de semences)\"&$B14,Tab_IFT!$B:$B&Tab_IFT!$A:$A&Tab_IFT!$C:$C,0),1)), 0)","v":1.68},{"$f":"_xlfn.IFNA(_xlfn.IFNA(INDEX(Tab_IFT!J:J,MATCH($B$3&\"Hors herbicides (ancienne méthode traitement de semences)\"&$B14,Tab_IFT!$B:$B&Tab_IFT!$A:$A&Tab_IFT!$C:$C,0),1), INDEX(Tab_IFT!J:J,MATCH(\"France métropolitaine\"&\"Hors herbicides (ancienne méthode traitement de semences)\"&$B14,Tab_IFT!$B:$B&Tab_IFT!$A:$A&Tab_IFT!$C:$C,0),1)), 0)","v":1.92},{"$f":"IF(AND((R14=INDEX(Tab_IFT!I:I,MATCH(\"France métropolitaine\"&\"Hors herbicides (ancienne méthode traitement de semences)\"&$B14,Tab_IFT!$B:$B&Tab_IFT!$A:$A&Tab_IFT!$C:$C,0),1)),(S14=INDEX(Tab_IFT!J:J,MATCH(\"France métropolitaine\"&\"Hors herbicides (ancienne méthode traitement de semences)\"&$B14,Tab_IFT!$B:$B&Tab_IFT!$A:$A&Tab_IFT!$C:$C,0),1))), \" → Valeurs nationales utilisées\",\"\")","v":" → Valeurs nationales utilisées"}]
[null,"Colza",986,{"$f":"_xlfn.IFNA(INDEX(Tab_N!C:C,MATCH($B$3&$B15,Tab_N!$A:$A&Tab_N!$B:$B,0),1), INDEX(Tab_N!C:C,MATCH(\"France\"&$B15,Tab_N!$A:$A&Tab_N!$B:$B,0),1))","v":157.69999999999999},{"$f":"_xlfn.IFNA(_xlfn.IFNA(INDEX(Tab_IFT!D:D,MATCH($B$3&\"Herbicides\"&$B15,Tab_IFT!$B:$B&Tab_IFT!$A:$A&Tab_IFT!$C:$C,0),1), INDEX(Tab_IFT!D:D,MATCH(\"France métropolitaine\"&\"Herbicides\"&$B15,Tab_IFT!$B:$B&Tab_IFT!$A:$A&Tab_IFT!$C:$C,0),1)), 0)","v":0.87},{"$f":"_xlfn.IFNA(_xlfn.IFNA(INDEX(Tab_IFT!E:E,MATCH($B$3&\"Herbicides\"&$B15,Tab_IFT!$B:$B&Tab_IFT!$A:$A&Tab_IFT!$C:$C,0),1), INDEX(Tab_IFT!E:E,MATCH(\"France métropolitaine\"&\"Herbicides\"&$B15,Tab_IFT!$B:$B&Tab_IFT!$A:$A&Tab_IFT!$C:$C,0),1)), 0)","v":1.07},{"$f":"_xlfn.IFNA(_xlfn.IFNA(INDEX(Tab_IFT!F:F,MATCH($B$3&\"Herbicides\"&$B15,Tab_IFT!$B:$B&Tab_IFT!$A:$A&Tab_IFT!$C:$C,0),1), INDEX(Tab_IFT!F:F,MATCH(\"France métropolitaine\"&\"Herbicides\"&$B15,Tab_IFT!$B:$B&Tab_IFT!$A:$A&Tab_IFT!$C:$C,0),1)), 0)","v":1.24},{"$f":"_xlfn.IFNA(_xlfn.IFNA(INDEX(Tab_IFT!G:G,MATCH($B$3&\"Herbicides\"&$B15,Tab_IFT!$B:$B&Tab_IFT!$A:$A&Tab_IFT!$C:$C,0),1), INDEX(Tab_IFT!G:G,MATCH(\"France métropolitaine\"&\"Herbicides\"&$B15,Tab_IFT!$B:$B&Tab_IFT!$A:$A&Tab_IFT!$C:$C,0),1)), 0)","v":1.45},{"$f":"_xlfn.IFNA(_xlfn.IFNA(INDEX(Tab_IFT!H:H,MATCH($B$3&\"Herbicides\"&$B15,Tab_IFT!$B:$B&Tab_IFT!$A:$A&Tab_IFT!$C:$C,0),1), INDEX(Tab_IFT!H:H,MATCH(\"France métropolitaine\"&\"Herbicides\"&$B15,Tab_IFT!$B:$B&Tab_IFT!$A:$A&Tab_IFT!$C:$C,0),1)), 0)","v":1.63},{"$f":"_xlfn.IFNA(_xlfn.IFNA(INDEX(Tab_IFT!I:I,MATCH($B$3&\"Herbicides\"&$B15,Tab_IFT!$B:$B&Tab_IFT!$A:$A&Tab_IFT!$C:$C,0),1), INDEX(Tab_IFT!I:I,MATCH(\"France métropolitaine\"&\"Herbicides\"&$B15,Tab_IFT!$B:$B&Tab_IFT!$A:$A&Tab_IFT!$C:$C,0),1)), 0)","v":1.84},{"$f":"_xlfn.IFNA(_xlfn.IFNA(INDEX(Tab_IFT!J:J,MATCH($B$3&\"Herbicides\"&$B15,Tab_IFT!$B:$B&Tab_IFT!$A:$A&Tab_IFT!$C:$C,0),1), INDEX(Tab_IFT!J:J,MATCH(\"France métropolitaine\"&\"Herbicides\"&$B15,Tab_IFT!$B:$B&Tab_IFT!$A:$A&Tab_IFT!$C:$C,0),1)), 0)","v":2.09},{"$f":"IF(AND((K15=INDEX(Tab_IFT!J:J,MATCH(\"France métropolitaine\"&\"Herbicides\"&$B15,Tab_IFT!$B:$B&Tab_IFT!$A:$A&Tab_IFT!$C:$C,0),1)),(J15=INDEX(Tab_IFT!I:I,MATCH(\"France métropolitaine\"&\"Herbicides\"&$B15,Tab_IFT!$B:$B&Tab_IFT!$A:$A&Tab_IFT!$C:$C,0),1))), \" → Valeurs nationales utilisées\",\"\")","v":" → Valeurs nationales utilisées"},{"$f":"_xlfn.IFNA(_xlfn.IFNA(INDEX(Tab_IFT!D:D,MATCH($B$3&\"Hors herbicides (ancienne méthode traitement de semences)\"&$B15,Tab_IFT!$B:$B&Tab_IFT!$A:$A&Tab_IFT!$C:$C,0),1), INDEX(Tab_IFT!D:D,MATCH(\"France métropolitaine\"&\"Hors herbicides (ancienne méthode traitement de semences)\"&$B15,Tab_IFT!$B:$B&Tab_IFT!$A:$A&Tab_IFT!$C:$C,0),1)), 0)","v":2.4900000000000002},{"$f":"_xlfn.IFNA(_xlfn.IFNA(INDEX(Tab_IFT!E:E,MATCH($B$3&\"Hors herbicides (ancienne méthode traitement de semences)\"&$B15,Tab_IFT!$B:$B&Tab_IFT!$A:$A&Tab_IFT!$C:$C,0),1), INDEX(Tab_IFT!E:E,MATCH(\"France métropolitaine\"&\"Hors herbicides (ancienne méthode traitement de semences)\"&$B15,Tab_IFT!$B:$B&Tab_IFT!$A:$A&Tab_IFT!$C:$C,0),1)), 0)","v":3.09},{"$f":"_xlfn.IFNA(_xlfn.IFNA(INDEX(Tab_IFT!F:F,MATCH($B$3&\"Hors herbicides (ancienne méthode traitement de semences)\"&$B15,Tab_IFT!$B:$B&Tab_IFT!$A:$A&Tab_IFT!$C:$C,0),1), INDEX(Tab_IFT!F:F,MATCH(\"France métropolitaine\"&\"Hors herbicides (ancienne méthode traitement de semences)\"&$B15,Tab_IFT!$B:$B&Tab_IFT!$A:$A&Tab_IFT!$C:$C,0),1)), 0)","v":3.65},{"$f":"_xlfn.IFNA(_xlfn.IFNA(INDEX(Tab_IFT!G:G,MATCH($B$3&\"Hors herbicides (ancienne méthode traitement de semences)\"&$B15,Tab_IFT!$B:$B&Tab_IFT!$A:$A&Tab_IFT!$C:$C,0),1), INDEX(Tab_IFT!G:G,MATCH(\"France métropolitaine\"&\"Hors herbicides (ancienne méthode traitement de semences)\"&$B15,Tab_IFT!$B:$B&Tab_IFT!$A:$A&Tab_IFT!$C:$C,0),1)), 0)","v":4.05},{"$f":"_xlfn.IFNA(_xlfn.IFNA(INDEX(Tab_IFT!H:H,MATCH($B$3&\"Hors herbicides (ancienne méthode traitement de semences)\"&$B15,Tab_IFT!$B:$B&Tab_IFT!$A:$A&Tab_IFT!$C:$C,0),1), INDEX(Tab_IFT!H:H,MATCH(\"France métropolitaine\"&\"Hors herbicides (ancienne méthode traitement de semences)\"&$B15,Tab_IFT!$B:$B&Tab_IFT!$A:$A&Tab_IFT!$C:$C,0),1)), 0)","v":4.4800000000000004},{"$f":"_xlfn.IFNA(_xlfn.IFNA(INDEX(Tab_IFT!I:I,MATCH($B$3&\"Hors herbicides (ancienne méthode traitement de semences)\"&$B15,Tab_IFT!$B:$B&Tab_IFT!$A:$A&Tab_IFT!$C:$C,0),1), INDEX(Tab_IFT!I:I,MATCH(\"France métropolitaine\"&\"Hors herbicides (ancienne méthode traitement de semences)\"&$B15,Tab_IFT!$B:$B&Tab_IFT!$A:$A&Tab_IFT!$C:$C,0),1)), 0)","v":4.87},{"$f":"_xlfn.IFNA(_xlfn.IFNA(INDEX(Tab_IFT!J:J,MATCH($B$3&\"Hors herbicides (ancienne méthode traitement de semences)\"&$B15,Tab_IFT!$B:$B&Tab_IFT!$A:$A&Tab_IFT!$C:$C,0),1), INDEX(Tab_IFT!J:J,MATCH(\"France métropolitaine\"&\"Hors herbicides (ancienne méthode traitement de semences)\"&$B15,Tab_IFT!$B:$B&Tab_IFT!$A:$A&Tab_IFT!$C:$C,0),1)), 0)","v":5.32},{"$f":"IF(AND((R15=INDEX(Tab_IFT!I:I,MATCH(\"France métropolitaine\"&\"Hors herbicides (ancienne méthode traitement de semences)\"&$B15,Tab_IFT!$B:$B&Tab_IFT!$A:$A&Tab_IFT!$C:$C,0),1)),(S15=INDEX(Tab_IFT!J:J,MATCH(\"France métropolitaine\"&\"Hors herbicides (ancienne méthode traitement de semences)\"&$B15,Tab_IFT!$B:$B&Tab_IFT!$A:$A&Tab_IFT!$C:$C,0),1))), \" → Valeurs nationales utilisées\",\"\")","v":" → Valeurs nationales utilisées"}]
[null,"Tournesol",2,{"$f":"_xlfn.IFNA(INDEX(Tab_N!C:C,MATCH($B$3&$B16,Tab_N!$A:$A&Tab_N!$B:$B,0),1), INDEX(Tab_N!C:C,MATCH(\"France\"&$B16,Tab_N!$A:$A&Tab_N!$B:$B,0),1))","v":44.4},{"$f":"_xlfn.IFNA(_xlfn.IFNA(INDEX(Tab_IFT!D:D,MATCH($B$3&\"Herbicides\"&$B16,Tab_IFT!$B:$B&Tab_IFT!$A:$A&Tab_IFT!$C:$C,0),1), INDEX(Tab_IFT!D:D,MATCH(\"France métropolitaine\"&\"Herbicides\"&$B16,Tab_IFT!$B:$B&Tab_IFT!$A:$A&Tab_IFT!$C:$C,0),1)), 0)","v":0.56000000000000005},{"$f":"_xlfn.IFNA(_xlfn.IFNA(INDEX(Tab_IFT!E:E,MATCH($B$3&\"Herbicides\"&$B16,Tab_IFT!$B:$B&Tab_IFT!$A:$A&Tab_IFT!$C:$C,0),1), INDEX(Tab_IFT!E:E,MATCH(\"France métropolitaine\"&\"Herbicides\"&$B16,Tab_IFT!$B:$B&Tab_IFT!$A:$A&Tab_IFT!$C:$C,0),1)), 0)","v":0.85},{"$f":"_xlfn.IFNA(_xlfn.IFNA(INDEX(Tab_IFT!F:F,MATCH($B$3&\"Herbicides\"&$B16,Tab_IFT!$B:$B&Tab_IFT!$A:$A&Tab_IFT!$C:$C,0),1), INDEX(Tab_IFT!F:F,MATCH(\"France métropolitaine\"&\"Herbicides\"&$B16,Tab_IFT!$B:$B&Tab_IFT!$A:$A&Tab_IFT!$C:$C,0),1)), 0)","v":1.08},{"$f":"_xlfn.IFNA(_xlfn.IFNA(INDEX(Tab_IFT!G:G,MATCH($B$3&\"Herbicides\"&$B16,Tab_IFT!$B:$B&Tab_IFT!$A:$A&Tab_IFT!$C:$C,0),1), INDEX(Tab_IFT!G:G,MATCH(\"France métropolitaine\"&\"Herbicides\"&$B16,Tab_IFT!$B:$B&Tab_IFT!$A:$A&Tab_IFT!$C:$C,0),1)), 0)","v":1.24},{"$f":"_xlfn.IFNA(_xlfn.IFNA(INDEX(Tab_IFT!H:H,MATCH($B$3&\"Herbicides\"&$B16,Tab_IFT!$B:$B&Tab_IFT!$A:$A&Tab_IFT!$C:$C,0),1), INDEX(Tab_IFT!H:H,MATCH(\"France métropolitaine\"&\"Herbicides\"&$B16,Tab_IFT!$B:$B&Tab_IFT!$A:$A&Tab_IFT!$C:$C,0),1)), 0)","v":1.4},{"$f":"_xlfn.IFNA(_xlfn.IFNA(INDEX(Tab_IFT!I:I,MATCH($B$3&\"Herbicides\"&$B16,Tab_IFT!$B:$B&Tab_IFT!$A:$A&Tab_IFT!$C:$C,0),1), INDEX(Tab_IFT!I:I,MATCH(\"France métropolitaine\"&\"Herbicides\"&$B16,Tab_IFT!$B:$B&Tab_IFT!$A:$A&Tab_IFT!$C:$C,0),1)), 0)","v":1.52},{"$f":"_xlfn.IFNA(_xlfn.IFNA(INDEX(Tab_IFT!J:J,MATCH($B$3&\"Herbicides\"&$B16,Tab_IFT!$B:$B&Tab_IFT!$A:$A&Tab_IFT!$C:$C,0),1), INDEX(Tab_IFT!J:J,MATCH(\"France métropolitaine\"&\"Herbicides\"&$B16,Tab_IFT!$B:$B&Tab_IFT!$A:$A&Tab_IFT!$C:$C,0),1)), 0)","v":1.63},{"$f":"IF(AND((K16=INDEX(Tab_IFT!J:J,MATCH(\"France métropolitaine\"&\"Herbicides\"&$B16,Tab_IFT!$B:$B&Tab_IFT!$A:$A&Tab_IFT!$C:$C,0),1)),(J16=INDEX(Tab_IFT!I:I,MATCH(\"France métropolitaine\"&\"Herbicides\"&$B16,Tab_IFT!$B:$B&Tab_IFT!$A:$A&Tab_IFT!$C:$C,0),1))), \" → Valeurs nationales utilisées\",\"\")","v":" → Valeurs nationales utilisées"},{"$f":"_xlfn.IFNA(_xlfn.IFNA(INDEX(Tab_IFT!D:D,MATCH($B$3&\"Hors herbicides (ancienne méthode traitement de semences)\"&$B16,Tab_IFT!$B:$B&Tab_IFT!$A:$A&Tab_IFT!$C:$C,0),1), INDEX(Tab_IFT!D:D,MATCH(\"France métropolitaine\"&\"Hors herbicides (ancienne méthode traitement de semences)\"&$B16,Tab_IFT!$B:$B&Tab_IFT!$A:$A&Tab_IFT!$C:$C,0),1)), 0)","v":0.73},{"$f":"_xlfn.IFNA(_xlfn.IFNA(INDEX(Tab_IFT!E:E,MATCH($B$3&\"Hors herbicides (ancienne méthode traitement de semences)\"&$B16,Tab_IFT!$B:$B&Tab_IFT!$A:$A&Tab_IFT!$C:$C,0),1), INDEX(Tab_IFT!E:E,MATCH(\"France métropolitaine\"&\"Hors herbicides (ancienne méthode traitement de semences)\"&$B16,Tab_IFT!$B:$B&Tab_IFT!$A:$A&Tab_IFT!$C:$C,0),1)), 0)","v":1},{"$f":"_xlfn.IFNA(_xlfn.IFNA(INDEX(Tab_IFT!F:F,MATCH($B$3&\"Hors herbicides (ancienne méthode traitement de semences)\"&$B16,Tab_IFT!$B:$B&Tab_IFT!$A:$A&Tab_IFT!$C:$C,0),1), INDEX(Tab_IFT!F:F,MATCH(\"France métropolitaine\"&\"Hors herbicides (ancienne méthode traitement de semences)\"&$B16,Tab_IFT!$B:$B&Tab_IFT!$A:$A&Tab_IFT!$C:$C,0),1)), 0)","v":1},{"$f":"_xlfn.IFNA(_xlfn.IFNA(INDEX(Tab_IFT!G:G,MATCH($B$3&\"Hors herbicides (ancienne méthode traitement de semences)\"&$B16,Tab_IFT!$B:$B&Tab_IFT!$A:$A&Tab_IFT!$C:$C,0),1), INDEX(Tab_IFT!G:G,MATCH(\"France métropolitaine\"&\"Hors herbicides (ancienne méthode traitement de semences)\"&$B16,Tab_IFT!$B:$B&Tab_IFT!$A:$A&Tab_IFT!$C:$C,0),1)), 0)","v":1},{"$f":"_xlfn.IFNA(_xlfn.IFNA(INDEX(Tab_IFT!H:H,MATCH($B$3&\"Hors herbicides (ancienne méthode traitement de semences)\"&$B16,Tab_IFT!$B:$B&Tab_IFT!$A:$A&Tab_IFT!$C:$C,0),1), INDEX(Tab_IFT!H:H,MATCH(\"France métropolitaine\"&\"Hors herbicides (ancienne méthode traitement de semences)\"&$B16,Tab_IFT!$B:$B&Tab_IFT!$A:$A&Tab_IFT!$C:$C,0),1)), 0)","v":1},{"$f":"_xlfn.IFNA(_xlfn.IFNA(INDEX(Tab_IFT!I:I,MATCH($B$3&\"Hors herbicides (ancienne méthode traitement de semences)\"&$B16,Tab_IFT!$B:$B&Tab_IFT!$A:$A&Tab_IFT!$C:$C,0),1), INDEX(Tab_IFT!I:I,MATCH(\"France métropolitaine\"&\"Hors herbicides (ancienne méthode traitement de semences)\"&$B16,Tab_IFT!$B:$B&Tab_IFT!$A:$A&Tab_IFT!$C:$C,0),1)), 0)","v":1.06},{"$f":"_xlfn.IFNA(_xlfn.IFNA(INDEX(Tab_IFT!J:J,MATCH($B$3&\"Hors herbicides (ancienne méthode traitement de semences)\"&$B16,Tab_IFT!$B:$B&Tab_IFT!$A:$A&Tab_IFT!$C:$C,0),1), INDEX(Tab_IFT!J:J,MATCH(\"France métropolitaine\"&\"Hors herbicides (ancienne méthode traitement de semences)\"&$B16,Tab_IFT!$B:$B&Tab_IFT!$A:$A&Tab_IFT!$C:$C,0),1)), 0)","v":1.75},{"$f":"IF(AND((R16=INDEX(Tab_IFT!I:I,MATCH(\"France métropolitaine\"&\"Hors herbicides (ancienne méthode traitement de semences)\"&$B16,Tab_IFT!$B:$B&Tab_IFT!$A:$A&Tab_IFT!$C:$C,0),1)),(S16=INDEX(Tab_IFT!J:J,MATCH(\"France métropolitaine\"&\"Hors herbicides (ancienne méthode traitement de semences)\"&$B16,Tab_IFT!$B:$B&Tab_IFT!$A:$A&Tab_IFT!$C:$C,0),1))), \" → Valeurs nationales utilisées\",\"\")","v":" → Valeurs nationales utilisées"}]
[null,"Pois protéagineux",56,{"$f":"_xlfn.IFNA(INDEX(Tab_N!C:C,MATCH($B$3&$B17,Tab_N!$A:$A&Tab_N!$B:$B,0),1), INDEX(Tab_N!C:C,MATCH(\"France\"&$B17,Tab_N!$A:$A&Tab_N!$B:$B,0),1))","v":1.2},{"$f":"_xlfn.IFNA(_xlfn.IFNA(INDEX(Tab_IFT!D:D,MATCH($B$3&\"Herbicides\"&$B17,Tab_IFT!$B:$B&Tab_IFT!$A:$A&Tab_IFT!$C:$C,0),1), INDEX(Tab_IFT!D:D,MATCH(\"France métropolitaine\"&\"Herbicides\"&$B17,Tab_IFT!$B:$B&Tab_IFT!$A:$A&Tab_IFT!$C:$C,0),1)), 0)","v":0.46},{"$f":"_xlfn.IFNA(_xlfn.IFNA(INDEX(Tab_IFT!E:E,MATCH($B$3&\"Herbicides\"&$B17,Tab_IFT!$B:$B&Tab_IFT!$A:$A&Tab_IFT!$C:$C,0),1), INDEX(Tab_IFT!E:E,MATCH(\"France métropolitaine\"&\"Herbicides\"&$B17,Tab_IFT!$B:$B&Tab_IFT!$A:$A&Tab_IFT!$C:$C,0),1)), 0)","v":0.77},{"$f":"_xlfn.IFNA(_xlfn.IFNA(INDEX(Tab_IFT!F:F,MATCH($B$3&\"Herbicides\"&$B17,Tab_IFT!$B:$B&Tab_IFT!$A:$A&Tab_IFT!$C:$C,0),1), INDEX(Tab_IFT!F:F,MATCH(\"France métropolitaine\"&\"Herbicides\"&$B17,Tab_IFT!$B:$B&Tab_IFT!$A:$A&Tab_IFT!$C:$C,0),1)), 0)","v":0.89},{"$f":"_xlfn.IFNA(_xlfn.IFNA(INDEX(Tab_IFT!G:G,MATCH($B$3&\"Herbicides\"&$B17,Tab_IFT!$B:$B&Tab_IFT!$A:$A&Tab_IFT!$C:$C,0),1), INDEX(Tab_IFT!G:G,MATCH(\"France métropolitaine\"&\"Herbicides\"&$B17,Tab_IFT!$B:$B&Tab_IFT!$A:$A&Tab_IFT!$C:$C,0),1)), 0)","v":1.03},{"$f":"_xlfn.IFNA(_xlfn.IFNA(INDEX(Tab_IFT!H:H,MATCH($B$3&\"Herbicides\"&$B17,Tab_IFT!$B:$B&Tab_IFT!$A:$A&Tab_IFT!$C:$C,0),1), INDEX(Tab_IFT!H:H,MATCH(\"France métropolitaine\"&\"Herbicides\"&$B17,Tab_IFT!$B:$B&Tab_IFT!$A:$A&Tab_IFT!$C:$C,0),1)), 0)","v":1.2},{"$f":"_xlfn.IFNA(_xlfn.IFNA(INDEX(Tab_IFT!I:I,MATCH($B$3&\"Herbicides\"&$B17,Tab_IFT!$B:$B&Tab_IFT!$A:$A&Tab_IFT!$C:$C,0),1), INDEX(Tab_IFT!I:I,MATCH(\"France métropolitaine\"&\"Herbicides\"&$B17,Tab_IFT!$B:$B&Tab_IFT!$A:$A&Tab_IFT!$C:$C,0),1)), 0)","v":1.35},{"$f":"_xlfn.IFNA(_xlfn.IFNA(INDEX(Tab_IFT!J:J,MATCH($B$3&\"Herbicides\"&$B17,Tab_IFT!$B:$B&Tab_IFT!$A:$A&Tab_IFT!$C:$C,0),1), INDEX(Tab_IFT!J:J,MATCH(\"France métropolitaine\"&\"Herbicides\"&$B17,Tab_IFT!$B:$B&Tab_IFT!$A:$A&Tab_IFT!$C:$C,0),1)), 0)","v":1.53},{"$f":"IF(AND((K17=INDEX(Tab_IFT!J:J,MATCH(\"France métropolitaine\"&\"Herbicides\"&$B17,Tab_IFT!$B:$B&Tab_IFT!$A:$A&Tab_IFT!$C:$C,0),1)),(J17=INDEX(Tab_IFT!I:I,MATCH(\"France métropolitaine\"&\"Herbicides\"&$B17,Tab_IFT!$B:$B&Tab_IFT!$A:$A&Tab_IFT!$C:$C,0),1))), \" → Valeurs nationales utilisées\",\"\")","v":" → Valeurs nationales utilisées"},{"$f":"_xlfn.IFNA(_xlfn.IFNA(INDEX(Tab_IFT!D:D,MATCH($B$3&\"Hors herbicides (ancienne méthode traitement de semences)\"&$B17,Tab_IFT!$B:$B&Tab_IFT!$A:$A&Tab_IFT!$C:$C,0),1), INDEX(Tab_IFT!D:D,MATCH(\"France métropolitaine\"&\"Hors herbicides (ancienne méthode traitement de semences)\"&$B17,Tab_IFT!$B:$B&Tab_IFT!$A:$A&Tab_IFT!$C:$C,0),1)), 0)","v":0.97},{"$f":"_xlfn.IFNA(_xlfn.IFNA(INDEX(Tab_IFT!E:E,MATCH($B$3&\"Hors herbicides (ancienne méthode traitement de semences)\"&$B17,Tab_IFT!$B:$B&Tab_IFT!$A:$A&Tab_IFT!$C:$C,0),1), INDEX(Tab_IFT!E:E,MATCH(\"France métropolitaine\"&\"Hors herbicides (ancienne méthode traitement de semences)\"&$B17,Tab_IFT!$B:$B&Tab_IFT!$A:$A&Tab_IFT!$C:$C,0),1)), 0)","v":1.91},{"$f":"_xlfn.IFNA(_xlfn.IFNA(INDEX(Tab_IFT!F:F,MATCH($B$3&\"Hors herbicides (ancienne méthode traitement de semences)\"&$B17,Tab_IFT!$B:$B&Tab_IFT!$A:$A&Tab_IFT!$C:$C,0),1), INDEX(Tab_IFT!F:F,MATCH(\"France métropolitaine\"&\"Hors herbicides (ancienne méthode traitement de semences)\"&$B17,Tab_IFT!$B:$B&Tab_IFT!$A:$A&Tab_IFT!$C:$C,0),1)), 0)","v":2.4700000000000002},{"$f":"_xlfn.IFNA(_xlfn.IFNA(INDEX(Tab_IFT!G:G,MATCH($B$3&\"Hors herbicides (ancienne méthode traitement de semences)\"&$B17,Tab_IFT!$B:$B&Tab_IFT!$A:$A&Tab_IFT!$C:$C,0),1), INDEX(Tab_IFT!G:G,MATCH(\"France métropolitaine\"&\"Hors herbicides (ancienne méthode traitement de semences)\"&$B17,Tab_IFT!$B:$B&Tab_IFT!$A:$A&Tab_IFT!$C:$C,0),1)), 0)","v":2.9},{"$f":"_xlfn.IFNA(_xlfn.IFNA(INDEX(Tab_IFT!H:H,MATCH($B$3&\"Hors herbicides (ancienne méthode traitement de semences)\"&$B17,Tab_IFT!$B:$B&Tab_IFT!$A:$A&Tab_IFT!$C:$C,0),1), INDEX(Tab_IFT!H:H,MATCH(\"France métropolitaine\"&\"Hors herbicides (ancienne méthode traitement de semences)\"&$B17,Tab_IFT!$B:$B&Tab_IFT!$A:$A&Tab_IFT!$C:$C,0),1)), 0)","v":3.33},{"$f":"_xlfn.IFNA(_xlfn.IFNA(INDEX(Tab_IFT!I:I,MATCH($B$3&\"Hors herbicides (ancienne méthode traitement de semences)\"&$B17,Tab_IFT!$B:$B&Tab_IFT!$A:$A&Tab_IFT!$C:$C,0),1), INDEX(Tab_IFT!I:I,MATCH(\"France métropolitaine\"&\"Hors herbicides (ancienne méthode traitement de semences)\"&$B17,Tab_IFT!$B:$B&Tab_IFT!$A:$A&Tab_IFT!$C:$C,0),1)), 0)","v":3.79},{"$f":"_xlfn.IFNA(_xlfn.IFNA(INDEX(Tab_IFT!J:J,MATCH($B$3&\"Hors herbicides (ancienne méthode traitement de semences)\"&$B17,Tab_IFT!$B:$B&Tab_IFT!$A:$A&Tab_IFT!$C:$C,0),1), INDEX(Tab_IFT!J:J,MATCH(\"France métropolitaine\"&\"Hors herbicides (ancienne méthode traitement de semences)\"&$B17,Tab_IFT!$B:$B&Tab_IFT!$A:$A&Tab_IFT!$C:$C,0),1)), 0)","v":4.17},{"$f":"IF(AND((R17=INDEX(Tab_IFT!I:I,MATCH(\"France métropolitaine\"&\"Hors herbicides (ancienne méthode traitement de semences)\"&$B17,Tab_IFT!$B:$B&Tab_IFT!$A:$A&Tab_IFT!$C:$C,0),1)),(S17=INDEX(Tab_IFT!J:J,MATCH(\"France métropolitaine\"&\"Hors herbicides (ancienne méthode traitement de semences)\"&$B17,Tab_IFT!$B:$B&Tab_IFT!$A:$A&Tab_IFT!$C:$C,0),1))), \" → Valeurs nationales utilisées\",\"\")","v":" → Valeurs nationales utilisées"}]
[null,"Maïs fourrage",65,{"$f":"_xlfn.IFNA(INDEX(Tab_N!C:C,MATCH($B$3&$B18,Tab_N!$A:$A&Tab_N!$B:$B,0),1), INDEX(Tab_N!C:C,MATCH(\"France\"&$B18,Tab_N!$A:$A&Tab_N!$B:$B,0),1))","v":62.4},{"$f":"_xlfn.IFNA(_xlfn.IFNA(INDEX(Tab_IFT!D:D,MATCH($B$3&\"Herbicides\"&$B18,Tab_IFT!$B:$B&Tab_IFT!$A:$A&Tab_IFT!$C:$C,0),1), INDEX(Tab_IFT!D:D,MATCH(\"France métropolitaine\"&\"Herbicides\"&$B18,Tab_IFT!$B:$B&Tab_IFT!$A:$A&Tab_IFT!$C:$C,0),1)), 0)","v":0.71},{"$f":"_xlfn.IFNA(_xlfn.IFNA(INDEX(Tab_IFT!E:E,MATCH($B$3&\"Herbicides\"&$B18,Tab_IFT!$B:$B&Tab_IFT!$A:$A&Tab_IFT!$C:$C,0),1), INDEX(Tab_IFT!E:E,MATCH(\"France métropolitaine\"&\"Herbicides\"&$B18,Tab_IFT!$B:$B&Tab_IFT!$A:$A&Tab_IFT!$C:$C,0),1)), 0)","v":0.91},{"$f":"_xlfn.IFNA(_xlfn.IFNA(INDEX(Tab_IFT!F:F,MATCH($B$3&\"Herbicides\"&$B18,Tab_IFT!$B:$B&Tab_IFT!$A:$A&Tab_IFT!$C:$C,0),1), INDEX(Tab_IFT!F:F,MATCH(\"France métropolitaine\"&\"Herbicides\"&$B18,Tab_IFT!$B:$B&Tab_IFT!$A:$A&Tab_IFT!$C:$C,0),1)), 0)","v":1.02},{"$f":"_xlfn.IFNA(_xlfn.IFNA(INDEX(Tab_IFT!G:G,MATCH($B$3&\"Herbicides\"&$B18,Tab_IFT!$B:$B&Tab_IFT!$A:$A&Tab_IFT!$C:$C,0),1), INDEX(Tab_IFT!G:G,MATCH(\"France métropolitaine\"&\"Herbicides\"&$B18,Tab_IFT!$B:$B&Tab_IFT!$A:$A&Tab_IFT!$C:$C,0),1)), 0)","v":1.17},{"$f":"_xlfn.IFNA(_xlfn.IFNA(INDEX(Tab_IFT!H:H,MATCH($B$3&\"Herbicides\"&$B18,Tab_IFT!$B:$B&Tab_IFT!$A:$A&Tab_IFT!$C:$C,0),1), INDEX(Tab_IFT!H:H,MATCH(\"France métropolitaine\"&\"Herbicides\"&$B18,Tab_IFT!$B:$B&Tab_IFT!$A:$A&Tab_IFT!$C:$C,0),1)), 0)","v":1.33},{"$f":"_xlfn.IFNA(_xlfn.IFNA(INDEX(Tab_IFT!I:I,MATCH($B$3&\"Herbicides\"&$B18,Tab_IFT!$B:$B&Tab_IFT!$A:$A&Tab_IFT!$C:$C,0),1), INDEX(Tab_IFT!I:I,MATCH(\"France métropolitaine\"&\"Herbicides\"&$B18,Tab_IFT!$B:$B&Tab_IFT!$A:$A&Tab_IFT!$C:$C,0),1)), 0)","v":1.49},{"$f":"_xlfn.IFNA(_xlfn.IFNA(INDEX(Tab_IFT!J:J,MATCH($B$3&\"Herbicides\"&$B18,Tab_IFT!$B:$B&Tab_IFT!$A:$A&Tab_IFT!$C:$C,0),1), INDEX(Tab_IFT!J:J,MATCH(\"France métropolitaine\"&\"Herbicides\"&$B18,Tab_IFT!$B:$B&Tab_IFT!$A:$A&Tab_IFT!$C:$C,0),1)), 0)","v":1.65},{"$f":"IF(AND((K18=INDEX(Tab_IFT!J:J,MATCH(\"France métropolitaine\"&\"Herbicides\"&$B18,Tab_IFT!$B:$B&Tab_IFT!$A:$A&Tab_IFT!$C:$C,0),1)),(J18=INDEX(Tab_IFT!I:I,MATCH(\"France métropolitaine\"&\"Herbicides\"&$B18,Tab_IFT!$B:$B&Tab_IFT!$A:$A&Tab_IFT!$C:$C,0),1))), \" → Valeurs nationales utilisées\",\"\")","v":" → Valeurs nationales utilisées"},{"$f":"_xlfn.IFNA(_xlfn.IFNA(INDEX(Tab_IFT!D:D,MATCH($B$3&\"Hors herbicides (ancienne méthode traitement de semences)\"&$B18,Tab_IFT!$B:$B&Tab_IFT!$A:$A&Tab_IFT!$C:$C,0),1), INDEX(Tab_IFT!D:D,MATCH(\"France métropolitaine\"&\"Hors herbicides (ancienne méthode traitement de semences)\"&$B18,Tab_IFT!$B:$B&Tab_IFT!$A:$A&Tab_IFT!$C:$C,0),1)), 0)","v":1},{"$f":"_xlfn.IFNA(_xlfn.IFNA(INDEX(Tab_IFT!E:E,MATCH($B$3&\"Hors herbicides (ancienne méthode traitement de semences)\"&$B18,Tab_IFT!$B:$B&Tab_IFT!$A:$A&Tab_IFT!$C:$C,0),1), INDEX(Tab_IFT!E:E,MATCH(\"France métropolitaine\"&\"Hors herbicides (ancienne méthode traitement de semences)\"&$B18,Tab_IFT!$B:$B&Tab_IFT!$A:$A&Tab_IFT!$C:$C,0),1)), 0)","v":1},{"$f":"_xlfn.IFNA(_xlfn.IFNA(INDEX(Tab_IFT!F:F,MATCH($B$3&\"Hors herbicides (ancienne méthode traitement de semences)\"&$B18,Tab_IFT!$B:$B&Tab_IFT!$A:$A&Tab_IFT!$C:$C,0),1), INDEX(Tab_IFT!F:F,MATCH(\"France métropolitaine\"&\"Hors herbicides (ancienne méthode traitement de semences)\"&$B18,Tab_IFT!$B:$B&Tab_IFT!$A:$A&Tab_IFT!$C:$C,0),1)), 0)","v":1},{"$f":"_xlfn.IFNA(_xlfn.IFNA(INDEX(Tab_IFT!G:G,MATCH($B$3&\"Hors herbicides (ancienne méthode traitement de semences)\"&$B18,Tab_IFT!$B:$B&Tab_IFT!$A:$A&Tab_IFT!$C:$C,0),1), INDEX(Tab_IFT!G:G,MATCH(\"France métropolitaine\"&\"Hors herbicides (ancienne méthode traitement de semences)\"&$B18,Tab_IFT!$B:$B&Tab_IFT!$A:$A&Tab_IFT!$C:$C,0),1)), 0)","v":1},{"$f":"_xlfn.IFNA(_xlfn.IFNA(INDEX(Tab_IFT!H:H,MATCH($B$3&\"Hors herbicides (ancienne méthode traitement de semences)\"&$B18,Tab_IFT!$B:$B&Tab_IFT!$A:$A&Tab_IFT!$C:$C,0),1), INDEX(Tab_IFT!H:H,MATCH(\"France métropolitaine\"&\"Hors herbicides (ancienne méthode traitement de semences)\"&$B18,Tab_IFT!$B:$B&Tab_IFT!$A:$A&Tab_IFT!$C:$C,0),1)), 0)","v":1},{"$f":"_xlfn.IFNA(_xlfn.IFNA(INDEX(Tab_IFT!I:I,MATCH($B$3&\"Hors herbicides (ancienne méthode traitement de semences)\"&$B18,Tab_IFT!$B:$B&Tab_IFT!$A:$A&Tab_IFT!$C:$C,0),1), INDEX(Tab_IFT!I:I,MATCH(\"France métropolitaine\"&\"Hors herbicides (ancienne méthode traitement de semences)\"&$B18,Tab_IFT!$B:$B&Tab_IFT!$A:$A&Tab_IFT!$C:$C,0),1)), 0)","v":1},{"$f":"_xlfn.IFNA(_xlfn.IFNA(INDEX(Tab_IFT!J:J,MATCH($B$3&\"Hors herbicides (ancienne méthode traitement de semences)\"&$B18,Tab_IFT!$B:$B&Tab_IFT!$A:$A&Tab_IFT!$C:$C,0),1), INDEX(Tab_IFT!J:J,MATCH(\"France métropolitaine\"&\"Hors herbicides (ancienne méthode traitement de semences)\"&$B18,Tab_IFT!$B:$B&Tab_IFT!$A:$A&Tab_IFT!$C:$C,0),1)), 0)","v":1},{"$f":"IF(AND((R18=INDEX(Tab_IFT!I:I,MATCH(\"France métropolitaine\"&\"Hors herbicides (ancienne méthode traitement de semences)\"&$B18,Tab_IFT!$B:$B&Tab_IFT!$A:$A&Tab_IFT!$C:$C,0),1)),(S18=INDEX(Tab_IFT!J:J,MATCH(\"France métropolitaine\"&\"Hors herbicides (ancienne méthode traitement de semences)\"&$B18,Tab_IFT!$B:$B&Tab_IFT!$A:$A&Tab_IFT!$C:$C,0),1))), \" → Valeurs nationales utilisées\",\"\")","v":" → Valeurs nationales utilisées"}]
[null,"Maïs grain",2,{"$f":"_xlfn.IFNA(INDEX(Tab_N!C:C,MATCH($B$3&$B19,Tab_N!$A:$A&Tab_N!$B:$B,0),1), INDEX(Tab_N!C:C,MATCH(\"France\"&$B19,Tab_N!$A:$A&Tab_N!$B:$B,0),1))","v":178.9},{"$f":"_xlfn.IFNA(_xlfn.IFNA(INDEX(Tab_IFT!D:D,MATCH($B$3&\"Herbicides\"&$B19,Tab_IFT!$B:$B&Tab_IFT!$A:$A&Tab_IFT!$C:$C,0),1), INDEX(Tab_IFT!D:D,MATCH(\"France métropolitaine\"&\"Herbicides\"&$B19,Tab_IFT!$B:$B&Tab_IFT!$A:$A&Tab_IFT!$C:$C,0),1)), 0)","v":0.93},{"$f":"_xlfn.IFNA(_xlfn.IFNA(INDEX(Tab_IFT!E:E,MATCH($B$3&\"Herbicides\"&$B19,Tab_IFT!$B:$B&Tab_IFT!$A:$A&Tab_IFT!$C:$C,0),1), INDEX(Tab_IFT!E:E,MATCH(\"France métropolitaine\"&\"Herbicides\"&$B19,Tab_IFT!$B:$B&Tab_IFT!$A:$A&Tab_IFT!$C:$C,0),1)), 0)","v":1.1000000000000001},{"$f":"_xlfn.IFNA(_xlfn.IFNA(INDEX(Tab_IFT!F:F,MATCH($B$3&\"Herbicides\"&$B19,Tab_IFT!$B:$B&Tab_IFT!$A:$A&Tab_IFT!$C:$C,0),1), INDEX(Tab_IFT!F:F,MATCH(\"France métropolitaine\"&\"Herbicides\"&$B19,Tab_IFT!$B:$B&Tab_IFT!$A:$A&Tab_IFT!$C:$C,0),1)), 0)","v":1.23},{"$f":"_xlfn.IFNA(_xlfn.IFNA(INDEX(Tab_IFT!G:G,MATCH($B$3&\"Herbicides\"&$B19,Tab_IFT!$B:$B&Tab_IFT!$A:$A&Tab_IFT!$C:$C,0),1), INDEX(Tab_IFT!G:G,MATCH(\"France métropolitaine\"&\"Herbicides\"&$B19,Tab_IFT!$B:$B&Tab_IFT!$A:$A&Tab_IFT!$C:$C,0),1)), 0)","v":1.4},{"$f":"_xlfn.IFNA(_xlfn.IFNA(INDEX(Tab_IFT!H:H,MATCH($B$3&\"Herbicides\"&$B19,Tab_IFT!$B:$B&Tab_IFT!$A:$A&Tab_IFT!$C:$C,0),1), INDEX(Tab_IFT!H:H,MATCH(\"France métropolitaine\"&\"Herbicides\"&$B19,Tab_IFT!$B:$B&Tab_IFT!$A:$A&Tab_IFT!$C:$C,0),1)), 0)","v":1.52},{"$f":"_xlfn.IFNA(_xlfn.IFNA(INDEX(Tab_IFT!I:I,MATCH($B$3&\"Herbicides\"&$B19,Tab_IFT!$B:$B&Tab_IFT!$A:$A&Tab_IFT!$C:$C,0),1), INDEX(Tab_IFT!I:I,MATCH(\"France métropolitaine\"&\"Herbicides\"&$B19,Tab_IFT!$B:$B&Tab_IFT!$A:$A&Tab_IFT!$C:$C,0),1)), 0)","v":1.63},{"$f":"_xlfn.IFNA(_xlfn.IFNA(INDEX(Tab_IFT!J:J,MATCH($B$3&\"Herbicides\"&$B19,Tab_IFT!$B:$B&Tab_IFT!$A:$A&Tab_IFT!$C:$C,0),1), INDEX(Tab_IFT!J:J,MATCH(\"France métropolitaine\"&\"Herbicides\"&$B19,Tab_IFT!$B:$B&Tab_IFT!$A:$A&Tab_IFT!$C:$C,0),1)), 0)","v":1.73},{"$f":"IF(AND((K19=INDEX(Tab_IFT!J:J,MATCH(\"France métropolitaine\"&\"Herbicides\"&$B19,Tab_IFT!$B:$B&Tab_IFT!$A:$A&Tab_IFT!$C:$C,0),1)),(J19=INDEX(Tab_IFT!I:I,MATCH(\"France métropolitaine\"&\"Herbicides\"&$B19,Tab_IFT!$B:$B&Tab_IFT!$A:$A&Tab_IFT!$C:$C,0),1))), \" → Valeurs nationales utilisées\",\"\")","v":""},{"$f":"_xlfn.IFNA(_xlfn.IFNA(INDEX(Tab_IFT!D:D,MATCH($B$3&\"Hors herbicides (ancienne méthode traitement de semences)\"&$B19,Tab_IFT!$B:$B&Tab_IFT!$A:$A&Tab_IFT!$C:$C,0),1), INDEX(Tab_IFT!D:D,MATCH(\"France métropolitaine\"&\"Hors herbicides (ancienne méthode traitement de semences)\"&$B19,Tab_IFT!$B:$B&Tab_IFT!$A:$A&Tab_IFT!$C:$C,0),1)), 0)","v":1},{"$f":"_xlfn.IFNA(_xlfn.IFNA(INDEX(Tab_IFT!E:E,MATCH($B$3&\"Hors herbicides (ancienne méthode traitement de semences)\"&$B19,Tab_IFT!$B:$B&Tab_IFT!$A:$A&Tab_IFT!$C:$C,0),1), INDEX(Tab_IFT!E:E,MATCH(\"France métropolitaine\"&\"Hors herbicides (ancienne méthode traitement de semences)\"&$B19,Tab_IFT!$B:$B&Tab_IFT!$A:$A&Tab_IFT!$C:$C,0),1)), 0)","v":1},{"$f":"_xlfn.IFNA(_xlfn.IFNA(INDEX(Tab_IFT!F:F,MATCH($B$3&\"Hors herbicides (ancienne méthode traitement de semences)\"&$B19,Tab_IFT!$B:$B&Tab_IFT!$A:$A&Tab_IFT!$C:$C,0),1), INDEX(Tab_IFT!F:F,MATCH(\"France métropolitaine\"&\"Hors herbicides (ancienne méthode traitement de semences)\"&$B19,Tab_IFT!$B:$B&Tab_IFT!$A:$A&Tab_IFT!$C:$C,0),1)), 0)","v":1},{"$f":"_xlfn.IFNA(_xlfn.IFNA(INDEX(Tab_IFT!G:G,MATCH($B$3&\"Hors herbicides (ancienne méthode traitement de semences)\"&$B19,Tab_IFT!$B:$B&Tab_IFT!$A:$A&Tab_IFT!$C:$C,0),1), INDEX(Tab_IFT!G:G,MATCH(\"France métropolitaine\"&\"Hors herbicides (ancienne méthode traitement de semences)\"&$B19,Tab_IFT!$B:$B&Tab_IFT!$A:$A&Tab_IFT!$C:$C,0),1)), 0)","v":1.21},{"$f":"_xlfn.IFNA(_xlfn.IFNA(INDEX(Tab_IFT!H:H,MATCH($B$3&\"Hors herbicides (ancienne méthode traitement de semences)\"&$B19,Tab_IFT!$B:$B&Tab_IFT!$A:$A&Tab_IFT!$C:$C,0),1), INDEX(Tab_IFT!H:H,MATCH(\"France métropolitaine\"&\"Hors herbicides (ancienne méthode traitement de semences)\"&$B19,Tab_IFT!$B:$B&Tab_IFT!$A:$A&Tab_IFT!$C:$C,0),1)), 0)","v":1.58},{"$f":"_xlfn.IFNA(_xlfn.IFNA(INDEX(Tab_IFT!I:I,MATCH($B$3&\"Hors herbicides (ancienne méthode traitement de semences)\"&$B19,Tab_IFT!$B:$B&Tab_IFT!$A:$A&Tab_IFT!$C:$C,0),1), INDEX(Tab_IFT!I:I,MATCH(\"France métropolitaine\"&\"Hors herbicides (ancienne méthode traitement de semences)\"&$B19,Tab_IFT!$B:$B&Tab_IFT!$A:$A&Tab_IFT!$C:$C,0),1)), 0)","v":1.66},{"$f":"_xlfn.IFNA(_xlfn.IFNA(INDEX(Tab_IFT!J:J,MATCH($B$3&\"Hors herbicides (ancienne méthode traitement de semences)\"&$B19,Tab_IFT!$B:$B&Tab_IFT!$A:$A&Tab_IFT!$C:$C,0),1), INDEX(Tab_IFT!J:J,MATCH(\"France métropolitaine\"&\"Hors herbicides (ancienne méthode traitement de semences)\"&$B19,Tab_IFT!$B:$B&Tab_IFT!$A:$A&Tab_IFT!$C:$C,0),1)), 0)","v":1.78},{"$f":"IF(AND((R19=INDEX(Tab_IFT!I:I,MATCH(\"France métropolitaine\"&\"Hors herbicides (ancienne méthode traitement de semences)\"&$B19,Tab_IFT!$B:$B&Tab_IFT!$A:$A&Tab_IFT!$C:$C,0),1)),(S19=INDEX(Tab_IFT!J:J,MATCH(\"France métropolitaine\"&\"Hors herbicides (ancienne méthode traitement de semences)\"&$B19,Tab_IFT!$B:$B&Tab_IFT!$A:$A&Tab_IFT!$C:$C,0),1))), \" → Valeurs nationales utilisées\",\"\")","v":""}]
[null,"Betterave sucrière",563,{"$f":"_xlfn.IFNA(INDEX(Tab_N!C:C,MATCH($B$3&$B20,Tab_N!$A:$A&Tab_N!$B:$B,0),1), INDEX(Tab_N!C:C,MATCH(\"France\"&$B20,Tab_N!$A:$A&Tab_N!$B:$B,0),1))","v":82.3},{"$f":"_xlfn.IFNA(_xlfn.IFNA(INDEX(Tab_IFT!D:D,MATCH($B$3&\"Herbicides\"&$B20,Tab_IFT!$B:$B&Tab_IFT!$A:$A&Tab_IFT!$C:$C,0),1), INDEX(Tab_IFT!D:D,MATCH(\"France métropolitaine\"&\"Herbicides\"&$B20,Tab_IFT!$B:$B&Tab_IFT!$A:$A&Tab_IFT!$C:$C,0),1)), 0)","v":1.51},{"$f":"_xlfn.IFNA(_xlfn.IFNA(INDEX(Tab_IFT!E:E,MATCH($B$3&\"Herbicides\"&$B20,Tab_IFT!$B:$B&Tab_IFT!$A:$A&Tab_IFT!$C:$C,0),1), INDEX(Tab_IFT!E:E,MATCH(\"France métropolitaine\"&\"Herbicides\"&$B20,Tab_IFT!$B:$B&Tab_IFT!$A:$A&Tab_IFT!$C:$C,0),1)), 0)","v":1.82},{"$f":"_xlfn.IFNA(_xlfn.IFNA(INDEX(Tab_IFT!F:F,MATCH($B$3&\"Herbicides\"&$B20,Tab_IFT!$B:$B&Tab_IFT!$A:$A&Tab_IFT!$C:$C,0),1), INDEX(Tab_IFT!F:F,MATCH(\"France métropolitaine\"&\"Herbicides\"&$B20,Tab_IFT!$B:$B&Tab_IFT!$A:$A&Tab_IFT!$C:$C,0),1)), 0)","v":2.0699999999999998},{"$f":"_xlfn.IFNA(_xlfn.IFNA(INDEX(Tab_IFT!G:G,MATCH($B$3&\"Herbicides\"&$B20,Tab_IFT!$B:$B&Tab_IFT!$A:$A&Tab_IFT!$C:$C,0),1), INDEX(Tab_IFT!G:G,MATCH(\"France métropolitaine\"&\"Herbicides\"&$B20,Tab_IFT!$B:$B&Tab_IFT!$A:$A&Tab_IFT!$C:$C,0),1)), 0)","v":2.33},{"$f":"_xlfn.IFNA(_xlfn.IFNA(INDEX(Tab_IFT!H:H,MATCH($B$3&\"Herbicides\"&$B20,Tab_IFT!$B:$B&Tab_IFT!$A:$A&Tab_IFT!$C:$C,0),1), INDEX(Tab_IFT!H:H,MATCH(\"France métropolitaine\"&\"Herbicides\"&$B20,Tab_IFT!$B:$B&Tab_IFT!$A:$A&Tab_IFT!$C:$C,0),1)), 0)","v":2.5299999999999998},{"$f":"_xlfn.IFNA(_xlfn.IFNA(INDEX(Tab_IFT!I:I,MATCH($B$3&\"Herbicides\"&$B20,Tab_IFT!$B:$B&Tab_IFT!$A:$A&Tab_IFT!$C:$C,0),1), INDEX(Tab_IFT!I:I,MATCH(\"France métropolitaine\"&\"Herbicides\"&$B20,Tab_IFT!$B:$B&Tab_IFT!$A:$A&Tab_IFT!$C:$C,0),1)), 0)","v":2.79},{"$f":"_xlfn.IFNA(_xlfn.IFNA(INDEX(Tab_IFT!J:J,MATCH($B$3&\"Herbicides\"&$B20,Tab_IFT!$B:$B&Tab_IFT!$A:$A&Tab_IFT!$C:$C,0),1), INDEX(Tab_IFT!J:J,MATCH(\"France métropolitaine\"&\"Herbicides\"&$B20,Tab_IFT!$B:$B&Tab_IFT!$A:$A&Tab_IFT!$C:$C,0),1)), 0)","v":3.05},{"$f":"IF(AND((K20=INDEX(Tab_IFT!J:J,MATCH(\"France métropolitaine\"&\"Herbicides\"&$B20,Tab_IFT!$B:$B&Tab_IFT!$A:$A&Tab_IFT!$C:$C,0),1)),(J20=INDEX(Tab_IFT!I:I,MATCH(\"France métropolitaine\"&\"Herbicides\"&$B20,Tab_IFT!$B:$B&Tab_IFT!$A:$A&Tab_IFT!$C:$C,0),1))), \" → Valeurs nationales utilisées\",\"\")","v":" → Valeurs nationales utilisées"},{"$f":"_xlfn.IFNA(_xlfn.IFNA(INDEX(Tab_IFT!D:D,MATCH($B$3&\"Hors herbicides (ancienne méthode traitement de semences)\"&$B20,Tab_IFT!$B:$B&Tab_IFT!$A:$A&Tab_IFT!$C:$C,0),1), INDEX(Tab_IFT!D:D,MATCH(\"France métropolitaine\"&\"Hors herbicides (ancienne méthode traitement de semences)\"&$B20,Tab_IFT!$B:$B&Tab_IFT!$A:$A&Tab_IFT!$C:$C,0),1)), 0)","v":1.52},{"$f":"_xlfn.IFNA(_xlfn.IFNA(INDEX(Tab_IFT!E:E,MATCH($B$3&\"Hors herbicides (ancienne méthode traitement de semences)\"&$B20,Tab_IFT!$B:$B&Tab_IFT!$A:$A&Tab_IFT!$C:$C,0),1), INDEX(Tab_IFT!E:E,MATCH(\"France métropolitaine\"&\"Hors herbicides (ancienne méthode traitement de semences)\"&$B20,Tab_IFT!$B:$B&Tab_IFT!$A:$A&Tab_IFT!$C:$C,0),1)), 0)","v":1.94},{"$f":"_xlfn.IFNA(_xlfn.IFNA(INDEX(Tab_IFT!F:F,MATCH($B$3&\"Hors herbicides (ancienne méthode traitement de semences)\"&$B20,Tab_IFT!$B:$B&Tab_IFT!$A:$A&Tab_IFT!$C:$C,0),1), INDEX(Tab_IFT!F:F,MATCH(\"France métropolitaine\"&\"Hors herbicides (ancienne méthode traitement de semences)\"&$B20,Tab_IFT!$B:$B&Tab_IFT!$A:$A&Tab_IFT!$C:$C,0),1)), 0)","v":2.04},{"$f":"_xlfn.IFNA(_xlfn.IFNA(INDEX(Tab_IFT!G:G,MATCH($B$3&\"Hors herbicides (ancienne méthode traitement de semences)\"&$B20,Tab_IFT!$B:$B&Tab_IFT!$A:$A&Tab_IFT!$C:$C,0),1), INDEX(Tab_IFT!G:G,MATCH(\"France métropolitaine\"&\"Hors herbicides (ancienne méthode traitement de semences)\"&$B20,Tab_IFT!$B:$B&Tab_IFT!$A:$A&Tab_IFT!$C:$C,0),1)), 0)","v":2.2000000000000002},{"$f":"_xlfn.IFNA(_xlfn.IFNA(INDEX(Tab_IFT!H:H,MATCH($B$3&\"Hors herbicides (ancienne méthode traitement de semences)\"&$B20,Tab_IFT!$B:$B&Tab_IFT!$A:$A&Tab_IFT!$C:$C,0),1), INDEX(Tab_IFT!H:H,MATCH(\"France métropolitaine\"&\"Hors herbicides (ancienne méthode traitement de semences)\"&$B20,Tab_IFT!$B:$B&Tab_IFT!$A:$A&Tab_IFT!$C:$C,0),1)), 0)","v":2.6},{"$f":"_xlfn.IFNA(_xlfn.IFNA(INDEX(Tab_IFT!I:I,MATCH($B$3&\"Hors herbicides (ancienne méthode traitement de semences)\"&$B20,Tab_IFT!$B:$B&Tab_IFT!$A:$A&Tab_IFT!$C:$C,0),1), INDEX(Tab_IFT!I:I,MATCH(\"France métropolitaine\"&\"Hors herbicides (ancienne méthode traitement de semences)\"&$B20,Tab_IFT!$B:$B&Tab_IFT!$A:$A&Tab_IFT!$C:$C,0),1)), 0)","v":2.84},{"$f":"_xlfn.IFNA(_xlfn.IFNA(INDEX(Tab_IFT!J:J,MATCH($B$3&\"Hors herbicides (ancienne méthode traitement de semences)\"&$B20,Tab_IFT!$B:$B&Tab_IFT!$A:$A&Tab_IFT!$C:$C,0),1), INDEX(Tab_IFT!J:J,MATCH(\"France métropolitaine\"&\"Hors herbicides (ancienne méthode traitement de semences)\"&$B20,Tab_IFT!$B:$B&Tab_IFT!$A:$A&Tab_IFT!$C:$C,0),1)), 0)","v":3.06},{"$f":"IF(AND((R20=INDEX(Tab_IFT!I:I,MATCH(\"France métropolitaine\"&\"Hors herbicides (ancienne méthode traitement de semences)\"&$B20,Tab_IFT!$B:$B&Tab_IFT!$A:$A&Tab_IFT!$C:$C,0),1)),(S20=INDEX(Tab_IFT!J:J,MATCH(\"France métropolitaine\"&\"Hors herbicides (ancienne méthode traitement de semences)\"&$B20,Tab_IFT!$B:$B&Tab_IFT!$A:$A&Tab_IFT!$C:$C,0),1))), \" → Valeurs nationales utilisées\",\"\")","v":" → Valeurs nationales utilisées"}]
[null,"Féverole",651,{"$f":"_xlfn.IFNA(INDEX(Tab_N!C:C,MATCH($B$3&$B21,Tab_N!$A:$A&Tab_N!$B:$B,0),1), INDEX(Tab_N!C:C,MATCH(\"France\"&$B21,Tab_N!$A:$A&Tab_N!$B:$B,0),1))","v":1.7},{"$f":"_xlfn.IFNA(_xlfn.IFNA(INDEX(Tab_IFT!D:D,MATCH($B$3&\"Herbicides\"&$B21,Tab_IFT!$B:$B&Tab_IFT!$A:$A&Tab_IFT!$C:$C,0),1), INDEX(Tab_IFT!D:D,MATCH(\"France métropolitaine\"&\"Herbicides\"&$B21,Tab_IFT!$B:$B&Tab_IFT!$A:$A&Tab_IFT!$C:$C,0),1)), 0)","v":0},{"$f":"_xlfn.IFNA(_xlfn.IFNA(INDEX(Tab_IFT!E:E,MATCH($B$3&\"Herbicides\"&$B21,Tab_IFT!$B:$B&Tab_IFT!$A:$A&Tab_IFT!$C:$C,0),1), INDEX(Tab_IFT!E:E,MATCH(\"France métropolitaine\"&\"Herbicides\"&$B21,Tab_IFT!$B:$B&Tab_IFT!$A:$A&Tab_IFT!$C:$C,0),1)), 0)","v":0},{"$f":"_xlfn.IFNA(_xlfn.IFNA(INDEX(Tab_IFT!F:F,MATCH($B$3&\"Herbicides\"&$B21,Tab_IFT!$B:$B&Tab_IFT!$A:$A&Tab_IFT!$C:$C,0),1), INDEX(Tab_IFT!F:F,MATCH(\"France métropolitaine\"&\"Herbicides\"&$B21,Tab_IFT!$B:$B&Tab_IFT!$A:$A&Tab_IFT!$C:$C,0),1)), 0)","v":0.67},{"$f":"_xlfn.IFNA(_xlfn.IFNA(INDEX(Tab_IFT!G:G,MATCH($B$3&\"Herbicides\"&$B21,Tab_IFT!$B:$B&Tab_IFT!$A:$A&Tab_IFT!$C:$C,0),1), INDEX(Tab_IFT!G:G,MATCH(\"France métropolitaine\"&\"Herbicides\"&$B21,Tab_IFT!$B:$B&Tab_IFT!$A:$A&Tab_IFT!$C:$C,0),1)), 0)","v":0.92},{"$f":"_xlfn.IFNA(_xlfn.IFNA(INDEX(Tab_IFT!H:H,MATCH($B$3&\"Herbicides\"&$B21,Tab_IFT!$B:$B&Tab_IFT!$A:$A&Tab_IFT!$C:$C,0),1), INDEX(Tab_IFT!H:H,MATCH(\"France métropolitaine\"&\"Herbicides\"&$B21,Tab_IFT!$B:$B&Tab_IFT!$A:$A&Tab_IFT!$C:$C,0),1)), 0)","v":1.1299999999999999},{"$f":"_xlfn.IFNA(_xlfn.IFNA(INDEX(Tab_IFT!I:I,MATCH($B$3&\"Herbicides\"&$B21,Tab_IFT!$B:$B&Tab_IFT!$A:$A&Tab_IFT!$C:$C,0),1), INDEX(Tab_IFT!I:I,MATCH(\"France métropolitaine\"&\"Herbicides\"&$B21,Tab_IFT!$B:$B&Tab_IFT!$A:$A&Tab_IFT!$C:$C,0),1)), 0)","v":1.3},{"$f":"_xlfn.IFNA(_xlfn.IFNA(INDEX(Tab_IFT!J:J,MATCH($B$3&\"Herbicides\"&$B21,Tab_IFT!$B:$B&Tab_IFT!$A:$A&Tab_IFT!$C:$C,0),1), INDEX(Tab_IFT!J:J,MATCH(\"France métropolitaine\"&\"Herbicides\"&$B21,Tab_IFT!$B:$B&Tab_IFT!$A:$A&Tab_IFT!$C:$C,0),1)), 0)","v":1.54},{"$f":"IF(AND((K21=INDEX(Tab_IFT!J:J,MATCH(\"France métropolitaine\"&\"Herbicides\"&$B21,Tab_IFT!$B:$B&Tab_IFT!$A:$A&Tab_IFT!$C:$C,0),1)),(J21=INDEX(Tab_IFT!I:I,MATCH(\"France métropolitaine\"&\"Herbicides\"&$B21,Tab_IFT!$B:$B&Tab_IFT!$A:$A&Tab_IFT!$C:$C,0),1))), \" → Valeurs nationales utilisées\",\"\")","v":" → Valeurs nationales utilisées"},{"$f":"_xlfn.IFNA(_xlfn.IFNA(INDEX(Tab_IFT!D:D,MATCH($B$3&\"Hors herbicides (ancienne méthode traitement de semences)\"&$B21,Tab_IFT!$B:$B&Tab_IFT!$A:$A&Tab_IFT!$C:$C,0),1), INDEX(Tab_IFT!D:D,MATCH(\"France métropolitaine\"&\"Hors herbicides (ancienne méthode traitement de semences)\"&$B21,Tab_IFT!$B:$B&Tab_IFT!$A:$A&Tab_IFT!$C:$C,0),1)), 0)","v":0},{"$f":"_xlfn.IFNA(_xlfn.IFNA(INDEX(Tab_IFT!E:E,MATCH($B$3&\"Hors herbicides (ancienne méthode traitement de semences)\"&$B21,Tab_IFT!$B:$B&Tab_IFT!$A:$A&Tab_IFT!$C:$C,0),1), INDEX(Tab_IFT!E:E,MATCH(\"France métropolitaine\"&\"Hors herbicides (ancienne méthode traitement de semences)\"&$B21,Tab_IFT!$B:$B&Tab_IFT!$A:$A&Tab_IFT!$C:$C,0),1)), 0)","v":0},{"$f":"_xlfn.IFNA(_xlfn.IFNA(INDEX(Tab_IFT!F:F,MATCH($B$3&\"Hors herbicides (ancienne méthode traitement de semences)\"&$B21,Tab_IFT!$B:$B&Tab_IFT!$A:$A&Tab_IFT!$C:$C,0),1), INDEX(Tab_IFT!F:F,MATCH(\"France métropolitaine\"&\"Hors herbicides (ancienne méthode traitement de semences)\"&$B21,Tab_IFT!$B:$B&Tab_IFT!$A:$A&Tab_IFT!$C:$C,0),1)), 0)","v":0.75},{"$f":"_xlfn.IFNA(_xlfn.IFNA(INDEX(Tab_IFT!G:G,MATCH($B$3&\"Hors herbicides (ancienne méthode traitement de semences)\"&$B21,Tab_IFT!$B:$B&Tab_IFT!$A:$A&Tab_IFT!$C:$C,0),1), INDEX(Tab_IFT!G:G,MATCH(\"France métropolitaine\"&\"Hors herbicides (ancienne méthode traitement de semences)\"&$B21,Tab_IFT!$B:$B&Tab_IFT!$A:$A&Tab_IFT!$C:$C,0),1)), 0)","v":1.24},{"$f":"_xlfn.IFNA(_xlfn.IFNA(INDEX(Tab_IFT!H:H,MATCH($B$3&\"Hors herbicides (ancienne méthode traitement de semences)\"&$B21,Tab_IFT!$B:$B&Tab_IFT!$A:$A&Tab_IFT!$C:$C,0),1), INDEX(Tab_IFT!H:H,MATCH(\"France métropolitaine\"&\"Hors herbicides (ancienne méthode traitement de semences)\"&$B21,Tab_IFT!$B:$B&Tab_IFT!$A:$A&Tab_IFT!$C:$C,0),1)), 0)","v":1.86},{"$f":"_xlfn.IFNA(_xlfn.IFNA(INDEX(Tab_IFT!I:I,MATCH($B$3&\"Hors herbicides (ancienne méthode traitement de semences)\"&$B21,Tab_IFT!$B:$B&Tab_IFT!$A:$A&Tab_IFT!$C:$C,0),1), INDEX(Tab_IFT!I:I,MATCH(\"France métropolitaine\"&\"Hors herbicides (ancienne méthode traitement de semences)\"&$B21,Tab_IFT!$B:$B&Tab_IFT!$A:$A&Tab_IFT!$C:$C,0),1)), 0)","v":2.4300000000000002},{"$f":"_xlfn.IFNA(_xlfn.IFNA(INDEX(Tab_IFT!J:J,MATCH($B$3&\"Hors herbicides (ancienne méthode traitement de semences)\"&$B21,Tab_IFT!$B:$B&Tab_IFT!$A:$A&Tab_IFT!$C:$C,0),1), INDEX(Tab_IFT!J:J,MATCH(\"France métropolitaine\"&\"Hors herbicides (ancienne méthode traitement de semences)\"&$B21,Tab_IFT!$B:$B&Tab_IFT!$A:$A&Tab_IFT!$C:$C,0),1)), 0)","v":2.95},{"$f":"IF(AND((R21=INDEX(Tab_IFT!I:I,MATCH(\"France métropolitaine\"&\"Hors herbicides (ancienne méthode traitement de semences)\"&$B21,Tab_IFT!$B:$B&Tab_IFT!$A:$A&Tab_IFT!$C:$C,0),1)),(S21=INDEX(Tab_IFT!J:J,MATCH(\"France métropolitaine\"&\"Hors herbicides (ancienne méthode traitement de semences)\"&$B21,Tab_IFT!$B:$B&Tab_IFT!$A:$A&Tab_IFT!$C:$C,0),1))), \" → Valeurs nationales utilisées\",\"\")","v":" → Valeurs nationales utilisées"}]
[null,"Soja",3165,{"$f":"_xlfn.IFNA(INDEX(Tab_N!C:C,MATCH($B$3&$B22,Tab_N!$A:$A&Tab_N!$B:$B,0),1), INDEX(Tab_N!C:C,MATCH(\"France\"&$B22,Tab_N!$A:$A&Tab_N!$B:$B,0),1))","v":2.7},{"$f":"_xlfn.IFNA(_xlfn.IFNA(INDEX(Tab_IFT!D:D,MATCH($B$3&\"Herbicides\"&$B22,Tab_IFT!$B:$B&Tab_IFT!$A:$A&Tab_IFT!$C:$C,0),1), INDEX(Tab_IFT!D:D,MATCH(\"France métropolitaine\"&\"Herbicides\"&$B22,Tab_IFT!$B:$B&Tab_IFT!$A:$A&Tab_IFT!$C:$C,0),1)), 0)","v":0},{"$f":"_xlfn.IFNA(_xlfn.IFNA(INDEX(Tab_IFT!E:E,MATCH($B$3&\"Herbicides\"&$B22,Tab_IFT!$B:$B&Tab_IFT!$A:$A&Tab_IFT!$C:$C,0),1), INDEX(Tab_IFT!E:E,MATCH(\"France métropolitaine\"&\"Herbicides\"&$B22,Tab_IFT!$B:$B&Tab_IFT!$A:$A&Tab_IFT!$C:$C,0),1)), 0)","v":0.64},{"$f":"_xlfn.IFNA(_xlfn.IFNA(INDEX(Tab_IFT!F:F,MATCH($B$3&\"Herbicides\"&$B22,Tab_IFT!$B:$B&Tab_IFT!$A:$A&Tab_IFT!$C:$C,0),1), INDEX(Tab_IFT!F:F,MATCH(\"France métropolitaine\"&\"Herbicides\"&$B22,Tab_IFT!$B:$B&Tab_IFT!$A:$A&Tab_IFT!$C:$C,0),1)), 0)","v":1.19},{"$f":"_xlfn.IFNA(_xlfn.IFNA(INDEX(Tab_IFT!G:G,MATCH($B$3&\"Herbicides\"&$B22,Tab_IFT!$B:$B&Tab_IFT!$A:$A&Tab_IFT!$C:$C,0),1), INDEX(Tab_IFT!G:G,MATCH(\"France métropolitaine\"&\"Herbicides\"&$B22,Tab_IFT!$B:$B&Tab_IFT!$A:$A&Tab_IFT!$C:$C,0),1)), 0)","v":1.48},{"$f":"_xlfn.IFNA(_xlfn.IFNA(INDEX(Tab_IFT!H:H,MATCH($B$3&\"Herbicides\"&$B22,Tab_IFT!$B:$B&Tab_IFT!$A:$A&Tab_IFT!$C:$C,0),1), INDEX(Tab_IFT!H:H,MATCH(\"France métropolitaine\"&\"Herbicides\"&$B22,Tab_IFT!$B:$B&Tab_IFT!$A:$A&Tab_IFT!$C:$C,0),1)), 0)","v":1.75},{"$f":"_xlfn.IFNA(_xlfn.IFNA(INDEX(Tab_IFT!I:I,MATCH($B$3&\"Herbicides\"&$B22,Tab_IFT!$B:$B&Tab_IFT!$A:$A&Tab_IFT!$C:$C,0),1), INDEX(Tab_IFT!I:I,MATCH(\"France métropolitaine\"&\"Herbicides\"&$B22,Tab_IFT!$B:$B&Tab_IFT!$A:$A&Tab_IFT!$C:$C,0),1)), 0)","v":1.87},{"$f":"_xlfn.IFNA(_xlfn.IFNA(INDEX(Tab_IFT!J:J,MATCH($B$3&\"Herbicides\"&$B22,Tab_IFT!$B:$B&Tab_IFT!$A:$A&Tab_IFT!$C:$C,0),1), INDEX(Tab_IFT!J:J,MATCH(\"France métropolitaine\"&\"Herbicides\"&$B22,Tab_IFT!$B:$B&Tab_IFT!$A:$A&Tab_IFT!$C:$C,0),1)), 0)","v":2.0099999999999998},{"$f":"IF(AND((K22=INDEX(Tab_IFT!J:J,MATCH(\"France métropolitaine\"&\"Herbicides\"&$B22,Tab_IFT!$B:$B&Tab_IFT!$A:$A&Tab_IFT!$C:$C,0),1)),(J22=INDEX(Tab_IFT!I:I,MATCH(\"France métropolitaine\"&\"Herbicides\"&$B22,Tab_IFT!$B:$B&Tab_IFT!$A:$A&Tab_IFT!$C:$C,0),1))), \" → Valeurs nationales utilisées\",\"\")","v":" → Valeurs nationales utilisées"},{"$f":"_xlfn.IFNA(_xlfn.IFNA(INDEX(Tab_IFT!D:D,MATCH($B$3&\"Hors herbicides (ancienne méthode traitement de semences)\"&$B22,Tab_IFT!$B:$B&Tab_IFT!$A:$A&Tab_IFT!$C:$C,0),1), INDEX(Tab_IFT!D:D,MATCH(\"France métropolitaine\"&\"Hors herbicides (ancienne méthode traitement de semences)\"&$B22,Tab_IFT!$B:$B&Tab_IFT!$A:$A&Tab_IFT!$C:$C,0),1)), 0)","v":0},{"$f":"_xlfn.IFNA(_xlfn.IFNA(INDEX(Tab_IFT!E:E,MATCH($B$3&\"Hors herbicides (ancienne méthode traitement de semences)\"&$B22,Tab_IFT!$B:$B&Tab_IFT!$A:$A&Tab_IFT!$C:$C,0),1), INDEX(Tab_IFT!E:E,MATCH(\"France métropolitaine\"&\"Hors herbicides (ancienne méthode traitement de semences)\"&$B22,Tab_IFT!$B:$B&Tab_IFT!$A:$A&Tab_IFT!$C:$C,0),1)), 0)","v":0},{"$f":"_xlfn.IFNA(_xlfn.IFNA(INDEX(Tab_IFT!F:F,MATCH($B$3&\"Hors herbicides (ancienne méthode traitement de semences)\"&$B22,Tab_IFT!$B:$B&Tab_IFT!$A:$A&Tab_IFT!$C:$C,0),1), INDEX(Tab_IFT!F:F,MATCH(\"France métropolitaine\"&\"Hors herbicides (ancienne méthode traitement de semences)\"&$B22,Tab_IFT!$B:$B&Tab_IFT!$A:$A&Tab_IFT!$C:$C,0),1)), 0)","v":0},{"$f":"_xlfn.IFNA(_xlfn.IFNA(INDEX(Tab_IFT!G:G,MATCH($B$3&\"Hors herbicides (ancienne méthode traitement de semences)\"&$B22,Tab_IFT!$B:$B&Tab_IFT!$A:$A&Tab_IFT!$C:$C,0),1), INDEX(Tab_IFT!G:G,MATCH(\"France métropolitaine\"&\"Hors herbicides (ancienne méthode traitement de semences)\"&$B22,Tab_IFT!$B:$B&Tab_IFT!$A:$A&Tab_IFT!$C:$C,0),1)), 0)","v":0},{"$f":"_xlfn.IFNA(_xlfn.IFNA(INDEX(Tab_IFT!H:H,MATCH($B$3&\"Hors herbicides (ancienne méthode traitement de semences)\"&$B22,Tab_IFT!$B:$B&Tab_IFT!$A:$A&Tab_IFT!$C:$C,0),1), INDEX(Tab_IFT!H:H,MATCH(\"France métropolitaine\"&\"Hors herbicides (ancienne méthode traitement de semences)\"&$B22,Tab_IFT!$B:$B&Tab_IFT!$A:$A&Tab_IFT!$C:$C,0),1)), 0)","v":0},{"$f":"_xlfn.IFNA(_xlfn.IFNA(INDEX(Tab_IFT!I:I,MATCH($B$3&\"Hors herbicides (ancienne méthode traitement de semences)\"&$B22,Tab_IFT!$B:$B&Tab_IFT!$A:$A&Tab_IFT!$C:$C,0),1), INDEX(Tab_IFT!I:I,MATCH(\"France métropolitaine\"&\"Hors herbicides (ancienne méthode traitement de semences)\"&$B22,Tab_IFT!$B:$B&Tab_IFT!$A:$A&Tab_IFT!$C:$C,0),1)), 0)","v":0},{"$f":"_xlfn.IFNA(_xlfn.IFNA(INDEX(Tab_IFT!J:J,MATCH($B$3&\"Hors herbicides (ancienne méthode traitement de semences)\"&$B22,Tab_IFT!$B:$B&Tab_IFT!$A:$A&Tab_IFT!$C:$C,0),1), INDEX(Tab_IFT!J:J,MATCH(\"France métropolitaine\"&\"Hors herbicides (ancienne méthode traitement de semences)\"&$B22,Tab_IFT!$B:$B&Tab_IFT!$A:$A&Tab_IFT!$C:$C,0),1)), 0)","v":0},{"$f":"IF(AND((R22=INDEX(Tab_IFT!I:I,MATCH(\"France métropolitaine\"&\"Hors herbicides (ancienne méthode traitement de semences)\"&$B22,Tab_IFT!$B:$B&Tab_IFT!$A:$A&Tab_IFT!$C:$C,0),1)),(S22=INDEX(Tab_IFT!J:J,MATCH(\"France métropolitaine\"&\"Hors herbicides (ancienne méthode traitement de semences)\"&$B22,Tab_IFT!$B:$B&Tab_IFT!$A:$A&Tab_IFT!$C:$C,0),1))), \" → Valeurs nationales utilisées\",\"\")","v":" → Valeurs nationales utilisées"}]
[null,"Lin fibre",61,{"$f":"_xlfn.IFNA(INDEX(Tab_N!C:C,MATCH($B$3&$B23,Tab_N!$A:$A&Tab_N!$B:$B,0),1), INDEX(Tab_N!C:C,MATCH(\"France\"&$B23,Tab_N!$A:$A&Tab_N!$B:$B,0),1))","v":24.5},{"$f":"_xlfn.IFNA(_xlfn.IFNA(INDEX(Tab_IFT!D:D,MATCH($B$3&\"Herbicides\"&$B23,Tab_IFT!$B:$B&Tab_IFT!$A:$A&Tab_IFT!$C:$C,0),1), INDEX(Tab_IFT!D:D,MATCH(\"France métropolitaine\"&\"Herbicides\"&$B23,Tab_IFT!$B:$B&Tab_IFT!$A:$A&Tab_IFT!$C:$C,0),1)), 0)","v":1.05},{"$f":"_xlfn.IFNA(_xlfn.IFNA(INDEX(Tab_IFT!E:E,MATCH($B$3&\"Herbicides\"&$B23,Tab_IFT!$B:$B&Tab_IFT!$A:$A&Tab_IFT!$C:$C,0),1), INDEX(Tab_IFT!E:E,MATCH(\"France métropolitaine\"&\"Herbicides\"&$B23,Tab_IFT!$B:$B&Tab_IFT!$A:$A&Tab_IFT!$C:$C,0),1)), 0)","v":1.48},{"$f":"_xlfn.IFNA(_xlfn.IFNA(INDEX(Tab_IFT!F:F,MATCH($B$3&\"Herbicides\"&$B23,Tab_IFT!$B:$B&Tab_IFT!$A:$A&Tab_IFT!$C:$C,0),1), INDEX(Tab_IFT!F:F,MATCH(\"France métropolitaine\"&\"Herbicides\"&$B23,Tab_IFT!$B:$B&Tab_IFT!$A:$A&Tab_IFT!$C:$C,0),1)), 0)","v":1.72},{"$f":"_xlfn.IFNA(_xlfn.IFNA(INDEX(Tab_IFT!G:G,MATCH($B$3&\"Herbicides\"&$B23,Tab_IFT!$B:$B&Tab_IFT!$A:$A&Tab_IFT!$C:$C,0),1), INDEX(Tab_IFT!G:G,MATCH(\"France métropolitaine\"&\"Herbicides\"&$B23,Tab_IFT!$B:$B&Tab_IFT!$A:$A&Tab_IFT!$C:$C,0),1)), 0)","v":1.85},{"$f":"_xlfn.IFNA(_xlfn.IFNA(INDEX(Tab_IFT!H:H,MATCH($B$3&\"Herbicides\"&$B23,Tab_IFT!$B:$B&Tab_IFT!$A:$A&Tab_IFT!$C:$C,0),1), INDEX(Tab_IFT!H:H,MATCH(\"France métropolitaine\"&\"Herbicides\"&$B23,Tab_IFT!$B:$B&Tab_IFT!$A:$A&Tab_IFT!$C:$C,0),1)), 0)","v":2.0499999999999998},{"$f":"_xlfn.IFNA(_xlfn.IFNA(INDEX(Tab_IFT!I:I,MATCH($B$3&\"Herbicides\"&$B23,Tab_IFT!$B:$B&Tab_IFT!$A:$A&Tab_IFT!$C:$C,0),1), INDEX(Tab_IFT!I:I,MATCH(\"France métropolitaine\"&\"Herbicides\"&$B23,Tab_IFT!$B:$B&Tab_IFT!$A:$A&Tab_IFT!$C:$C,0),1)), 0)","v":2.36},{"$f":"_xlfn.IFNA(_xlfn.IFNA(INDEX(Tab_IFT!J:J,MATCH($B$3&\"Herbicides\"&$B23,Tab_IFT!$B:$B&Tab_IFT!$A:$A&Tab_IFT!$C:$C,0),1), INDEX(Tab_IFT!J:J,MATCH(\"France métropolitaine\"&\"Herbicides\"&$B23,Tab_IFT!$B:$B&Tab_IFT!$A:$A&Tab_IFT!$C:$C,0),1)), 0)","v":2.5499999999999998},{"$f":"IF(AND((K23=INDEX(Tab_IFT!J:J,MATCH(\"France métropolitaine\"&\"Herbicides\"&$B23,Tab_IFT!$B:$B&Tab_IFT!$A:$A&Tab_IFT!$C:$C,0),1)),(J23=INDEX(Tab_IFT!I:I,MATCH(\"France métropolitaine\"&\"Herbicides\"&$B23,Tab_IFT!$B:$B&Tab_IFT!$A:$A&Tab_IFT!$C:$C,0),1))), \" → Valeurs nationales utilisées\",\"\")","v":" → Valeurs nationales utilisées"},{"$f":"_xlfn.IFNA(_xlfn.IFNA(INDEX(Tab_IFT!D:D,MATCH($B$3&\"Hors herbicides (ancienne méthode traitement de semences)\"&$B23,Tab_IFT!$B:$B&Tab_IFT!$A:$A&Tab_IFT!$C:$C,0),1), INDEX(Tab_IFT!D:D,MATCH(\"France métropolitaine\"&\"Hors herbicides (ancienne méthode traitement de semences)\"&$B23,Tab_IFT!$B:$B&Tab_IFT!$A:$A&Tab_IFT!$C:$C,0),1)), 0)","v":1.69},{"$f":"_xlfn.IFNA(_xlfn.IFNA(INDEX(Tab_IFT!E:E,MATCH($B$3&\"Hors herbicides (ancienne méthode traitement de semences)\"&$B23,Tab_IFT!$B:$B&Tab_IFT!$A:$A&Tab_IFT!$C:$C,0),1), INDEX(Tab_IFT!E:E,MATCH(\"France métropolitaine\"&\"Hors herbicides (ancienne méthode traitement de semences)\"&$B23,Tab_IFT!$B:$B&Tab_IFT!$A:$A&Tab_IFT!$C:$C,0),1)), 0)","v":2},{"$f":"_xlfn.IFNA(_xlfn.IFNA(INDEX(Tab_IFT!F:F,MATCH($B$3&\"Hors herbicides (ancienne méthode traitement de semences)\"&$B23,Tab_IFT!$B:$B&Tab_IFT!$A:$A&Tab_IFT!$C:$C,0),1), INDEX(Tab_IFT!F:F,MATCH(\"France métropolitaine\"&\"Hors herbicides (ancienne méthode traitement de semences)\"&$B23,Tab_IFT!$B:$B&Tab_IFT!$A:$A&Tab_IFT!$C:$C,0),1)), 0)","v":2.29},{"$f":"_xlfn.IFNA(_xlfn.IFNA(INDEX(Tab_IFT!G:G,MATCH($B$3&\"Hors herbicides (ancienne méthode traitement de semences)\"&$B23,Tab_IFT!$B:$B&Tab_IFT!$A:$A&Tab_IFT!$C:$C,0),1), INDEX(Tab_IFT!G:G,MATCH(\"France métropolitaine\"&\"Hors herbicides (ancienne méthode traitement de semences)\"&$B23,Tab_IFT!$B:$B&Tab_IFT!$A:$A&Tab_IFT!$C:$C,0),1)), 0)","v":2.56},{"$f":"_xlfn.IFNA(_xlfn.IFNA(INDEX(Tab_IFT!H:H,MATCH($B$3&\"Hors herbicides (ancienne méthode traitement de semences)\"&$B23,Tab_IFT!$B:$B&Tab_IFT!$A:$A&Tab_IFT!$C:$C,0),1), INDEX(Tab_IFT!H:H,MATCH(\"France métropolitaine\"&\"Hors herbicides (ancienne méthode traitement de semences)\"&$B23,Tab_IFT!$B:$B&Tab_IFT!$A:$A&Tab_IFT!$C:$C,0),1)), 0)","v":2.9},{"$f":"_xlfn.IFNA(_xlfn.IFNA(INDEX(Tab_IFT!I:I,MATCH($B$3&\"Hors herbicides (ancienne méthode traitement de semences)\"&$B23,Tab_IFT!$B:$B&Tab_IFT!$A:$A&Tab_IFT!$C:$C,0),1), INDEX(Tab_IFT!I:I,MATCH(\"France métropolitaine\"&\"Hors herbicides (ancienne méthode traitement de semences)\"&$B23,Tab_IFT!$B:$B&Tab_IFT!$A:$A&Tab_IFT!$C:$C,0),1)), 0)","v":3.26},{"$f":"_xlfn.IFNA(_xlfn.IFNA(INDEX(Tab_IFT!J:J,MATCH($B$3&\"Hors herbicides (ancienne méthode traitement de semences)\"&$B23,Tab_IFT!$B:$B&Tab_IFT!$A:$A&Tab_IFT!$C:$C,0),1), INDEX(Tab_IFT!J:J,MATCH(\"France métropolitaine\"&\"Hors herbicides (ancienne méthode traitement de semences)\"&$B23,Tab_IFT!$B:$B&Tab_IFT!$A:$A&Tab_IFT!$C:$C,0),1)), 0)","v":3.5},{"$f":"IF(AND((R23=INDEX(Tab_IFT!I:I,MATCH(\"France métropolitaine\"&\"Hors herbicides (ancienne méthode traitement de semences)\"&$B23,Tab_IFT!$B:$B&Tab_IFT!$A:$A&Tab_IFT!$C:$C,0),1)),(S23=INDEX(Tab_IFT!J:J,MATCH(\"France métropolitaine\"&\"Hors herbicides (ancienne méthode traitement de semences)\"&$B23,Tab_IFT!$B:$B&Tab_IFT!$A:$A&Tab_IFT!$C:$C,0),1))), \" → Valeurs nationales utilisées\",\"\")","v":" → Valeurs nationales utilisées"}]
[null,"Lin Oléagineux",1365,{"$f":"_xlfn.IFNA(INDEX(Tab_N!C:C,MATCH($B$3&$B24,Tab_N!$A:$A&Tab_N!$B:$B,0),1), INDEX(Tab_N!C:C,MATCH(\"France\"&$B24,Tab_N!$A:$A&Tab_N!$B:$B,0),1))","v":65.599999999999994},{"$f":"_xlfn.IFNA(_xlfn.IFNA(INDEX(Tab_IFT!D:D,MATCH($B$3&\"Herbicides\"&$B24,Tab_IFT!$B:$B&Tab_IFT!$A:$A&Tab_IFT!$C:$C,0),1), INDEX(Tab_IFT!D:D,MATCH(\"France métropolitaine\"&\"Herbicides\"&$B24,Tab_IFT!$B:$B&Tab_IFT!$A:$A&Tab_IFT!$C:$C,0),1)), 0)","v":0},{"$f":"_xlfn.IFNA(_xlfn.IFNA(INDEX(Tab_IFT!E:E,MATCH($B$3&\"Herbicides\"&$B24,Tab_IFT!$B:$B&Tab_IFT!$A:$A&Tab_IFT!$C:$C,0),1), INDEX(Tab_IFT!E:E,MATCH(\"France métropolitaine\"&\"Herbicides\"&$B24,Tab_IFT!$B:$B&Tab_IFT!$A:$A&Tab_IFT!$C:$C,0),1)), 0)","v":0.78},{"$f":"_xlfn.IFNA(_xlfn.IFNA(INDEX(Tab_IFT!F:F,MATCH($B$3&\"Herbicides\"&$B24,Tab_IFT!$B:$B&Tab_IFT!$A:$A&Tab_IFT!$C:$C,0),1), INDEX(Tab_IFT!F:F,MATCH(\"France métropolitaine\"&\"Herbicides\"&$B24,Tab_IFT!$B:$B&Tab_IFT!$A:$A&Tab_IFT!$C:$C,0),1)), 0)","v":1.1100000000000001},{"$f":"_xlfn.IFNA(_xlfn.IFNA(INDEX(Tab_IFT!G:G,MATCH($B$3&\"Herbicides\"&$B24,Tab_IFT!$B:$B&Tab_IFT!$A:$A&Tab_IFT!$C:$C,0),1), INDEX(Tab_IFT!G:G,MATCH(\"France métropolitaine\"&\"Herbicides\"&$B24,Tab_IFT!$B:$B&Tab_IFT!$A:$A&Tab_IFT!$C:$C,0),1)), 0)","v":1.48},{"$f":"_xlfn.IFNA(_xlfn.IFNA(INDEX(Tab_IFT!H:H,MATCH($B$3&\"Herbicides\"&$B24,Tab_IFT!$B:$B&Tab_IFT!$A:$A&Tab_IFT!$C:$C,0),1), INDEX(Tab_IFT!H:H,MATCH(\"France métropolitaine\"&\"Herbicides\"&$B24,Tab_IFT!$B:$B&Tab_IFT!$A:$A&Tab_IFT!$C:$C,0),1)), 0)","v":1.75},{"$f":"_xlfn.IFNA(_xlfn.IFNA(INDEX(Tab_IFT!I:I,MATCH($B$3&\"Herbicides\"&$B24,Tab_IFT!$B:$B&Tab_IFT!$A:$A&Tab_IFT!$C:$C,0),1), INDEX(Tab_IFT!I:I,MATCH(\"France métropolitaine\"&\"Herbicides\"&$B24,Tab_IFT!$B:$B&Tab_IFT!$A:$A&Tab_IFT!$C:$C,0),1)), 0)","v":1.96},{"$f":"_xlfn.IFNA(_xlfn.IFNA(INDEX(Tab_IFT!J:J,MATCH($B$3&\"Herbicides\"&$B24,Tab_IFT!$B:$B&Tab_IFT!$A:$A&Tab_IFT!$C:$C,0),1), INDEX(Tab_IFT!J:J,MATCH(\"France métropolitaine\"&\"Herbicides\"&$B24,Tab_IFT!$B:$B&Tab_IFT!$A:$A&Tab_IFT!$C:$C,0),1)), 0)","v":2.27},{"$f":"IF(AND((K24=INDEX(Tab_IFT!J:J,MATCH(\"France métropolitaine\"&\"Herbicides\"&$B24,Tab_IFT!$B:$B&Tab_IFT!$A:$A&Tab_IFT!$C:$C,0),1)),(J24=INDEX(Tab_IFT!I:I,MATCH(\"France métropolitaine\"&\"Herbicides\"&$B24,Tab_IFT!$B:$B&Tab_IFT!$A:$A&Tab_IFT!$C:$C,0),1))), \" → Valeurs nationales utilisées\",\"\")","v":" → Valeurs nationales utilisées"},{"$f":"_xlfn.IFNA(_xlfn.IFNA(INDEX(Tab_IFT!D:D,MATCH($B$3&\"Hors herbicides (ancienne méthode traitement de semences)\"&$B24,Tab_IFT!$B:$B&Tab_IFT!$A:$A&Tab_IFT!$C:$C,0),1), INDEX(Tab_IFT!D:D,MATCH(\"France métropolitaine\"&\"Hors herbicides (ancienne méthode traitement de semences)\"&$B24,Tab_IFT!$B:$B&Tab_IFT!$A:$A&Tab_IFT!$C:$C,0),1)), 0)","v":0},{"$f":"_xlfn.IFNA(_xlfn.IFNA(INDEX(Tab_IFT!E:E,MATCH($B$3&\"Hors herbicides (ancienne méthode traitement de semences)\"&$B24,Tab_IFT!$B:$B&Tab_IFT!$A:$A&Tab_IFT!$C:$C,0),1), INDEX(Tab_IFT!E:E,MATCH(\"France métropolitaine\"&\"Hors herbicides (ancienne méthode traitement de semences)\"&$B24,Tab_IFT!$B:$B&Tab_IFT!$A:$A&Tab_IFT!$C:$C,0),1)), 0)","v":0.83},{"$f":"_xlfn.IFNA(_xlfn.IFNA(INDEX(Tab_IFT!F:F,MATCH($B$3&\"Hors herbicides (ancienne méthode traitement de semences)\"&$B24,Tab_IFT!$B:$B&Tab_IFT!$A:$A&Tab_IFT!$C:$C,0),1), INDEX(Tab_IFT!F:F,MATCH(\"France métropolitaine\"&\"Hors herbicides (ancienne méthode traitement de semences)\"&$B24,Tab_IFT!$B:$B&Tab_IFT!$A:$A&Tab_IFT!$C:$C,0),1)), 0)","v":1.57},{"$f":"_xlfn.IFNA(_xlfn.IFNA(INDEX(Tab_IFT!G:G,MATCH($B$3&\"Hors herbicides (ancienne méthode traitement de semences)\"&$B24,Tab_IFT!$B:$B&Tab_IFT!$A:$A&Tab_IFT!$C:$C,0),1), INDEX(Tab_IFT!G:G,MATCH(\"France métropolitaine\"&\"Hors herbicides (ancienne méthode traitement de semences)\"&$B24,Tab_IFT!$B:$B&Tab_IFT!$A:$A&Tab_IFT!$C:$C,0),1)), 0)","v":2},{"$f":"_xlfn.IFNA(_xlfn.IFNA(INDEX(Tab_IFT!H:H,MATCH($B$3&\"Hors herbicides (ancienne méthode traitement de semences)\"&$B24,Tab_IFT!$B:$B&Tab_IFT!$A:$A&Tab_IFT!$C:$C,0),1), INDEX(Tab_IFT!H:H,MATCH(\"France métropolitaine\"&\"Hors herbicides (ancienne méthode traitement de semences)\"&$B24,Tab_IFT!$B:$B&Tab_IFT!$A:$A&Tab_IFT!$C:$C,0),1)), 0)","v":2.27},{"$f":"_xlfn.IFNA(_xlfn.IFNA(INDEX(Tab_IFT!I:I,MATCH($B$3&\"Hors herbicides (ancienne méthode traitement de semences)\"&$B24,Tab_IFT!$B:$B&Tab_IFT!$A:$A&Tab_IFT!$C:$C,0),1), INDEX(Tab_IFT!I:I,MATCH(\"France métropolitaine\"&\"Hors herbicides (ancienne méthode traitement de semences)\"&$B24,Tab_IFT!$B:$B&Tab_IFT!$A:$A&Tab_IFT!$C:$C,0),1)), 0)","v":2.6},{"$f":"_xlfn.IFNA(_xlfn.IFNA(INDEX(Tab_IFT!J:J,MATCH($B$3&\"Hors herbicides (ancienne méthode traitement de semences)\"&$B24,Tab_IFT!$B:$B&Tab_IFT!$A:$A&Tab_IFT!$C:$C,0),1), INDEX(Tab_IFT!J:J,MATCH(\"France métropolitaine\"&\"Hors herbicides (ancienne méthode traitement de semences)\"&$B24,Tab_IFT!$B:$B&Tab_IFT!$A:$A&Tab_IFT!$C:$C,0),1)), 0)","v":2.83},{"$f":"IF(AND((R24=INDEX(Tab_IFT!I:I,MATCH(\"France métropolitaine\"&\"Hors herbicides (ancienne méthode traitement de semences)\"&$B24,Tab_IFT!$B:$B&Tab_IFT!$A:$A&Tab_IFT!$C:$C,0),1)),(S24=INDEX(Tab_IFT!J:J,MATCH(\"France métropolitaine\"&\"Hors herbicides (ancienne méthode traitement de semences)\"&$B24,Tab_IFT!$B:$B&Tab_IFT!$A:$A&Tab_IFT!$C:$C,0),1))), \" → Valeurs nationales utilisées\",\"\")","v":" → Valeurs nationales utilisées"}]
[null,"Prairies permanentes",569,{"$f":"_xlfn.IFNA(INDEX(Tab_N!C:C,MATCH($B$3&$B25,Tab_N!$A:$A&Tab_N!$B:$B,0),1), INDEX(Tab_N!C:C,MATCH(\"France\"&$B25,Tab_N!$A:$A&Tab_N!$B:$B,0),1))","v":19.7},"L'IFT des prairies n'est pas calculé",null,null,null,null,null,null,null,"L'IFT des prairies n'est pas calculé"]
[null,"Prairies temporaires",369,{"$f":"_xlfn.IFNA(INDEX(Tab_N!C:C,MATCH($B$3&$B26,Tab_N!$A:$A&Tab_N!$B:$B,0),1), INDEX(Tab_N!C:C,MATCH(\"France\"&$B26,Tab_N!$A:$A&Tab_N!$B:$B,0),1))","v":42}]
[null,"Carotte",531,{"$f":"IFERROR(_xlfn.IFNA(INDEX(Tab_N!C:C,MATCH($B$3&$B27,Tab_N!$A:$A&Tab_N!$B:$B,0),1), INDEX(Tab_N!C:C,MATCH(\"France\"&$B27,Tab_N!$A:$A&Tab_N!$B:$B,0),1)), 0)","v":23},{"$f":"_xlfn.IFNA(_xlfn.IFNA(INDEX(Tab_IFT!D:D,MATCH($B$3&\"Herbicides\"&$B27,Tab_IFT!$B:$B&Tab_IFT!$A:$A&Tab_IFT!$C:$C,0),1), INDEX(Tab_IFT!D:D,MATCH(\"France métropolitaine\"&\"Herbicides\"&$B27,Tab_IFT!$B:$B&Tab_IFT!$A:$A&Tab_IFT!$C:$C,0),1)), 0)","v":1.02},{"$f":"_xlfn.IFNA(_xlfn.IFNA(INDEX(Tab_IFT!E:E,MATCH($B$3&\"Herbicides\"&$B27,Tab_IFT!$B:$B&Tab_IFT!$A:$A&Tab_IFT!$C:$C,0),1), INDEX(Tab_IFT!E:E,MATCH(\"France métropolitaine\"&\"Herbicides\"&$B27,Tab_IFT!$B:$B&Tab_IFT!$A:$A&Tab_IFT!$C:$C,0),1)), 0)","v":1.7},{"$f":"_xlfn.IFNA(_xlfn.IFNA(INDEX(Tab_IFT!F:F,MATCH($B$3&\"Herbicides\"&$B27,Tab_IFT!$B:$B&Tab_IFT!$A:$A&Tab_IFT!$C:$C,0),1), INDEX(Tab_IFT!F:F,MATCH(\"France métropolitaine\"&\"Herbicides\"&$B27,Tab_IFT!$B:$B&Tab_IFT!$A:$A&Tab_IFT!$C:$C,0),1)), 0)","v":2.08},{"$f":"_xlfn.IFNA(_xlfn.IFNA(INDEX(Tab_IFT!G:G,MATCH($B$3&\"Herbicides\"&$B27,Tab_IFT!$B:$B&Tab_IFT!$A:$A&Tab_IFT!$C:$C,0),1), INDEX(Tab_IFT!G:G,MATCH(\"France métropolitaine\"&\"Herbicides\"&$B27,Tab_IFT!$B:$B&Tab_IFT!$A:$A&Tab_IFT!$C:$C,0),1)), 0)","v":2.38},{"$f":"_xlfn.IFNA(_xlfn.IFNA(INDEX(Tab_IFT!H:H,MATCH($B$3&\"Herbicides\"&$B27,Tab_IFT!$B:$B&Tab_IFT!$A:$A&Tab_IFT!$C:$C,0),1), INDEX(Tab_IFT!H:H,MATCH(\"France métropolitaine\"&\"Herbicides\"&$B27,Tab_IFT!$B:$B&Tab_IFT!$A:$A&Tab_IFT!$C:$C,0),1)), 0)","v":2.62},{"$f":"_xlfn.IFNA(_xlfn.IFNA(INDEX(Tab_IFT!I:I,MATCH($B$3&\"Herbicides\"&$B27,Tab_IFT!$B:$B&Tab_IFT!$A:$A&Tab_IFT!$C:$C,0),1), INDEX(Tab_IFT!I:I,MATCH(\"France métropolitaine\"&\"Herbicides\"&$B27,Tab_IFT!$B:$B&Tab_IFT!$A:$A&Tab_IFT!$C:$C,0),1)), 0)","v":3.01},{"$f":"_xlfn.IFNA(_xlfn.IFNA(INDEX(Tab_IFT!J:J,MATCH($B$3&\"Herbicides\"&$B27,Tab_IFT!$B:$B&Tab_IFT!$A:$A&Tab_IFT!$C:$C,0),1), INDEX(Tab_IFT!J:J,MATCH(\"France métropolitaine\"&\"Herbicides\"&$B27,Tab_IFT!$B:$B&Tab_IFT!$A:$A&Tab_IFT!$C:$C,0),1)), 0)","v":3.4},{"$f":"IF(AND((K27=INDEX(Tab_IFT!J:J,MATCH(\"France métropolitaine\"&\"Herbicides\"&$B27,Tab_IFT!$B:$B&Tab_IFT!$A:$A&Tab_IFT!$C:$C,0),1)),(J27=INDEX(Tab_IFT!I:I,MATCH(\"France métropolitaine\"&\"Herbicides\"&$B27,Tab_IFT!$B:$B&Tab_IFT!$A:$A&Tab_IFT!$C:$C,0),1))), \" → Valeurs nationales utilisées\",\"\")","v":" → Valeurs nationales utilisées"},{"$f":"_xlfn.IFNA(_xlfn.IFNA(INDEX(Tab_IFT!D:D,MATCH($B$3&\"Hors herbicides (ancienne méthode traitement de semences)\"&$B27,Tab_IFT!$B:$B&Tab_IFT!$A:$A&Tab_IFT!$C:$C,0),1), INDEX(Tab_IFT!D:D,MATCH(\"France métropolitaine\"&\"Hors herbicides (ancienne méthode traitement de semences)\"&$B27,Tab_IFT!$B:$B&Tab_IFT!$A:$A&Tab_IFT!$C:$C,0),1)), 0)","v":1.33},{"$f":"_xlfn.IFNA(_xlfn.IFNA(INDEX(Tab_IFT!E:E,MATCH($B$3&\"Hors herbicides (ancienne méthode traitement de semences)\"&$B27,Tab_IFT!$B:$B&Tab_IFT!$A:$A&Tab_IFT!$C:$C,0),1), INDEX(Tab_IFT!E:E,MATCH(\"France métropolitaine\"&\"Hors herbicides (ancienne méthode traitement de semences)\"&$B27,Tab_IFT!$B:$B&Tab_IFT!$A:$A&Tab_IFT!$C:$C,0),1)), 0)","v":2.06},{"$f":"_xlfn.IFNA(_xlfn.IFNA(INDEX(Tab_IFT!F:F,MATCH($B$3&\"Hors herbicides (ancienne méthode traitement de semences)\"&$B27,Tab_IFT!$B:$B&Tab_IFT!$A:$A&Tab_IFT!$C:$C,0),1), INDEX(Tab_IFT!F:F,MATCH(\"France métropolitaine\"&\"Hors herbicides (ancienne méthode traitement de semences)\"&$B27,Tab_IFT!$B:$B&Tab_IFT!$A:$A&Tab_IFT!$C:$C,0),1)), 0)","v":2.82},{"$f":"_xlfn.IFNA(_xlfn.IFNA(INDEX(Tab_IFT!G:G,MATCH($B$3&\"Hors herbicides (ancienne méthode traitement de semences)\"&$B27,Tab_IFT!$B:$B&Tab_IFT!$A:$A&Tab_IFT!$C:$C,0),1), INDEX(Tab_IFT!G:G,MATCH(\"France métropolitaine\"&\"Hors herbicides (ancienne méthode traitement de semences)\"&$B27,Tab_IFT!$B:$B&Tab_IFT!$A:$A&Tab_IFT!$C:$C,0),1)), 0)","v":3.78},{"$f":"_xlfn.IFNA(_xlfn.IFNA(INDEX(Tab_IFT!H:H,MATCH($B$3&\"Hors herbicides (ancienne méthode traitement de semences)\"&$B27,Tab_IFT!$B:$B&Tab_IFT!$A:$A&Tab_IFT!$C:$C,0),1), INDEX(Tab_IFT!H:H,MATCH(\"France métropolitaine\"&\"Hors herbicides (ancienne méthode traitement de semences)\"&$B27,Tab_IFT!$B:$B&Tab_IFT!$A:$A&Tab_IFT!$C:$C,0),1)), 0)","v":4.5599999999999996},{"$f":"_xlfn.IFNA(_xlfn.IFNA(INDEX(Tab_IFT!I:I,MATCH($B$3&\"Hors herbicides (ancienne méthode traitement de semences)\"&$B27,Tab_IFT!$B:$B&Tab_IFT!$A:$A&Tab_IFT!$C:$C,0),1), INDEX(Tab_IFT!I:I,MATCH(\"France métropolitaine\"&\"Hors herbicides (ancienne méthode traitement de semences)\"&$B27,Tab_IFT!$B:$B&Tab_IFT!$A:$A&Tab_IFT!$C:$C,0),1)), 0)","v":5.13},{"$f":"_xlfn.IFNA(_xlfn.IFNA(INDEX(Tab_IFT!J:J,MATCH($B$3&\"Hors herbicides (ancienne méthode traitement de semences)\"&$B27,Tab_IFT!$B:$B&Tab_IFT!$A:$A&Tab_IFT!$C:$C,0),1), INDEX(Tab_IFT!J:J,MATCH(\"France métropolitaine\"&\"Hors herbicides (ancienne méthode traitement de semences)\"&$B27,Tab_IFT!$B:$B&Tab_IFT!$A:$A&Tab_IFT!$C:$C,0),1)), 0)","v":5.89},{"$f":"IF(AND((R27=INDEX(Tab_IFT!I:I,MATCH(\"France métropolitaine\"&\"Hors herbicides (ancienne méthode traitement de semences)\"&$B27,Tab_IFT!$B:$B&Tab_IFT!$A:$A&Tab_IFT!$C:$C,0),1)),(S27=INDEX(Tab_IFT!J:J,MATCH(\"France métropolitaine\"&\"Hors herbicides (ancienne méthode traitement de semences)\"&$B27,Tab_IFT!$B:$B&Tab_IFT!$A:$A&Tab_IFT!$C:$C,0),1))), \" → Valeurs nationales utilisées\",\"\")","v":" → Valeurs nationales utilisées"}]
[null,"Chou fleur, Brocoli à jets et Romanesco",61,{"$f":"IFERROR(_xlfn.IFNA(INDEX(Tab_N!C:C,MATCH($B$3&$B28,Tab_N!$A:$A&Tab_N!$B:$B,0),1), INDEX(Tab_N!C:C,MATCH(\"France\"&$B28,Tab_N!$A:$A&Tab_N!$B:$B,0),1)), 0)","v":0},{"$f":"_xlfn.IFNA(_xlfn.IFNA(INDEX(Tab_IFT!D:D,MATCH($B$3&\"Herbicides\"&$B28,Tab_IFT!$B:$B&Tab_IFT!$A:$A&Tab_IFT!$C:$C,0),1), INDEX(Tab_IFT!D:D,MATCH(\"France métropolitaine\"&\"Herbicides\"&$B28,Tab_IFT!$B:$B&Tab_IFT!$A:$A&Tab_IFT!$C:$C,0),1)), 0)","v":0},{"$f":"_xlfn.IFNA(_xlfn.IFNA(INDEX(Tab_IFT!E:E,MATCH($B$3&\"Herbicides\"&$B28,Tab_IFT!$B:$B&Tab_IFT!$A:$A&Tab_IFT!$C:$C,0),1), INDEX(Tab_IFT!E:E,MATCH(\"France métropolitaine\"&\"Herbicides\"&$B28,Tab_IFT!$B:$B&Tab_IFT!$A:$A&Tab_IFT!$C:$C,0),1)), 0)","v":0},{"$f":"_xlfn.IFNA(_xlfn.IFNA(INDEX(Tab_IFT!F:F,MATCH($B$3&\"Herbicides\"&$B28,Tab_IFT!$B:$B&Tab_IFT!$A:$A&Tab_IFT!$C:$C,0),1), INDEX(Tab_IFT!F:F,MATCH(\"France métropolitaine\"&\"Herbicides\"&$B28,Tab_IFT!$B:$B&Tab_IFT!$A:$A&Tab_IFT!$C:$C,0),1)), 0)","v":0},{"$f":"_xlfn.IFNA(_xlfn.IFNA(INDEX(Tab_IFT!G:G,MATCH($B$3&\"Herbicides\"&$B28,Tab_IFT!$B:$B&Tab_IFT!$A:$A&Tab_IFT!$C:$C,0),1), INDEX(Tab_IFT!G:G,MATCH(\"France métropolitaine\"&\"Herbicides\"&$B28,Tab_IFT!$B:$B&Tab_IFT!$A:$A&Tab_IFT!$C:$C,0),1)), 0)","v":0},{"$f":"_xlfn.IFNA(_xlfn.IFNA(INDEX(Tab_IFT!H:H,MATCH($B$3&\"Herbicides\"&$B28,Tab_IFT!$B:$B&Tab_IFT!$A:$A&Tab_IFT!$C:$C,0),1), INDEX(Tab_IFT!H:H,MATCH(\"France métropolitaine\"&\"Herbicides\"&$B28,Tab_IFT!$B:$B&Tab_IFT!$A:$A&Tab_IFT!$C:$C,0),1)), 0)","v":0.5},{"$f":"_xlfn.IFNA(_xlfn.IFNA(INDEX(Tab_IFT!I:I,MATCH($B$3&\"Herbicides\"&$B28,Tab_IFT!$B:$B&Tab_IFT!$A:$A&Tab_IFT!$C:$C,0),1), INDEX(Tab_IFT!I:I,MATCH(\"France métropolitaine\"&\"Herbicides\"&$B28,Tab_IFT!$B:$B&Tab_IFT!$A:$A&Tab_IFT!$C:$C,0),1)), 0)","v":0.75},{"$f":"_xlfn.IFNA(_xlfn.IFNA(INDEX(Tab_IFT!J:J,MATCH($B$3&\"Herbicides\"&$B28,Tab_IFT!$B:$B&Tab_IFT!$A:$A&Tab_IFT!$C:$C,0),1), INDEX(Tab_IFT!J:J,MATCH(\"France métropolitaine\"&\"Herbicides\"&$B28,Tab_IFT!$B:$B&Tab_IFT!$A:$A&Tab_IFT!$C:$C,0),1)), 0)","v":0.97},{"$f":"IF(AND((K28=INDEX(Tab_IFT!J:J,MATCH(\"France métropolitaine\"&\"Herbicides\"&$B28,Tab_IFT!$B:$B&Tab_IFT!$A:$A&Tab_IFT!$C:$C,0),1)),(J28=INDEX(Tab_IFT!I:I,MATCH(\"France métropolitaine\"&\"Herbicides\"&$B28,Tab_IFT!$B:$B&Tab_IFT!$A:$A&Tab_IFT!$C:$C,0),1))), \" → Valeurs nationales utilisées\",\"\")","v":" → Valeurs nationales utilisées"},{"$f":"_xlfn.IFNA(_xlfn.IFNA(INDEX(Tab_IFT!D:D,MATCH($B$3&\"Hors herbicides (ancienne méthode traitement de semences)\"&$B28,Tab_IFT!$B:$B&Tab_IFT!$A:$A&Tab_IFT!$C:$C,0),1), INDEX(Tab_IFT!D:D,MATCH(\"France métropolitaine\"&\"Hors herbicides (ancienne méthode traitement de semences)\"&$B28,Tab_IFT!$B:$B&Tab_IFT!$A:$A&Tab_IFT!$C:$C,0),1)), 0)","v":1},{"$f":"_xlfn.IFNA(_xlfn.IFNA(INDEX(Tab_IFT!E:E,MATCH($B$3&\"Hors herbicides (ancienne méthode traitement de semences)\"&$B28,Tab_IFT!$B:$B&Tab_IFT!$A:$A&Tab_IFT!$C:$C,0),1), INDEX(Tab_IFT!E:E,MATCH(\"France métropolitaine\"&\"Hors herbicides (ancienne méthode traitement de semences)\"&$B28,Tab_IFT!$B:$B&Tab_IFT!$A:$A&Tab_IFT!$C:$C,0),1)), 0)","v":1},{"$f":"_xlfn.IFNA(_xlfn.IFNA(INDEX(Tab_IFT!F:F,MATCH($B$3&\"Hors herbicides (ancienne méthode traitement de semences)\"&$B28,Tab_IFT!$B:$B&Tab_IFT!$A:$A&Tab_IFT!$C:$C,0),1), INDEX(Tab_IFT!F:F,MATCH(\"France métropolitaine\"&\"Hors herbicides (ancienne méthode traitement de semences)\"&$B28,Tab_IFT!$B:$B&Tab_IFT!$A:$A&Tab_IFT!$C:$C,0),1)), 0)","v":1.42},{"$f":"_xlfn.IFNA(_xlfn.IFNA(INDEX(Tab_IFT!G:G,MATCH($B$3&\"Hors herbicides (ancienne méthode traitement de semences)\"&$B28,Tab_IFT!$B:$B&Tab_IFT!$A:$A&Tab_IFT!$C:$C,0),1), INDEX(Tab_IFT!G:G,MATCH(\"France métropolitaine\"&\"Hors herbicides (ancienne méthode traitement de semences)\"&$B28,Tab_IFT!$B:$B&Tab_IFT!$A:$A&Tab_IFT!$C:$C,0),1)), 0)","v":2},{"$f":"_xlfn.IFNA(_xlfn.IFNA(INDEX(Tab_IFT!H:H,MATCH($B$3&\"Hors herbicides (ancienne méthode traitement de semences)\"&$B28,Tab_IFT!$B:$B&Tab_IFT!$A:$A&Tab_IFT!$C:$C,0),1), INDEX(Tab_IFT!H:H,MATCH(\"France métropolitaine\"&\"Hors herbicides (ancienne méthode traitement de semences)\"&$B28,Tab_IFT!$B:$B&Tab_IFT!$A:$A&Tab_IFT!$C:$C,0),1)), 0)","v":2},{"$f":"_xlfn.IFNA(_xlfn.IFNA(INDEX(Tab_IFT!I:I,MATCH($B$3&\"Hors herbicides (ancienne méthode traitement de semences)\"&$B28,Tab_IFT!$B:$B&Tab_IFT!$A:$A&Tab_IFT!$C:$C,0),1), INDEX(Tab_IFT!I:I,MATCH(\"France métropolitaine\"&\"Hors herbicides (ancienne méthode traitement de semences)\"&$B28,Tab_IFT!$B:$B&Tab_IFT!$A:$A&Tab_IFT!$C:$C,0),1)), 0)","v":2.46},{"$f":"_xlfn.IFNA(_xlfn.IFNA(INDEX(Tab_IFT!J:J,MATCH($B$3&\"Hors herbicides (ancienne méthode traitement de semences)\"&$B28,Tab_IFT!$B:$B&Tab_IFT!$A:$A&Tab_IFT!$C:$C,0),1), INDEX(Tab_IFT!J:J,MATCH(\"France métropolitaine\"&\"Hors herbicides (ancienne méthode traitement de semences)\"&$B28,Tab_IFT!$B:$B&Tab_IFT!$A:$A&Tab_IFT!$C:$C,0),1)), 0)","v":2.84},{"$f":"IF(AND((R28=INDEX(Tab_IFT!I:I,MATCH(\"France métropolitaine\"&\"Hors herbicides (ancienne méthode traitement de semences)\"&$B28,Tab_IFT!$B:$B&Tab_IFT!$A:$A&Tab_IFT!$C:$C,0),1)),(S28=INDEX(Tab_IFT!J:J,MATCH(\"France métropolitaine\"&\"Hors herbicides (ancienne méthode traitement de semences)\"&$B28,Tab_IFT!$B:$B&Tab_IFT!$A:$A&Tab_IFT!$C:$C,0),1))), \" → Valeurs nationales utilisées\",\"\")","v":" → Valeurs nationales utilisées"}]
[null,"Autres choux (hors chou à choucroute)",1,{"$f":"IFERROR(_xlfn.IFNA(INDEX(Tab_N!C:C,MATCH($B$3&$B29,Tab_N!$A:$A&Tab_N!$B:$B,0),1), INDEX(Tab_N!C:C,MATCH(\"France\"&$B29,Tab_N!$A:$A&Tab_N!$B:$B,0),1)), 0)","v":0},{"$f":"_xlfn.IFNA(_xlfn.IFNA(INDEX(Tab_IFT!D:D,MATCH($B$3&\"Herbicides\"&$B29,Tab_IFT!$B:$B&Tab_IFT!$A:$A&Tab_IFT!$C:$C,0),1), INDEX(Tab_IFT!D:D,MATCH(\"France métropolitaine\"&\"Herbicides\"&$B29,Tab_IFT!$B:$B&Tab_IFT!$A:$A&Tab_IFT!$C:$C,0),1)), 0)","v":0},{"$f":"_xlfn.IFNA(_xlfn.IFNA(INDEX(Tab_IFT!E:E,MATCH($B$3&\"Herbicides\"&$B29,Tab_IFT!$B:$B&Tab_IFT!$A:$A&Tab_IFT!$C:$C,0),1), INDEX(Tab_IFT!E:E,MATCH(\"France métropolitaine\"&\"Herbicides\"&$B29,Tab_IFT!$B:$B&Tab_IFT!$A:$A&Tab_IFT!$C:$C,0),1)), 0)","v":0},{"$f":"_xlfn.IFNA(_xlfn.IFNA(INDEX(Tab_IFT!F:F,MATCH($B$3&\"Herbicides\"&$B29,Tab_IFT!$B:$B&Tab_IFT!$A:$A&Tab_IFT!$C:$C,0),1), INDEX(Tab_IFT!F:F,MATCH(\"France métropolitaine\"&\"Herbicides\"&$B29,Tab_IFT!$B:$B&Tab_IFT!$A:$A&Tab_IFT!$C:$C,0),1)), 0)","v":0},{"$f":"_xlfn.IFNA(_xlfn.IFNA(INDEX(Tab_IFT!G:G,MATCH($B$3&\"Herbicides\"&$B29,Tab_IFT!$B:$B&Tab_IFT!$A:$A&Tab_IFT!$C:$C,0),1), INDEX(Tab_IFT!G:G,MATCH(\"France métropolitaine\"&\"Herbicides\"&$B29,Tab_IFT!$B:$B&Tab_IFT!$A:$A&Tab_IFT!$C:$C,0),1)), 0)","v":0.35},{"$f":"_xlfn.IFNA(_xlfn.IFNA(INDEX(Tab_IFT!H:H,MATCH($B$3&\"Herbicides\"&$B29,Tab_IFT!$B:$B&Tab_IFT!$A:$A&Tab_IFT!$C:$C,0),1), INDEX(Tab_IFT!H:H,MATCH(\"France métropolitaine\"&\"Herbicides\"&$B29,Tab_IFT!$B:$B&Tab_IFT!$A:$A&Tab_IFT!$C:$C,0),1)), 0)","v":0.39},{"$f":"_xlfn.IFNA(_xlfn.IFNA(INDEX(Tab_IFT!I:I,MATCH($B$3&\"Herbicides\"&$B29,Tab_IFT!$B:$B&Tab_IFT!$A:$A&Tab_IFT!$C:$C,0),1), INDEX(Tab_IFT!I:I,MATCH(\"France métropolitaine\"&\"Herbicides\"&$B29,Tab_IFT!$B:$B&Tab_IFT!$A:$A&Tab_IFT!$C:$C,0),1)), 0)","v":0.7},{"$f":"_xlfn.IFNA(_xlfn.IFNA(INDEX(Tab_IFT!J:J,MATCH($B$3&\"Herbicides\"&$B29,Tab_IFT!$B:$B&Tab_IFT!$A:$A&Tab_IFT!$C:$C,0),1), INDEX(Tab_IFT!J:J,MATCH(\"France métropolitaine\"&\"Herbicides\"&$B29,Tab_IFT!$B:$B&Tab_IFT!$A:$A&Tab_IFT!$C:$C,0),1)), 0)","v":1.05},{"$f":"IF(AND((K29=INDEX(Tab_IFT!J:J,MATCH(\"France métropolitaine\"&\"Herbicides\"&$B29,Tab_IFT!$B:$B&Tab_IFT!$A:$A&Tab_IFT!$C:$C,0),1)),(J29=INDEX(Tab_IFT!I:I,MATCH(\"France métropolitaine\"&\"Herbicides\"&$B29,Tab_IFT!$B:$B&Tab_IFT!$A:$A&Tab_IFT!$C:$C,0),1))), \" → Valeurs nationales utilisées\",\"\")","v":" → Valeurs nationales utilisées"},{"$f":"_xlfn.IFNA(_xlfn.IFNA(INDEX(Tab_IFT!D:D,MATCH($B$3&\"Hors herbicides (ancienne méthode traitement de semences)\"&$B29,Tab_IFT!$B:$B&Tab_IFT!$A:$A&Tab_IFT!$C:$C,0),1), INDEX(Tab_IFT!D:D,MATCH(\"France métropolitaine\"&\"Hors herbicides (ancienne méthode traitement de semences)\"&$B29,Tab_IFT!$B:$B&Tab_IFT!$A:$A&Tab_IFT!$C:$C,0),1)), 0)","v":0.83},{"$f":"_xlfn.IFNA(_xlfn.IFNA(INDEX(Tab_IFT!E:E,MATCH($B$3&\"Hors herbicides (ancienne méthode traitement de semences)\"&$B29,Tab_IFT!$B:$B&Tab_IFT!$A:$A&Tab_IFT!$C:$C,0),1), INDEX(Tab_IFT!E:E,MATCH(\"France métropolitaine\"&\"Hors herbicides (ancienne méthode traitement de semences)\"&$B29,Tab_IFT!$B:$B&Tab_IFT!$A:$A&Tab_IFT!$C:$C,0),1)), 0)","v":1.5},{"$f":"_xlfn.IFNA(_xlfn.IFNA(INDEX(Tab_IFT!F:F,MATCH($B$3&\"Hors herbicides (ancienne méthode traitement de semences)\"&$B29,Tab_IFT!$B:$B&Tab_IFT!$A:$A&Tab_IFT!$C:$C,0),1), INDEX(Tab_IFT!F:F,MATCH(\"France métropolitaine\"&\"Hors herbicides (ancienne méthode traitement de semences)\"&$B29,Tab_IFT!$B:$B&Tab_IFT!$A:$A&Tab_IFT!$C:$C,0),1)), 0)","v":2.42},{"$f":"_xlfn.IFNA(_xlfn.IFNA(INDEX(Tab_IFT!G:G,MATCH($B$3&\"Hors herbicides (ancienne méthode traitement de semences)\"&$B29,Tab_IFT!$B:$B&Tab_IFT!$A:$A&Tab_IFT!$C:$C,0),1), INDEX(Tab_IFT!G:G,MATCH(\"France métropolitaine\"&\"Hors herbicides (ancienne méthode traitement de semences)\"&$B29,Tab_IFT!$B:$B&Tab_IFT!$A:$A&Tab_IFT!$C:$C,0),1)), 0)","v":3},{"$f":"_xlfn.IFNA(_xlfn.IFNA(INDEX(Tab_IFT!H:H,MATCH($B$3&\"Hors herbicides (ancienne méthode traitement de semences)\"&$B29,Tab_IFT!$B:$B&Tab_IFT!$A:$A&Tab_IFT!$C:$C,0),1), INDEX(Tab_IFT!H:H,MATCH(\"France métropolitaine\"&\"Hors herbicides (ancienne méthode traitement de semences)\"&$B29,Tab_IFT!$B:$B&Tab_IFT!$A:$A&Tab_IFT!$C:$C,0),1)), 0)","v":3.87},{"$f":"_xlfn.IFNA(_xlfn.IFNA(INDEX(Tab_IFT!I:I,MATCH($B$3&\"Hors herbicides (ancienne méthode traitement de semences)\"&$B29,Tab_IFT!$B:$B&Tab_IFT!$A:$A&Tab_IFT!$C:$C,0),1), INDEX(Tab_IFT!I:I,MATCH(\"France métropolitaine\"&\"Hors herbicides (ancienne méthode traitement de semences)\"&$B29,Tab_IFT!$B:$B&Tab_IFT!$A:$A&Tab_IFT!$C:$C,0),1)), 0)","v":4.3600000000000003},{"$f":"_xlfn.IFNA(_xlfn.IFNA(INDEX(Tab_IFT!J:J,MATCH($B$3&\"Hors herbicides (ancienne méthode traitement de semences)\"&$B29,Tab_IFT!$B:$B&Tab_IFT!$A:$A&Tab_IFT!$C:$C,0),1), INDEX(Tab_IFT!J:J,MATCH(\"France métropolitaine\"&\"Hors herbicides (ancienne méthode traitement de semences)\"&$B29,Tab_IFT!$B:$B&Tab_IFT!$A:$A&Tab_IFT!$C:$C,0),1)), 0)","v":5.66},{"$f":"IF(AND((R29=INDEX(Tab_IFT!I:I,MATCH(\"France métropolitaine\"&\"Hors herbicides (ancienne méthode traitement de semences)\"&$B29,Tab_IFT!$B:$B&Tab_IFT!$A:$A&Tab_IFT!$C:$C,0),1)),(S29=INDEX(Tab_IFT!J:J,MATCH(\"France métropolitaine\"&\"Hors herbicides (ancienne méthode traitement de semences)\"&$B29,Tab_IFT!$B:$B&Tab_IFT!$A:$A&Tab_IFT!$C:$C,0),1))), \" → Valeurs nationales utilisées\",\"\")","v":" → Valeurs nationales utilisées"}]
[null,"Fraise",651,{"$f":"IFERROR(_xlfn.IFNA(INDEX(Tab_N!C:C,MATCH($B$3&$B30,Tab_N!$A:$A&Tab_N!$B:$B,0),1), INDEX(Tab_N!C:C,MATCH(\"France\"&$B30,Tab_N!$A:$A&Tab_N!$B:$B,0),1)), 0)","v":0},{"$f":"_xlfn.IFNA(_xlfn.IFNA(INDEX(Tab_IFT!D:D,MATCH($B$3&\"Herbicides\"&$B30,Tab_IFT!$B:$B&Tab_IFT!$A:$A&Tab_IFT!$C:$C,0),1), INDEX(Tab_IFT!D:D,MATCH(\"France métropolitaine\"&\"Herbicides\"&$B30,Tab_IFT!$B:$B&Tab_IFT!$A:$A&Tab_IFT!$C:$C,0),1)), 0)","v":0},{"$f":"_xlfn.IFNA(_xlfn.IFNA(INDEX(Tab_IFT!E:E,MATCH($B$3&\"Herbicides\"&$B30,Tab_IFT!$B:$B&Tab_IFT!$A:$A&Tab_IFT!$C:$C,0),1), INDEX(Tab_IFT!E:E,MATCH(\"France métropolitaine\"&\"Herbicides\"&$B30,Tab_IFT!$B:$B&Tab_IFT!$A:$A&Tab_IFT!$C:$C,0),1)), 0)","v":0},{"$f":"_xlfn.IFNA(_xlfn.IFNA(INDEX(Tab_IFT!F:F,MATCH($B$3&\"Herbicides\"&$B30,Tab_IFT!$B:$B&Tab_IFT!$A:$A&Tab_IFT!$C:$C,0),1), INDEX(Tab_IFT!F:F,MATCH(\"France métropolitaine\"&\"Herbicides\"&$B30,Tab_IFT!$B:$B&Tab_IFT!$A:$A&Tab_IFT!$C:$C,0),1)), 0)","v":0},{"$f":"_xlfn.IFNA(_xlfn.IFNA(INDEX(Tab_IFT!G:G,MATCH($B$3&\"Herbicides\"&$B30,Tab_IFT!$B:$B&Tab_IFT!$A:$A&Tab_IFT!$C:$C,0),1), INDEX(Tab_IFT!G:G,MATCH(\"France métropolitaine\"&\"Herbicides\"&$B30,Tab_IFT!$B:$B&Tab_IFT!$A:$A&Tab_IFT!$C:$C,0),1)), 0)","v":0},{"$f":"_xlfn.IFNA(_xlfn.IFNA(INDEX(Tab_IFT!H:H,MATCH($B$3&\"Herbicides\"&$B30,Tab_IFT!$B:$B&Tab_IFT!$A:$A&Tab_IFT!$C:$C,0),1), INDEX(Tab_IFT!H:H,MATCH(\"France métropolitaine\"&\"Herbicides\"&$B30,Tab_IFT!$B:$B&Tab_IFT!$A:$A&Tab_IFT!$C:$C,0),1)), 0)","v":0.08},{"$f":"_xlfn.IFNA(_xlfn.IFNA(INDEX(Tab_IFT!I:I,MATCH($B$3&\"Herbicides\"&$B30,Tab_IFT!$B:$B&Tab_IFT!$A:$A&Tab_IFT!$C:$C,0),1), INDEX(Tab_IFT!I:I,MATCH(\"France métropolitaine\"&\"Herbicides\"&$B30,Tab_IFT!$B:$B&Tab_IFT!$A:$A&Tab_IFT!$C:$C,0),1)), 0)","v":0.16},{"$f":"_xlfn.IFNA(_xlfn.IFNA(INDEX(Tab_IFT!J:J,MATCH($B$3&\"Herbicides\"&$B30,Tab_IFT!$B:$B&Tab_IFT!$A:$A&Tab_IFT!$C:$C,0),1), INDEX(Tab_IFT!J:J,MATCH(\"France métropolitaine\"&\"Herbicides\"&$B30,Tab_IFT!$B:$B&Tab_IFT!$A:$A&Tab_IFT!$C:$C,0),1)), 0)","v":0.32},{"$f":"IF(AND((K30=INDEX(Tab_IFT!J:J,MATCH(\"France métropolitaine\"&\"Herbicides\"&$B30,Tab_IFT!$B:$B&Tab_IFT!$A:$A&Tab_IFT!$C:$C,0),1)),(J30=INDEX(Tab_IFT!I:I,MATCH(\"France métropolitaine\"&\"Herbicides\"&$B30,Tab_IFT!$B:$B&Tab_IFT!$A:$A&Tab_IFT!$C:$C,0),1))), \" → Valeurs nationales utilisées\",\"\")","v":" → Valeurs nationales utilisées"},{"$f":"_xlfn.IFNA(_xlfn.IFNA(INDEX(Tab_IFT!D:D,MATCH($B$3&\"Hors herbicides (ancienne méthode traitement de semences)\"&$B30,Tab_IFT!$B:$B&Tab_IFT!$A:$A&Tab_IFT!$C:$C,0),1), INDEX(Tab_IFT!D:D,MATCH(\"France métropolitaine\"&\"Hors herbicides (ancienne méthode traitement de semences)\"&$B30,Tab_IFT!$B:$B&Tab_IFT!$A:$A&Tab_IFT!$C:$C,0),1)), 0)","v":0.7},{"$f":"_xlfn.IFNA(_xlfn.IFNA(INDEX(Tab_IFT!E:E,MATCH($B$3&\"Hors herbicides (ancienne méthode traitement de semences)\"&$B30,Tab_IFT!$B:$B&Tab_IFT!$A:$A&Tab_IFT!$C:$C,0),1), INDEX(Tab_IFT!E:E,MATCH(\"France métropolitaine\"&\"Hors herbicides (ancienne méthode traitement de semences)\"&$B30,Tab_IFT!$B:$B&Tab_IFT!$A:$A&Tab_IFT!$C:$C,0),1)), 0)","v":1.93},{"$f":"_xlfn.IFNA(_xlfn.IFNA(INDEX(Tab_IFT!F:F,MATCH($B$3&\"Hors herbicides (ancienne méthode traitement de semences)\"&$B30,Tab_IFT!$B:$B&Tab_IFT!$A:$A&Tab_IFT!$C:$C,0),1), INDEX(Tab_IFT!F:F,MATCH(\"France métropolitaine\"&\"Hors herbicides (ancienne méthode traitement de semences)\"&$B30,Tab_IFT!$B:$B&Tab_IFT!$A:$A&Tab_IFT!$C:$C,0),1)), 0)","v":2.2000000000000002},{"$f":"_xlfn.IFNA(_xlfn.IFNA(INDEX(Tab_IFT!G:G,MATCH($B$3&\"Hors herbicides (ancienne méthode traitement de semences)\"&$B30,Tab_IFT!$B:$B&Tab_IFT!$A:$A&Tab_IFT!$C:$C,0),1), INDEX(Tab_IFT!G:G,MATCH(\"France métropolitaine\"&\"Hors herbicides (ancienne méthode traitement de semences)\"&$B30,Tab_IFT!$B:$B&Tab_IFT!$A:$A&Tab_IFT!$C:$C,0),1)), 0)","v":2.66},{"$f":"_xlfn.IFNA(_xlfn.IFNA(INDEX(Tab_IFT!H:H,MATCH($B$3&\"Hors herbicides (ancienne méthode traitement de semences)\"&$B30,Tab_IFT!$B:$B&Tab_IFT!$A:$A&Tab_IFT!$C:$C,0),1), INDEX(Tab_IFT!H:H,MATCH(\"France métropolitaine\"&\"Hors herbicides (ancienne méthode traitement de semences)\"&$B30,Tab_IFT!$B:$B&Tab_IFT!$A:$A&Tab_IFT!$C:$C,0),1)), 0)","v":4.01},{"$f":"_xlfn.IFNA(_xlfn.IFNA(INDEX(Tab_IFT!I:I,MATCH($B$3&\"Hors herbicides (ancienne méthode traitement de semences)\"&$B30,Tab_IFT!$B:$B&Tab_IFT!$A:$A&Tab_IFT!$C:$C,0),1), INDEX(Tab_IFT!I:I,MATCH(\"France métropolitaine\"&\"Hors herbicides (ancienne méthode traitement de semences)\"&$B30,Tab_IFT!$B:$B&Tab_IFT!$A:$A&Tab_IFT!$C:$C,0),1)), 0)","v":5.14},{"$f":"_xlfn.IFNA(_xlfn.IFNA(INDEX(Tab_IFT!J:J,MATCH($B$3&\"Hors herbicides (ancienne méthode traitement de semences)\"&$B30,Tab_IFT!$B:$B&Tab_IFT!$A:$A&Tab_IFT!$C:$C,0),1), INDEX(Tab_IFT!J:J,MATCH(\"France métropolitaine\"&\"Hors herbicides (ancienne méthode traitement de semences)\"&$B30,Tab_IFT!$B:$B&Tab_IFT!$A:$A&Tab_IFT!$C:$C,0),1)), 0)","v":5.86},{"$f":"IF(AND((R30=INDEX(Tab_IFT!I:I,MATCH(\"France métropolitaine\"&\"Hors herbicides (ancienne méthode traitement de semences)\"&$B30,Tab_IFT!$B:$B&Tab_IFT!$A:$A&Tab_IFT!$C:$C,0),1)),(S30=INDEX(Tab_IFT!J:J,MATCH(\"France métropolitaine\"&\"Hors herbicides (ancienne méthode traitement de semences)\"&$B30,Tab_IFT!$B:$B&Tab_IFT!$A:$A&Tab_IFT!$C:$C,0),1))), \" → Valeurs nationales utilisées\",\"\")","v":" → Valeurs nationales utilisées"}]
[null,"Melon",61,{"$f":"IFERROR(_xlfn.IFNA(INDEX(Tab_N!C:C,MATCH($B$3&$B31,Tab_N!$A:$A&Tab_N!$B:$B,0),1), INDEX(Tab_N!C:C,MATCH(\"France\"&$B31,Tab_N!$A:$A&Tab_N!$B:$B,0),1)), 0)","v":0},{"$f":"_xlfn.IFNA(_xlfn.IFNA(INDEX(Tab_IFT!D:D,MATCH($B$3&\"Herbicides\"&$B31,Tab_IFT!$B:$B&Tab_IFT!$A:$A&Tab_IFT!$C:$C,0),1), INDEX(Tab_IFT!D:D,MATCH(\"France métropolitaine\"&\"Herbicides\"&$B31,Tab_IFT!$B:$B&Tab_IFT!$A:$A&Tab_IFT!$C:$C,0),1)), 0)","v":0},{"$f":"_xlfn.IFNA(_xlfn.IFNA(INDEX(Tab_IFT!E:E,MATCH($B$3&\"Herbicides\"&$B31,Tab_IFT!$B:$B&Tab_IFT!$A:$A&Tab_IFT!$C:$C,0),1), INDEX(Tab_IFT!E:E,MATCH(\"France métropolitaine\"&\"Herbicides\"&$B31,Tab_IFT!$B:$B&Tab_IFT!$A:$A&Tab_IFT!$C:$C,0),1)), 0)","v":0},{"$f":"_xlfn.IFNA(_xlfn.IFNA(INDEX(Tab_IFT!F:F,MATCH($B$3&\"Herbicides\"&$B31,Tab_IFT!$B:$B&Tab_IFT!$A:$A&Tab_IFT!$C:$C,0),1), INDEX(Tab_IFT!F:F,MATCH(\"France métropolitaine\"&\"Herbicides\"&$B31,Tab_IFT!$B:$B&Tab_IFT!$A:$A&Tab_IFT!$C:$C,0),1)), 0)","v":0},{"$f":"_xlfn.IFNA(_xlfn.IFNA(INDEX(Tab_IFT!G:G,MATCH($B$3&\"Herbicides\"&$B31,Tab_IFT!$B:$B&Tab_IFT!$A:$A&Tab_IFT!$C:$C,0),1), INDEX(Tab_IFT!G:G,MATCH(\"France métropolitaine\"&\"Herbicides\"&$B31,Tab_IFT!$B:$B&Tab_IFT!$A:$A&Tab_IFT!$C:$C,0),1)), 0)","v":0},{"$f":"_xlfn.IFNA(_xlfn.IFNA(INDEX(Tab_IFT!H:H,MATCH($B$3&\"Herbicides\"&$B31,Tab_IFT!$B:$B&Tab_IFT!$A:$A&Tab_IFT!$C:$C,0),1), INDEX(Tab_IFT!H:H,MATCH(\"France métropolitaine\"&\"Herbicides\"&$B31,Tab_IFT!$B:$B&Tab_IFT!$A:$A&Tab_IFT!$C:$C,0),1)), 0)","v":0},{"$f":"_xlfn.IFNA(_xlfn.IFNA(INDEX(Tab_IFT!I:I,MATCH($B$3&\"Herbicides\"&$B31,Tab_IFT!$B:$B&Tab_IFT!$A:$A&Tab_IFT!$C:$C,0),1), INDEX(Tab_IFT!I:I,MATCH(\"France métropolitaine\"&\"Herbicides\"&$B31,Tab_IFT!$B:$B&Tab_IFT!$A:$A&Tab_IFT!$C:$C,0),1)), 0)","v":0},{"$f":"_xlfn.IFNA(_xlfn.IFNA(INDEX(Tab_IFT!J:J,MATCH($B$3&\"Herbicides\"&$B31,Tab_IFT!$B:$B&Tab_IFT!$A:$A&Tab_IFT!$C:$C,0),1), INDEX(Tab_IFT!J:J,MATCH(\"France métropolitaine\"&\"Herbicides\"&$B31,Tab_IFT!$B:$B&Tab_IFT!$A:$A&Tab_IFT!$C:$C,0),1)), 0)","v":0.18},{"$f":"IF(AND((K31=INDEX(Tab_IFT!J:J,MATCH(\"France métropolitaine\"&\"Herbicides\"&$B31,Tab_IFT!$B:$B&Tab_IFT!$A:$A&Tab_IFT!$C:$C,0),1)),(J31=INDEX(Tab_IFT!I:I,MATCH(\"France métropolitaine\"&\"Herbicides\"&$B31,Tab_IFT!$B:$B&Tab_IFT!$A:$A&Tab_IFT!$C:$C,0),1))), \" → Valeurs nationales utilisées\",\"\")","v":" → Valeurs nationales utilisées"},{"$f":"_xlfn.IFNA(_xlfn.IFNA(INDEX(Tab_IFT!D:D,MATCH($B$3&\"Hors herbicides (ancienne méthode traitement de semences)\"&$B31,Tab_IFT!$B:$B&Tab_IFT!$A:$A&Tab_IFT!$C:$C,0),1), INDEX(Tab_IFT!D:D,MATCH(\"France métropolitaine\"&\"Hors herbicides (ancienne méthode traitement de semences)\"&$B31,Tab_IFT!$B:$B&Tab_IFT!$A:$A&Tab_IFT!$C:$C,0),1)), 0)","v":2.5499999999999998},{"$f":"_xlfn.IFNA(_xlfn.IFNA(INDEX(Tab_IFT!E:E,MATCH($B$3&\"Hors herbicides (ancienne méthode traitement de semences)\"&$B31,Tab_IFT!$B:$B&Tab_IFT!$A:$A&Tab_IFT!$C:$C,0),1), INDEX(Tab_IFT!E:E,MATCH(\"France métropolitaine\"&\"Hors herbicides (ancienne méthode traitement de semences)\"&$B31,Tab_IFT!$B:$B&Tab_IFT!$A:$A&Tab_IFT!$C:$C,0),1)), 0)","v":3.69},{"$f":"_xlfn.IFNA(_xlfn.IFNA(INDEX(Tab_IFT!F:F,MATCH($B$3&\"Hors herbicides (ancienne méthode traitement de semences)\"&$B31,Tab_IFT!$B:$B&Tab_IFT!$A:$A&Tab_IFT!$C:$C,0),1), INDEX(Tab_IFT!F:F,MATCH(\"France métropolitaine\"&\"Hors herbicides (ancienne méthode traitement de semences)\"&$B31,Tab_IFT!$B:$B&Tab_IFT!$A:$A&Tab_IFT!$C:$C,0),1)), 0)","v":4.29},{"$f":"_xlfn.IFNA(_xlfn.IFNA(INDEX(Tab_IFT!G:G,MATCH($B$3&\"Hors herbicides (ancienne méthode traitement de semences)\"&$B31,Tab_IFT!$B:$B&Tab_IFT!$A:$A&Tab_IFT!$C:$C,0),1), INDEX(Tab_IFT!G:G,MATCH(\"France métropolitaine\"&\"Hors herbicides (ancienne méthode traitement de semences)\"&$B31,Tab_IFT!$B:$B&Tab_IFT!$A:$A&Tab_IFT!$C:$C,0),1)), 0)","v":4.78},{"$f":"_xlfn.IFNA(_xlfn.IFNA(INDEX(Tab_IFT!H:H,MATCH($B$3&\"Hors herbicides (ancienne méthode traitement de semences)\"&$B31,Tab_IFT!$B:$B&Tab_IFT!$A:$A&Tab_IFT!$C:$C,0),1), INDEX(Tab_IFT!H:H,MATCH(\"France métropolitaine\"&\"Hors herbicides (ancienne méthode traitement de semences)\"&$B31,Tab_IFT!$B:$B&Tab_IFT!$A:$A&Tab_IFT!$C:$C,0),1)), 0)","v":5.59},{"$f":"_xlfn.IFNA(_xlfn.IFNA(INDEX(Tab_IFT!I:I,MATCH($B$3&\"Hors herbicides (ancienne méthode traitement de semences)\"&$B31,Tab_IFT!$B:$B&Tab_IFT!$A:$A&Tab_IFT!$C:$C,0),1), INDEX(Tab_IFT!I:I,MATCH(\"France métropolitaine\"&\"Hors herbicides (ancienne méthode traitement de semences)\"&$B31,Tab_IFT!$B:$B&Tab_IFT!$A:$A&Tab_IFT!$C:$C,0),1)), 0)","v":6.15},{"$f":"_xlfn.IFNA(_xlfn.IFNA(INDEX(Tab_IFT!J:J,MATCH($B$3&\"Hors herbicides (ancienne méthode traitement de semences)\"&$B31,Tab_IFT!$B:$B&Tab_IFT!$A:$A&Tab_IFT!$C:$C,0),1), INDEX(Tab_IFT!J:J,MATCH(\"France métropolitaine\"&\"Hors herbicides (ancienne méthode traitement de semences)\"&$B31,Tab_IFT!$B:$B&Tab_IFT!$A:$A&Tab_IFT!$C:$C,0),1)), 0)","v":7.1},{"$f":"IF(AND((R31=INDEX(Tab_IFT!I:I,MATCH(\"France métropolitaine\"&\"Hors herbicides (ancienne méthode traitement de semences)\"&$B31,Tab_IFT!$B:$B&Tab_IFT!$A:$A&Tab_IFT!$C:$C,0),1)),(S31=INDEX(Tab_IFT!J:J,MATCH(\"France métropolitaine\"&\"Hors herbicides (ancienne méthode traitement de semences)\"&$B31,Tab_IFT!$B:$B&Tab_IFT!$A:$A&Tab_IFT!$C:$C,0),1))), \" → Valeurs nationales utilisées\",\"\")","v":" → Valeurs nationales utilisées"}]
[null,"Poireau",1,{"$f":"IFERROR(_xlfn.IFNA(INDEX(Tab_N!C:C,MATCH($B$3&$B32,Tab_N!$A:$A&Tab_N!$B:$B,0),1), INDEX(Tab_N!C:C,MATCH(\"France\"&$B32,Tab_N!$A:$A&Tab_N!$B:$B,0),1)), 0)","v":0},{"$f":"_xlfn.IFNA(_xlfn.IFNA(INDEX(Tab_IFT!D:D,MATCH($B$3&\"Herbicides\"&$B32,Tab_IFT!$B:$B&Tab_IFT!$A:$A&Tab_IFT!$C:$C,0),1), INDEX(Tab_IFT!D:D,MATCH(\"France métropolitaine\"&\"Herbicides\"&$B32,Tab_IFT!$B:$B&Tab_IFT!$A:$A&Tab_IFT!$C:$C,0),1)), 0)","v":0},{"$f":"_xlfn.IFNA(_xlfn.IFNA(INDEX(Tab_IFT!E:E,MATCH($B$3&\"Herbicides\"&$B32,Tab_IFT!$B:$B&Tab_IFT!$A:$A&Tab_IFT!$C:$C,0),1), INDEX(Tab_IFT!E:E,MATCH(\"France métropolitaine\"&\"Herbicides\"&$B32,Tab_IFT!$B:$B&Tab_IFT!$A:$A&Tab_IFT!$C:$C,0),1)), 0)","v":0.15},{"$f":"_xlfn.IFNA(_xlfn.IFNA(INDEX(Tab_IFT!F:F,MATCH($B$3&\"Herbicides\"&$B32,Tab_IFT!$B:$B&Tab_IFT!$A:$A&Tab_IFT!$C:$C,0),1), INDEX(Tab_IFT!F:F,MATCH(\"France métropolitaine\"&\"Herbicides\"&$B32,Tab_IFT!$B:$B&Tab_IFT!$A:$A&Tab_IFT!$C:$C,0),1)), 0)","v":0.41},{"$f":"_xlfn.IFNA(_xlfn.IFNA(INDEX(Tab_IFT!G:G,MATCH($B$3&\"Herbicides\"&$B32,Tab_IFT!$B:$B&Tab_IFT!$A:$A&Tab_IFT!$C:$C,0),1), INDEX(Tab_IFT!G:G,MATCH(\"France métropolitaine\"&\"Herbicides\"&$B32,Tab_IFT!$B:$B&Tab_IFT!$A:$A&Tab_IFT!$C:$C,0),1)), 0)","v":0.61},{"$f":"_xlfn.IFNA(_xlfn.IFNA(INDEX(Tab_IFT!H:H,MATCH($B$3&\"Herbicides\"&$B32,Tab_IFT!$B:$B&Tab_IFT!$A:$A&Tab_IFT!$C:$C,0),1), INDEX(Tab_IFT!H:H,MATCH(\"France métropolitaine\"&\"Herbicides\"&$B32,Tab_IFT!$B:$B&Tab_IFT!$A:$A&Tab_IFT!$C:$C,0),1)), 0)","v":0.82},{"$f":"_xlfn.IFNA(_xlfn.IFNA(INDEX(Tab_IFT!I:I,MATCH($B$3&\"Herbicides\"&$B32,Tab_IFT!$B:$B&Tab_IFT!$A:$A&Tab_IFT!$C:$C,0),1), INDEX(Tab_IFT!I:I,MATCH(\"France métropolitaine\"&\"Herbicides\"&$B32,Tab_IFT!$B:$B&Tab_IFT!$A:$A&Tab_IFT!$C:$C,0),1)), 0)","v":0.96},{"$f":"_xlfn.IFNA(_xlfn.IFNA(INDEX(Tab_IFT!J:J,MATCH($B$3&\"Herbicides\"&$B32,Tab_IFT!$B:$B&Tab_IFT!$A:$A&Tab_IFT!$C:$C,0),1), INDEX(Tab_IFT!J:J,MATCH(\"France métropolitaine\"&\"Herbicides\"&$B32,Tab_IFT!$B:$B&Tab_IFT!$A:$A&Tab_IFT!$C:$C,0),1)), 0)","v":1.1399999999999999},{"$f":"IF(AND((K32=INDEX(Tab_IFT!J:J,MATCH(\"France métropolitaine\"&\"Herbicides\"&$B32,Tab_IFT!$B:$B&Tab_IFT!$A:$A&Tab_IFT!$C:$C,0),1)),(J32=INDEX(Tab_IFT!I:I,MATCH(\"France métropolitaine\"&\"Herbicides\"&$B32,Tab_IFT!$B:$B&Tab_IFT!$A:$A&Tab_IFT!$C:$C,0),1))), \" → Valeurs nationales utilisées\",\"\")","v":" → Valeurs nationales utilisées"},{"$f":"_xlfn.IFNA(_xlfn.IFNA(INDEX(Tab_IFT!D:D,MATCH($B$3&\"Hors herbicides (ancienne méthode traitement de semences)\"&$B32,Tab_IFT!$B:$B&Tab_IFT!$A:$A&Tab_IFT!$C:$C,0),1), INDEX(Tab_IFT!D:D,MATCH(\"France métropolitaine\"&\"Hors herbicides (ancienne méthode traitement de semences)\"&$B32,Tab_IFT!$B:$B&Tab_IFT!$A:$A&Tab_IFT!$C:$C,0),1)), 0)","v":0.75},{"$f":"_xlfn.IFNA(_xlfn.IFNA(INDEX(Tab_IFT!E:E,MATCH($B$3&\"Hors herbicides (ancienne méthode traitement de semences)\"&$B32,Tab_IFT!$B:$B&Tab_IFT!$A:$A&Tab_IFT!$C:$C,0),1), INDEX(Tab_IFT!E:E,MATCH(\"France métropolitaine\"&\"Hors herbicides (ancienne méthode traitement de semences)\"&$B32,Tab_IFT!$B:$B&Tab_IFT!$A:$A&Tab_IFT!$C:$C,0),1)), 0)","v":2.2999999999999998},{"$f":"_xlfn.IFNA(_xlfn.IFNA(INDEX(Tab_IFT!F:F,MATCH($B$3&\"Hors herbicides (ancienne méthode traitement de semences)\"&$B32,Tab_IFT!$B:$B&Tab_IFT!$A:$A&Tab_IFT!$C:$C,0),1), INDEX(Tab_IFT!F:F,MATCH(\"France métropolitaine\"&\"Hors herbicides (ancienne méthode traitement de semences)\"&$B32,Tab_IFT!$B:$B&Tab_IFT!$A:$A&Tab_IFT!$C:$C,0),1)), 0)","v":3.92},{"$f":"_xlfn.IFNA(_xlfn.IFNA(INDEX(Tab_IFT!G:G,MATCH($B$3&\"Hors herbicides (ancienne méthode traitement de semences)\"&$B32,Tab_IFT!$B:$B&Tab_IFT!$A:$A&Tab_IFT!$C:$C,0),1), INDEX(Tab_IFT!G:G,MATCH(\"France métropolitaine\"&\"Hors herbicides (ancienne méthode traitement de semences)\"&$B32,Tab_IFT!$B:$B&Tab_IFT!$A:$A&Tab_IFT!$C:$C,0),1)), 0)","v":5.4},{"$f":"_xlfn.IFNA(_xlfn.IFNA(INDEX(Tab_IFT!H:H,MATCH($B$3&\"Hors herbicides (ancienne méthode traitement de semences)\"&$B32,Tab_IFT!$B:$B&Tab_IFT!$A:$A&Tab_IFT!$C:$C,0),1), INDEX(Tab_IFT!H:H,MATCH(\"France métropolitaine\"&\"Hors herbicides (ancienne méthode traitement de semences)\"&$B32,Tab_IFT!$B:$B&Tab_IFT!$A:$A&Tab_IFT!$C:$C,0),1)), 0)","v":6.84},{"$f":"_xlfn.IFNA(_xlfn.IFNA(INDEX(Tab_IFT!I:I,MATCH($B$3&\"Hors herbicides (ancienne méthode traitement de semences)\"&$B32,Tab_IFT!$B:$B&Tab_IFT!$A:$A&Tab_IFT!$C:$C,0),1), INDEX(Tab_IFT!I:I,MATCH(\"France métropolitaine\"&\"Hors herbicides (ancienne méthode traitement de semences)\"&$B32,Tab_IFT!$B:$B&Tab_IFT!$A:$A&Tab_IFT!$C:$C,0),1)), 0)","v":8.2200000000000006},{"$f":"_xlfn.IFNA(_xlfn.IFNA(INDEX(Tab_IFT!J:J,MATCH($B$3&\"Hors herbicides (ancienne méthode traitement de semences)\"&$B32,Tab_IFT!$B:$B&Tab_IFT!$A:$A&Tab_IFT!$C:$C,0),1), INDEX(Tab_IFT!J:J,MATCH(\"France métropolitaine\"&\"Hors herbicides (ancienne méthode traitement de semences)\"&$B32,Tab_IFT!$B:$B&Tab_IFT!$A:$A&Tab_IFT!$C:$C,0),1)), 0)","v":9.93},{"$f":"IF(AND((R32=INDEX(Tab_IFT!I:I,MATCH(\"France métropolitaine\"&\"Hors herbicides (ancienne méthode traitement de semences)\"&$B32,Tab_IFT!$B:$B&Tab_IFT!$A:$A&Tab_IFT!$C:$C,0),1)),(S32=INDEX(Tab_IFT!J:J,MATCH(\"France métropolitaine\"&\"Hors herbicides (ancienne méthode traitement de semences)\"&$B32,Tab_IFT!$B:$B&Tab_IFT!$A:$A&Tab_IFT!$C:$C,0),1))), \" → Valeurs nationales utilisées\",\"\")","v":" → Valeurs nationales utilisées"}]
[null,"Pomme de terre",613,{"$f":"_xlfn.IFNA(INDEX(Tab_N!C:C,MATCH($B$3&$B33,Tab_N!$A:$A&Tab_N!$B:$B,0),1), INDEX(Tab_N!C:C,MATCH(\"France\"&$B33,Tab_N!$A:$A&Tab_N!$B:$B,0),1))","v":136},{"$f":"_xlfn.IFNA(_xlfn.IFNA(INDEX(Tab_IFT!D:D,MATCH($B$3&\"Herbicides\"&$B33,Tab_IFT!$B:$B&Tab_IFT!$A:$A&Tab_IFT!$C:$C,0),1), INDEX(Tab_IFT!D:D,MATCH(\"France métropolitaine\"&\"Herbicides\"&$B33,Tab_IFT!$B:$B&Tab_IFT!$A:$A&Tab_IFT!$C:$C,0),1)), 0)","v":1.39},{"$f":"_xlfn.IFNA(_xlfn.IFNA(INDEX(Tab_IFT!E:E,MATCH($B$3&\"Herbicides\"&$B33,Tab_IFT!$B:$B&Tab_IFT!$A:$A&Tab_IFT!$C:$C,0),1), INDEX(Tab_IFT!E:E,MATCH(\"France métropolitaine\"&\"Herbicides\"&$B33,Tab_IFT!$B:$B&Tab_IFT!$A:$A&Tab_IFT!$C:$C,0),1)), 0)","v":1.66},{"$f":"_xlfn.IFNA(_xlfn.IFNA(INDEX(Tab_IFT!F:F,MATCH($B$3&\"Herbicides\"&$B33,Tab_IFT!$B:$B&Tab_IFT!$A:$A&Tab_IFT!$C:$C,0),1), INDEX(Tab_IFT!F:F,MATCH(\"France métropolitaine\"&\"Herbicides\"&$B33,Tab_IFT!$B:$B&Tab_IFT!$A:$A&Tab_IFT!$C:$C,0),1)), 0)","v":1.85},{"$f":"_xlfn.IFNA(_xlfn.IFNA(INDEX(Tab_IFT!G:G,MATCH($B$3&\"Herbicides\"&$B33,Tab_IFT!$B:$B&Tab_IFT!$A:$A&Tab_IFT!$C:$C,0),1), INDEX(Tab_IFT!G:G,MATCH(\"France métropolitaine\"&\"Herbicides\"&$B33,Tab_IFT!$B:$B&Tab_IFT!$A:$A&Tab_IFT!$C:$C,0),1)), 0)","v":2.0299999999999998},{"$f":"_xlfn.IFNA(_xlfn.IFNA(INDEX(Tab_IFT!H:H,MATCH($B$3&\"Herbicides\"&$B33,Tab_IFT!$B:$B&Tab_IFT!$A:$A&Tab_IFT!$C:$C,0),1), INDEX(Tab_IFT!H:H,MATCH(\"France métropolitaine\"&\"Herbicides\"&$B33,Tab_IFT!$B:$B&Tab_IFT!$A:$A&Tab_IFT!$C:$C,0),1)), 0)","v":2.25},{"$f":"_xlfn.IFNA(_xlfn.IFNA(INDEX(Tab_IFT!I:I,MATCH($B$3&\"Herbicides\"&$B33,Tab_IFT!$B:$B&Tab_IFT!$A:$A&Tab_IFT!$C:$C,0),1), INDEX(Tab_IFT!I:I,MATCH(\"France métropolitaine\"&\"Herbicides\"&$B33,Tab_IFT!$B:$B&Tab_IFT!$A:$A&Tab_IFT!$C:$C,0),1)), 0)","v":2.44},{"$f":"_xlfn.IFNA(_xlfn.IFNA(INDEX(Tab_IFT!J:J,MATCH($B$3&\"Herbicides\"&$B33,Tab_IFT!$B:$B&Tab_IFT!$A:$A&Tab_IFT!$C:$C,0),1), INDEX(Tab_IFT!J:J,MATCH(\"France métropolitaine\"&\"Herbicides\"&$B33,Tab_IFT!$B:$B&Tab_IFT!$A:$A&Tab_IFT!$C:$C,0),1)), 0)","v":2.64},{"$f":"IF(AND((K33=INDEX(Tab_IFT!J:J,MATCH(\"France métropolitaine\"&\"Herbicides\"&$B33,Tab_IFT!$B:$B&Tab_IFT!$A:$A&Tab_IFT!$C:$C,0),1)),(J33=INDEX(Tab_IFT!I:I,MATCH(\"France métropolitaine\"&\"Herbicides\"&$B33,Tab_IFT!$B:$B&Tab_IFT!$A:$A&Tab_IFT!$C:$C,0),1))), \" → Valeurs nationales utilisées\",\"\")","v":" → Valeurs nationales utilisées"},{"$f":"_xlfn.IFNA(_xlfn.IFNA(INDEX(Tab_IFT!D:D,MATCH($B$3&\"Hors herbicides (ancienne méthode traitement de semences)\"&$B33,Tab_IFT!$B:$B&Tab_IFT!$A:$A&Tab_IFT!$C:$C,0),1), INDEX(Tab_IFT!D:D,MATCH(\"France métropolitaine\"&\"Hors herbicides (ancienne méthode traitement de semences)\"&$B33,Tab_IFT!$B:$B&Tab_IFT!$A:$A&Tab_IFT!$C:$C,0),1)), 0)","v":8.8800000000000008},{"$f":"_xlfn.IFNA(_xlfn.IFNA(INDEX(Tab_IFT!E:E,MATCH($B$3&\"Hors herbicides (ancienne méthode traitement de semences)\"&$B33,Tab_IFT!$B:$B&Tab_IFT!$A:$A&Tab_IFT!$C:$C,0),1), INDEX(Tab_IFT!E:E,MATCH(\"France métropolitaine\"&\"Hors herbicides (ancienne méthode traitement de semences)\"&$B33,Tab_IFT!$B:$B&Tab_IFT!$A:$A&Tab_IFT!$C:$C,0),1)), 0)","v":10.87},{"$f":"_xlfn.IFNA(_xlfn.IFNA(INDEX(Tab_IFT!F:F,MATCH($B$3&\"Hors herbicides (ancienne méthode traitement de semences)\"&$B33,Tab_IFT!$B:$B&Tab_IFT!$A:$A&Tab_IFT!$C:$C,0),1), INDEX(Tab_IFT!F:F,MATCH(\"France métropolitaine\"&\"Hors herbicides (ancienne méthode traitement de semences)\"&$B33,Tab_IFT!$B:$B&Tab_IFT!$A:$A&Tab_IFT!$C:$C,0),1)), 0)","v":12.25},{"$f":"_xlfn.IFNA(_xlfn.IFNA(INDEX(Tab_IFT!G:G,MATCH($B$3&\"Hors herbicides (ancienne méthode traitement de semences)\"&$B33,Tab_IFT!$B:$B&Tab_IFT!$A:$A&Tab_IFT!$C:$C,0),1), INDEX(Tab_IFT!G:G,MATCH(\"France métropolitaine\"&\"Hors herbicides (ancienne méthode traitement de semences)\"&$B33,Tab_IFT!$B:$B&Tab_IFT!$A:$A&Tab_IFT!$C:$C,0),1)), 0)","v":13.47},{"$f":"_xlfn.IFNA(_xlfn.IFNA(INDEX(Tab_IFT!H:H,MATCH($B$3&\"Hors herbicides (ancienne méthode traitement de semences)\"&$B33,Tab_IFT!$B:$B&Tab_IFT!$A:$A&Tab_IFT!$C:$C,0),1), INDEX(Tab_IFT!H:H,MATCH(\"France métropolitaine\"&\"Hors herbicides (ancienne méthode traitement de semences)\"&$B33,Tab_IFT!$B:$B&Tab_IFT!$A:$A&Tab_IFT!$C:$C,0),1)), 0)","v":14.52},{"$f":"_xlfn.IFNA(_xlfn.IFNA(INDEX(Tab_IFT!I:I,MATCH($B$3&\"Hors herbicides (ancienne méthode traitement de semences)\"&$B33,Tab_IFT!$B:$B&Tab_IFT!$A:$A&Tab_IFT!$C:$C,0),1), INDEX(Tab_IFT!I:I,MATCH(\"France métropolitaine\"&\"Hors herbicides (ancienne méthode traitement de semences)\"&$B33,Tab_IFT!$B:$B&Tab_IFT!$A:$A&Tab_IFT!$C:$C,0),1)), 0)","v":15.51},{"$f":"_xlfn.IFNA(_xlfn.IFNA(INDEX(Tab_IFT!J:J,MATCH($B$3&\"Hors herbicides (ancienne méthode traitement de semences)\"&$B33,Tab_IFT!$B:$B&Tab_IFT!$A:$A&Tab_IFT!$C:$C,0),1), INDEX(Tab_IFT!J:J,MATCH(\"France métropolitaine\"&\"Hors herbicides (ancienne méthode traitement de semences)\"&$B33,Tab_IFT!$B:$B&Tab_IFT!$A:$A&Tab_IFT!$C:$C,0),1)), 0)","v":16.899999999999999},{"$f":"IF(AND((R33=INDEX(Tab_IFT!I:I,MATCH(\"France métropolitaine\"&\"Hors herbicides (ancienne méthode traitement de semences)\"&$B33,Tab_IFT!$B:$B&Tab_IFT!$A:$A&Tab_IFT!$C:$C,0),1)),(S33=INDEX(Tab_IFT!J:J,MATCH(\"France métropolitaine\"&\"Hors herbicides (ancienne méthode traitement de semences)\"&$B33,Tab_IFT!$B:$B&Tab_IFT!$A:$A&Tab_IFT!$C:$C,0),1))), \" → Valeurs nationales utilisées\",\"\")","v":" → Valeurs nationales utilisées"}]
[null,"Salade",1553,{"$f":"IFERROR(_xlfn.IFNA(INDEX(Tab_N!C:C,MATCH($B$3&$B34,Tab_N!$A:$A&Tab_N!$B:$B,0),1), INDEX(Tab_N!C:C,MATCH(\"France\"&$B34,Tab_N!$A:$A&Tab_N!$B:$B,0),1)), 0)","v":0},{"$f":"_xlfn.IFNA(_xlfn.IFNA(INDEX(Tab_IFT!D:D,MATCH($B$3&\"Herbicides\"&$B34,Tab_IFT!$B:$B&Tab_IFT!$A:$A&Tab_IFT!$C:$C,0),1), INDEX(Tab_IFT!D:D,MATCH(\"France métropolitaine\"&\"Herbicides\"&$B34,Tab_IFT!$B:$B&Tab_IFT!$A:$A&Tab_IFT!$C:$C,0),1)), 0)","v":0},{"$f":"_xlfn.IFNA(_xlfn.IFNA(INDEX(Tab_IFT!E:E,MATCH($B$3&\"Herbicides\"&$B34,Tab_IFT!$B:$B&Tab_IFT!$A:$A&Tab_IFT!$C:$C,0),1), INDEX(Tab_IFT!E:E,MATCH(\"France métropolitaine\"&\"Herbicides\"&$B34,Tab_IFT!$B:$B&Tab_IFT!$A:$A&Tab_IFT!$C:$C,0),1)), 0)","v":0},{"$f":"_xlfn.IFNA(_xlfn.IFNA(INDEX(Tab_IFT!F:F,MATCH($B$3&\"Herbicides\"&$B34,Tab_IFT!$B:$B&Tab_IFT!$A:$A&Tab_IFT!$C:$C,0),1), INDEX(Tab_IFT!F:F,MATCH(\"France métropolitaine\"&\"Herbicides\"&$B34,Tab_IFT!$B:$B&Tab_IFT!$A:$A&Tab_IFT!$C:$C,0),1)), 0)","v":0},{"$f":"_xlfn.IFNA(_xlfn.IFNA(INDEX(Tab_IFT!G:G,MATCH($B$3&\"Herbicides\"&$B34,Tab_IFT!$B:$B&Tab_IFT!$A:$A&Tab_IFT!$C:$C,0),1), INDEX(Tab_IFT!G:G,MATCH(\"France métropolitaine\"&\"Herbicides\"&$B34,Tab_IFT!$B:$B&Tab_IFT!$A:$A&Tab_IFT!$C:$C,0),1)), 0)","v":0.18},{"$f":"_xlfn.IFNA(_xlfn.IFNA(INDEX(Tab_IFT!H:H,MATCH($B$3&\"Herbicides\"&$B34,Tab_IFT!$B:$B&Tab_IFT!$A:$A&Tab_IFT!$C:$C,0),1), INDEX(Tab_IFT!H:H,MATCH(\"France métropolitaine\"&\"Herbicides\"&$B34,Tab_IFT!$B:$B&Tab_IFT!$A:$A&Tab_IFT!$C:$C,0),1)), 0)","v":0.27},{"$f":"_xlfn.IFNA(_xlfn.IFNA(INDEX(Tab_IFT!I:I,MATCH($B$3&\"Herbicides\"&$B34,Tab_IFT!$B:$B&Tab_IFT!$A:$A&Tab_IFT!$C:$C,0),1), INDEX(Tab_IFT!I:I,MATCH(\"France métropolitaine\"&\"Herbicides\"&$B34,Tab_IFT!$B:$B&Tab_IFT!$A:$A&Tab_IFT!$C:$C,0),1)), 0)","v":0.54},{"$f":"_xlfn.IFNA(_xlfn.IFNA(INDEX(Tab_IFT!J:J,MATCH($B$3&\"Herbicides\"&$B34,Tab_IFT!$B:$B&Tab_IFT!$A:$A&Tab_IFT!$C:$C,0),1), INDEX(Tab_IFT!J:J,MATCH(\"France métropolitaine\"&\"Herbicides\"&$B34,Tab_IFT!$B:$B&Tab_IFT!$A:$A&Tab_IFT!$C:$C,0),1)), 0)","v":0.7},{"$f":"IF(AND((K34=INDEX(Tab_IFT!J:J,MATCH(\"France métropolitaine\"&\"Herbicides\"&$B34,Tab_IFT!$B:$B&Tab_IFT!$A:$A&Tab_IFT!$C:$C,0),1)),(J34=INDEX(Tab_IFT!I:I,MATCH(\"France métropolitaine\"&\"Herbicides\"&$B34,Tab_IFT!$B:$B&Tab_IFT!$A:$A&Tab_IFT!$C:$C,0),1))), \" → Valeurs nationales utilisées\",\"\")","v":" → Valeurs nationales utilisées"},{"$f":"_xlfn.IFNA(_xlfn.IFNA(INDEX(Tab_IFT!D:D,MATCH($B$3&\"Hors herbicides (ancienne méthode traitement de semences)\"&$B34,Tab_IFT!$B:$B&Tab_IFT!$A:$A&Tab_IFT!$C:$C,0),1), INDEX(Tab_IFT!D:D,MATCH(\"France métropolitaine\"&\"Hors herbicides (ancienne méthode traitement de semences)\"&$B34,Tab_IFT!$B:$B&Tab_IFT!$A:$A&Tab_IFT!$C:$C,0),1)), 0)","v":1},{"$f":"_xlfn.IFNA(_xlfn.IFNA(INDEX(Tab_IFT!E:E,MATCH($B$3&\"Hors herbicides (ancienne méthode traitement de semences)\"&$B34,Tab_IFT!$B:$B&Tab_IFT!$A:$A&Tab_IFT!$C:$C,0),1), INDEX(Tab_IFT!E:E,MATCH(\"France métropolitaine\"&\"Hors herbicides (ancienne méthode traitement de semences)\"&$B34,Tab_IFT!$B:$B&Tab_IFT!$A:$A&Tab_IFT!$C:$C,0),1)), 0)","v":1},{"$f":"_xlfn.IFNA(_xlfn.IFNA(INDEX(Tab_IFT!F:F,MATCH($B$3&\"Hors herbicides (ancienne méthode traitement de semences)\"&$B34,Tab_IFT!$B:$B&Tab_IFT!$A:$A&Tab_IFT!$C:$C,0),1), INDEX(Tab_IFT!F:F,MATCH(\"France métropolitaine\"&\"Hors herbicides (ancienne méthode traitement de semences)\"&$B34,Tab_IFT!$B:$B&Tab_IFT!$A:$A&Tab_IFT!$C:$C,0),1)), 0)","v":1.33},{"$f":"_xlfn.IFNA(_xlfn.IFNA(INDEX(Tab_IFT!G:G,MATCH($B$3&\"Hors herbicides (ancienne méthode traitement de semences)\"&$B34,Tab_IFT!$B:$B&Tab_IFT!$A:$A&Tab_IFT!$C:$C,0),1), INDEX(Tab_IFT!G:G,MATCH(\"France métropolitaine\"&\"Hors herbicides (ancienne méthode traitement de semences)\"&$B34,Tab_IFT!$B:$B&Tab_IFT!$A:$A&Tab_IFT!$C:$C,0),1)), 0)","v":1.71},{"$f":"_xlfn.IFNA(_xlfn.IFNA(INDEX(Tab_IFT!H:H,MATCH($B$3&\"Hors herbicides (ancienne méthode traitement de semences)\"&$B34,Tab_IFT!$B:$B&Tab_IFT!$A:$A&Tab_IFT!$C:$C,0),1), INDEX(Tab_IFT!H:H,MATCH(\"France métropolitaine\"&\"Hors herbicides (ancienne méthode traitement de semences)\"&$B34,Tab_IFT!$B:$B&Tab_IFT!$A:$A&Tab_IFT!$C:$C,0),1)), 0)","v":2},{"$f":"_xlfn.IFNA(_xlfn.IFNA(INDEX(Tab_IFT!I:I,MATCH($B$3&\"Hors herbicides (ancienne méthode traitement de semences)\"&$B34,Tab_IFT!$B:$B&Tab_IFT!$A:$A&Tab_IFT!$C:$C,0),1), INDEX(Tab_IFT!I:I,MATCH(\"France métropolitaine\"&\"Hors herbicides (ancienne méthode traitement de semences)\"&$B34,Tab_IFT!$B:$B&Tab_IFT!$A:$A&Tab_IFT!$C:$C,0),1)), 0)","v":2.5499999999999998},{"$f":"_xlfn.IFNA(_xlfn.IFNA(INDEX(Tab_IFT!J:J,MATCH($B$3&\"Hors herbicides (ancienne méthode traitement de semences)\"&$B34,Tab_IFT!$B:$B&Tab_IFT!$A:$A&Tab_IFT!$C:$C,0),1), INDEX(Tab_IFT!J:J,MATCH(\"France métropolitaine\"&\"Hors herbicides (ancienne méthode traitement de semences)\"&$B34,Tab_IFT!$B:$B&Tab_IFT!$A:$A&Tab_IFT!$C:$C,0),1)), 0)","v":3.84},{"$f":"IF(AND((R34=INDEX(Tab_IFT!I:I,MATCH(\"France métropolitaine\"&\"Hors herbicides (ancienne méthode traitement de semences)\"&$B34,Tab_IFT!$B:$B&Tab_IFT!$A:$A&Tab_IFT!$C:$C,0),1)),(S34=INDEX(Tab_IFT!J:J,MATCH(\"France métropolitaine\"&\"Hors herbicides (ancienne méthode traitement de semences)\"&$B34,Tab_IFT!$B:$B&Tab_IFT!$A:$A&Tab_IFT!$C:$C,0),1))), \" → Valeurs nationales utilisées\",\"\")","v":" → Valeurs nationales utilisées"}]
[null,"Tomate",16,{"$f":"IFERROR(_xlfn.IFNA(INDEX(Tab_N!C:C,MATCH($B$3&$B35,Tab_N!$A:$A&Tab_N!$B:$B,0),1), INDEX(Tab_N!C:C,MATCH(\"France\"&$B35,Tab_N!$A:$A&Tab_N!$B:$B,0),1)), 0)","v":0},{"$f":"_xlfn.IFNA(_xlfn.IFNA(INDEX(Tab_IFT!D:D,MATCH($B$3&\"Herbicides\"&$B35,Tab_IFT!$B:$B&Tab_IFT!$A:$A&Tab_IFT!$C:$C,0),1), INDEX(Tab_IFT!D:D,MATCH(\"France métropolitaine\"&\"Herbicides\"&$B35,Tab_IFT!$B:$B&Tab_IFT!$A:$A&Tab_IFT!$C:$C,0),1)), 0)","v":0},{"$f":"_xlfn.IFNA(_xlfn.IFNA(INDEX(Tab_IFT!E:E,MATCH($B$3&\"Herbicides\"&$B35,Tab_IFT!$B:$B&Tab_IFT!$A:$A&Tab_IFT!$C:$C,0),1), INDEX(Tab_IFT!E:E,MATCH(\"France métropolitaine\"&\"Herbicides\"&$B35,Tab_IFT!$B:$B&Tab_IFT!$A:$A&Tab_IFT!$C:$C,0),1)), 0)","v":0},{"$f":"_xlfn.IFNA(_xlfn.IFNA(INDEX(Tab_IFT!F:F,MATCH($B$3&\"Herbicides\"&$B35,Tab_IFT!$B:$B&Tab_IFT!$A:$A&Tab_IFT!$C:$C,0),1), INDEX(Tab_IFT!F:F,MATCH(\"France métropolitaine\"&\"Herbicides\"&$B35,Tab_IFT!$B:$B&Tab_IFT!$A:$A&Tab_IFT!$C:$C,0),1)), 0)","v":0},{"$f":"_xlfn.IFNA(_xlfn.IFNA(INDEX(Tab_IFT!G:G,MATCH($B$3&\"Herbicides\"&$B35,Tab_IFT!$B:$B&Tab_IFT!$A:$A&Tab_IFT!$C:$C,0),1), INDEX(Tab_IFT!G:G,MATCH(\"France métropolitaine\"&\"Herbicides\"&$B35,Tab_IFT!$B:$B&Tab_IFT!$A:$A&Tab_IFT!$C:$C,0),1)), 0)","v":0},{"$f":"_xlfn.IFNA(_xlfn.IFNA(INDEX(Tab_IFT!H:H,MATCH($B$3&\"Herbicides\"&$B35,Tab_IFT!$B:$B&Tab_IFT!$A:$A&Tab_IFT!$C:$C,0),1), INDEX(Tab_IFT!H:H,MATCH(\"France métropolitaine\"&\"Herbicides\"&$B35,Tab_IFT!$B:$B&Tab_IFT!$A:$A&Tab_IFT!$C:$C,0),1)), 0)","v":0.93},{"$f":"_xlfn.IFNA(_xlfn.IFNA(INDEX(Tab_IFT!I:I,MATCH($B$3&\"Herbicides\"&$B35,Tab_IFT!$B:$B&Tab_IFT!$A:$A&Tab_IFT!$C:$C,0),1), INDEX(Tab_IFT!I:I,MATCH(\"France métropolitaine\"&\"Herbicides\"&$B35,Tab_IFT!$B:$B&Tab_IFT!$A:$A&Tab_IFT!$C:$C,0),1)), 0)","v":1.01},{"$f":"_xlfn.IFNA(_xlfn.IFNA(INDEX(Tab_IFT!J:J,MATCH($B$3&\"Herbicides\"&$B35,Tab_IFT!$B:$B&Tab_IFT!$A:$A&Tab_IFT!$C:$C,0),1), INDEX(Tab_IFT!J:J,MATCH(\"France métropolitaine\"&\"Herbicides\"&$B35,Tab_IFT!$B:$B&Tab_IFT!$A:$A&Tab_IFT!$C:$C,0),1)), 0)","v":1.5},{"$f":"IF(AND((K35=INDEX(Tab_IFT!J:J,MATCH(\"France métropolitaine\"&\"Herbicides\"&$B35,Tab_IFT!$B:$B&Tab_IFT!$A:$A&Tab_IFT!$C:$C,0),1)),(J35=INDEX(Tab_IFT!I:I,MATCH(\"France métropolitaine\"&\"Herbicides\"&$B35,Tab_IFT!$B:$B&Tab_IFT!$A:$A&Tab_IFT!$C:$C,0),1))), \" → Valeurs nationales utilisées\",\"\")","v":" → Valeurs nationales utilisées"},{"$f":"_xlfn.IFNA(_xlfn.IFNA(INDEX(Tab_IFT!D:D,MATCH($B$3&\"Hors herbicides (ancienne méthode traitement de semences)\"&$B35,Tab_IFT!$B:$B&Tab_IFT!$A:$A&Tab_IFT!$C:$C,0),1), INDEX(Tab_IFT!D:D,MATCH(\"France métropolitaine\"&\"Hors herbicides (ancienne méthode traitement de semences)\"&$B35,Tab_IFT!$B:$B&Tab_IFT!$A:$A&Tab_IFT!$C:$C,0),1)), 0)","v":1.03},{"$f":"_xlfn.IFNA(_xlfn.IFNA(INDEX(Tab_IFT!E:E,MATCH($B$3&\"Hors herbicides (ancienne méthode traitement de semences)\"&$B35,Tab_IFT!$B:$B&Tab_IFT!$A:$A&Tab_IFT!$C:$C,0),1), INDEX(Tab_IFT!E:E,MATCH(\"France métropolitaine\"&\"Hors herbicides (ancienne méthode traitement de semences)\"&$B35,Tab_IFT!$B:$B&Tab_IFT!$A:$A&Tab_IFT!$C:$C,0),1)), 0)","v":3.13},{"$f":"_xlfn.IFNA(_xlfn.IFNA(INDEX(Tab_IFT!F:F,MATCH($B$3&\"Hors herbicides (ancienne méthode traitement de semences)\"&$B35,Tab_IFT!$B:$B&Tab_IFT!$A:$A&Tab_IFT!$C:$C,0),1), INDEX(Tab_IFT!F:F,MATCH(\"France métropolitaine\"&\"Hors herbicides (ancienne méthode traitement de semences)\"&$B35,Tab_IFT!$B:$B&Tab_IFT!$A:$A&Tab_IFT!$C:$C,0),1)), 0)","v":5.14},{"$f":"_xlfn.IFNA(_xlfn.IFNA(INDEX(Tab_IFT!G:G,MATCH($B$3&\"Hors herbicides (ancienne méthode traitement de semences)\"&$B35,Tab_IFT!$B:$B&Tab_IFT!$A:$A&Tab_IFT!$C:$C,0),1), INDEX(Tab_IFT!G:G,MATCH(\"France métropolitaine\"&\"Hors herbicides (ancienne méthode traitement de semences)\"&$B35,Tab_IFT!$B:$B&Tab_IFT!$A:$A&Tab_IFT!$C:$C,0),1)), 0)","v":7.65},{"$f":"_xlfn.IFNA(_xlfn.IFNA(INDEX(Tab_IFT!H:H,MATCH($B$3&\"Hors herbicides (ancienne méthode traitement de semences)\"&$B35,Tab_IFT!$B:$B&Tab_IFT!$A:$A&Tab_IFT!$C:$C,0),1), INDEX(Tab_IFT!H:H,MATCH(\"France métropolitaine\"&\"Hors herbicides (ancienne méthode traitement de semences)\"&$B35,Tab_IFT!$B:$B&Tab_IFT!$A:$A&Tab_IFT!$C:$C,0),1)), 0)","v":9.06},{"$f":"_xlfn.IFNA(_xlfn.IFNA(INDEX(Tab_IFT!I:I,MATCH($B$3&\"Hors herbicides (ancienne méthode traitement de semences)\"&$B35,Tab_IFT!$B:$B&Tab_IFT!$A:$A&Tab_IFT!$C:$C,0),1), INDEX(Tab_IFT!I:I,MATCH(\"France métropolitaine\"&\"Hors herbicides (ancienne méthode traitement de semences)\"&$B35,Tab_IFT!$B:$B&Tab_IFT!$A:$A&Tab_IFT!$C:$C,0),1)), 0)","v":11.23},{"$f":"_xlfn.IFNA(_xlfn.IFNA(INDEX(Tab_IFT!J:J,MATCH($B$3&\"Hors herbicides (ancienne méthode traitement de semences)\"&$B35,Tab_IFT!$B:$B&Tab_IFT!$A:$A&Tab_IFT!$C:$C,0),1), INDEX(Tab_IFT!J:J,MATCH(\"France métropolitaine\"&\"Hors herbicides (ancienne méthode traitement de semences)\"&$B35,Tab_IFT!$B:$B&Tab_IFT!$A:$A&Tab_IFT!$C:$C,0),1)), 0)","v":13.34},{"$f":"IF(AND((R35=INDEX(Tab_IFT!I:I,MATCH(\"France métropolitaine\"&\"Hors herbicides (ancienne méthode traitement de semences)\"&$B35,Tab_IFT!$B:$B&Tab_IFT!$A:$A&Tab_IFT!$C:$C,0),1)),(S35=INDEX(Tab_IFT!J:J,MATCH(\"France métropolitaine\"&\"Hors herbicides (ancienne méthode traitement de semences)\"&$B35,Tab_IFT!$B:$B&Tab_IFT!$A:$A&Tab_IFT!$C:$C,0),1))), \" → Valeurs nationales utilisées\",\"\")","v":" → Valeurs nationales utilisées"}]
[]
[null,"Bilan d'IFT"]
[]
[null,"Seuils d'IFT Herbicides"]
[null,null,"Grandes cultures",null,null,null,"Cultures légumières"]
[null,"Année d'engagement","Surfaces engagées",null,"Surfaces éligibles non engagées",null,"Surfaces engagées",null,"Surfaces éligibles non engagées"]
[null,null,"IFT max à respecter sur les surfaces engagées","Percentile utilisé","IFT max à respecter sur les surfaces non engagées","Percentile utilisé","IFT max à respecter sur les surfaces engagées","Percentile utilisé","IFT max à respecter sur les surfaces non engagées","Percentile utilisé"]
[null,"année 1"]
[null,"année 2",{"$f":"IFERROR((1-$B$5)*SUMPRODUCT(INDEX($E$11:$K$24,$11:$24,MATCH($D44,$E$10:$K$10,0)),$C$11:$C$24)/(SUMIF($K$11:$K$24, \"<>0\", $C$11:$C$24)+$B$7), \"\")","v":1.6612745347947999},"P50",{"$f":"IFERROR((1-$B$5)*SUMPRODUCT(INDEX($E$11:$K$24,$11:$24,MATCH($F44,$E$10:$K$10,0)),$C$11:$C$24)/(SUMIF($K$11:$K$24, \"<>0\", $C$11:$C$24)+$B$7), \"\")","v":2.028889880193729},"P70",{"$f":"IFERROR(SUMPRODUCT(INDEX($E$27:$K$35,$27:$35,MATCH($H44,$E$10:$K$10,0)),$C$27:$C$35)/(SUMIF($K$27:$K$35, \"<>0\", $C$27:$C$35)), \"\")","v":0.94278956422018356},{"$f":"D44","v":"P50"},{"$f":"IFERROR(SUMPRODUCT(INDEX($E$27:$K$35,$27:$35,MATCH($J44,$E$10:$K$10,0)),$C$27:$C$35)/(SUMIF($K$27:$K$35, \"<>0\", $C$27:$C$35)), \"\")","v":1.380584862385321},"P70"]
[null,"Moyenne années 2 et 3 OU année 3",{"$f":"IFERROR((1-$B$5)*SUMPRODUCT(INDEX($E$11:$K$24,$11:$24,MATCH($D45,$E$10:$K$10,0)),$C$11:$C$24)/(SUMIF($K$11:$K$24, \"<>0\", $C$11:$C$24)+$B$7), \"\")","v":1.1644952842212595},"P30",{"$f":"IFERROR((1-$B$5)*SUMPRODUCT(INDEX($E$11:$K$24,$11:$24,MATCH($F45,$E$10:$K$10,0)),$C$11:$C$24)/(SUMIF($K$11:$K$24, \"<>0\", $C$11:$C$24)+$B$7), \"\")","v":2.028889880193729},"P70",{"$f":"IFERROR(SUMPRODUCT(INDEX($E$27:$K$35,$27:$35,MATCH($H45,$E$10:$K$10,0)),$C$27:$C$35)/(SUMIF($K$27:$K$35, \"<>0\", $C$27:$C$35)), \"\")","v":0.64189793577981658},{"$f":"D45","v":"P30"},{"$f":"IFERROR(SUMPRODUCT(INDEX($E$27:$K$35,$27:$35,MATCH($J45,$E$10:$K$10,0)),$C$27:$C$35)/(SUMIF($K$27:$K$35, \"<>0\", $C$27:$C$35)), \"\")","v":1.380584862385321},"P70"]
[null,"Moyenne années 2,3,4 OU année 4",{"$f":"IFERROR((1-$B$5)*SUMPRODUCT(INDEX($E$11:$K$24,$11:$24,MATCH($D46,$E$10:$K$10,0)),$C$11:$C$24)/(SUMIF($K$11:$K$24, \"<>0\", $C$11:$C$24)+$B$7), \"\")","v":1.1644952842212595},"P30",{"$f":"IFERROR((1-$B$5)*SUMPRODUCT(INDEX($E$11:$K$24,$11:$24,MATCH($F46,$E$10:$K$10,0)),$C$11:$C$24)/(SUMIF($K$11:$K$24, \"<>0\", $C$11:$C$24)+$B$7), \"\")","v":2.028889880193729},"P70",{"$f":"IFERROR(SUMPRODUCT(INDEX($E$27:$K$35,$27:$35,MATCH($H46,$E$10:$K$10,0)),$C$27:$C$35)/(SUMIF($K$27:$K$35, \"<>0\", $C$27:$C$35)), \"\")","v":0.64189793577981658},"P30",{"$f":"IFERROR(SUMPRODUCT(INDEX($E$27:$K$35,$27:$35,MATCH($J46,$E$10:$K$10,0)),$C$27:$C$35)/(SUMIF($K$27:$K$35, \"<>0\", $C$27:$C$35)), \"\")","v":1.380584862385321},"P70"]
[null,"Moyenne années 2,3,4,5 OU année 5",{"$f":"IFERROR((1-$B$5)*SUMPRODUCT(INDEX($E$11:$K$24,$11:$24,MATCH($D47,$E$10:$K$10,0)),$C$11:$C$24)/(SUMIF($K$11:$K$24, \"<>0\", $C$11:$C$24)+$B$7), \"\")","v":1.1644952842212595},"P30",{"$f":"IFERROR((1-$B$5)*SUMPRODUCT(INDEX($E$11:$K$24,$11:$24,MATCH($F47,$E$10:$K$10,0)),$C$11:$C$24)/(SUMIF($K$11:$K$24, \"<>0\", $C$11:$C$24)+$B$7), \"\")","v":2.028889880193729},"P70",{"$f":"IFERROR(SUMPRODUCT(INDEX($E$27:$K$35,$27:$35,MATCH($H47,$E$10:$K$10,0)),$C$27:$C$35)/(SUMIF($K$27:$K$35, \"<>0\", $C$27:$C$35)), \"\")","v":0.64189793577981658},"P30",{"$f":"IFERROR(SUMPRODUCT(INDEX($E$27:$K$35,$27:$35,MATCH($J47,$E$10:$K$10,0)),$C$27:$C$35)/(SUMIF($K$27:$K$35, \"<>0\", $C$27:$C$35)), \"\")","v":1.380584862385321},"P70"]
[]
[null,"Seuils d'IFT Hors herbicides"]
[null,null,"Grandes cultures",null,null,null,"Cultures légumières"]
[null,"Année d'engagement","Surfaces engagées",null,"Surfaces éligibles non engagées",null,"Surfaces engagées",null,"Surfaces éligibles non engagées"]
[null,null,"IFT max à respecter sur les surfaces engagées","Percentile utilisé","IFT max à respecter sur les surfaces non engagées","Percentile utilisé","IFT max à respecter sur les surfaces engagées","Percentile utilisé","IFT max à respecter sur les surfaces non engagées","Percentile utilisé"]
[null,"année 1"]
[null,"année 2",{"$f":"IFERROR((1-$B$5)*SUMPRODUCT(INDEX($M$11:$S$24,$11:$24,MATCH($D54,$M$10:$S$10,0)),$C$11:$C$24)/(SUMIF($S$11:$S$24, \"<>0\", $C$11:$C$24)+$B$7), \"\")","v":""},null,{"$f":"IFERROR((1-$B$5)*SUMPRODUCT(INDEX($M$11:$S$24,$11:$24,MATCH($F54,$M$10:$S$10,0)),$C$11:$C$24)/(SUMIF($S$11:$S$24, \"<>0\", $C$11:$C$24)+$B$7), \"\")","v":""},null,{"$f":"IFERROR(SUMPRODUCT(INDEX($M$27:$S$35,$27:$35,MATCH($H54,$M$10:$S$10,0)),$C$27:$C$35)/(SUMIF($S$27:$S$35, \"<>0\", $C$27:$C$35)), \"\")","v":""},{"$f":"IF(D54<>0,D54,\"\")","v":""},{"$f":"IFERROR(SUMPRODUCT(INDEX($M$27:$S$35,$27:$35,MATCH($J54,$M$10:$S$10,0)),$C$27:$C$35)/(SUMIF($S$27:$S$35, \"<>0\", $C$27:$C$35)), \"\")","v":""},{"$f":"IF(F54<>0,F54,\"\")","v":""}]
[null,"Moyenne années 2 et 3 OU année 3",{"$f":"IFERROR((1-$B$5)*SUMPRODUCT(INDEX($M$11:$S$24,$11:$24,MATCH($D55,$M$10:$S$10,0)),$C$11:$C$24)/(SUMIF($S$11:$S$24, \"<>0\", $C$11:$C$24)+$B$7), \"\")","v":""},null,{"$f":"IFERROR((1-$B$5)*SUMPRODUCT(INDEX($M$11:$S$24,$11:$24,MATCH($F55,$M$10:$S$10,0)),$C$11:$C$24)/(SUMIF($S$11:$S$24, \"<>0\", $C$11:$C$24)+$B$7), \"\")","v":""},null,{"$f":"IFERROR(SUMPRODUCT(INDEX($M$27:$S$35,$27:$35,MATCH($H55,$M$10:$S$10,0)),$C$27:$C$35)/(SUMIF($S$27:$S$35, \"<>0\", $C$27:$C$35)), \"\")","v":""},{"$f":"IF(D55<>0,D55,\"\")","v":""},{"$f":"IFERROR(SUMPRODUCT(INDEX($M$27:$S$35,$27:$35,MATCH($J55,$M$10:$S$10,0)),$C$27:$C$35)/(SUMIF($S$27:$S$35, \"<>0\", $C$27:$C$35)), \"\")","v":""},{"$f":"IF(F55<>0,F55,\"\")","v":""}]
[null,"Moyenne années 2,3,4 OU année 4",{"$f":"IFERROR((1-$B$5)*SUMPRODUCT(INDEX($M$11:$S$24,$11:$24,MATCH($D56,$M$10:$S$10,0)),$C$11:$C$24)/(SUMIF($S$11:$S$24, \"<>0\", $C$11:$C$24)+$B$7), \"\")","v":""},null,{"$f":"IFERROR((1-$B$5)*SUMPRODUCT(INDEX($M$11:$S$24,$11:$24,MATCH($F56,$M$10:$S$10,0)),$C$11:$C$24)/(SUMIF($S$11:$S$24, \"<>0\", $C$11:$C$24)+$B$7), \"\")","v":""},null,{"$f":"IFERROR(SUMPRODUCT(INDEX($M$27:$S$35,$27:$35,MATCH($H56,$M$10:$S$10,0)),$C$27:$C$35)/(SUMIF($S$27:$S$35, \"<>0\", $C$27:$C$35)), \"\")","v":""},{"$f":"IF(D56<>0,D56,\"\")","v":""},{"$f":"IFERROR(SUMPRODUCT(INDEX($M$27:$S$35,$27:$35,MATCH($J56,$M$10:$S$10,0)),$C$27:$C$35)/(SUMIF($S$27:$S$35, \"<>0\", $C$27:$C$35)), \"\")","v":""},""]
[null,"Moyenne années 2,3,4,5 OU année 5",{"$f":"IFERROR((1-$B$5)*SUMPRODUCT(INDEX($M$11:$S$24,$11:$24,MATCH($D57,$M$10:$S$10,0)),$C$11:$C$24)/(SUMIF($S$11:$S$24, \"<>0\", $C$11:$C$24)+$B$7), \"\")","v":""},null,{"$f":"IFERROR((1-$B$5)*SUMPRODUCT(INDEX($M$11:$S$24,$11:$24,MATCH($F57,$M$10:$S$10,0)),$C$11:$C$24)/(SUMIF($S$11:$S$24, \"<>0\", $C$11:$C$24)+$B$7), \"\")","v":""},null,{"$f":"IFERROR(SUMPRODUCT(INDEX($M$27:$S$35,$27:$35,MATCH($H57,$M$10:$S$10,0)),$C$27:$C$35)/(SUMIF($S$27:$S$35, \"<>0\", $C$27:$C$35)), \"\")","v":""},"",{"$f":"IFERROR(SUMPRODUCT(INDEX($M$27:$S$35,$27:$35,MATCH($J57,$M$10:$S$10,0)),$C$27:$C$35)/(SUMIF($S$27:$S$35, \"<>0\", $C$27:$C$35)), \"\")","v":""},""]
[]
[]
[]
[null,"Bilan d'Azote minéral"]
[null,null,"Grandes cultures",null,null,null,"Cultures légumières"]
[null,"Moyenne régionale (indicative)",{"$f":"SUMPRODUCT($C$11:$C$26,$D$11:$D$26)/SUMIF($D$11:$D$26, \"<>0\", $C$11:$C$26)","v":55.715926684881602},null,null,null,{"$f":"IFERROR(SUMPRODUCT($C$27:$C$35,$D$27:$D$35)/SUMIF($D$27:$D$35, \"<>0\", $C$27:$C$35), \"Données non disponibles pour le moment\")","v":83.549825174825173}]
[null,"Année d'engagement","Pression de référence à ne pas dépasser",null,"Pourcentage utilisé",null,"Pression de référence à ne pas dépasser",null,"Pourcentage utilisé"]
[null,"année 1"]
[null,"année 2",{"$f":"IF((SUMPRODUCT($C$11:$C$26,$D$11:$D$26)*E66)/(SUMIF($D$11:$D$26, \"<>0\", $C$11:$C$26)*100)=0, \"Vérifier les cases\", (IFERROR((SUMPRODUCT($C$11:$C$26,$D$11:$D$26)*E66)/(SUMIF($D$11:$D$26, \"<>0\", $C$11:$C$26)*100), \"Vérifier les cases\")))","v":"Vérifier les cases"},null,null,null,{"$f":"IFERROR(IF(SUMPRODUCT((($C$27:$C$35,$D$27:$D$35)*I66)/(SUMIF($D$27:$D$35, \"<>0\", $C$27:$C$35)*100))=0, \"Vérifier les cases\", SUMPRODUCT((($C$27:$C$35,$D$27:$D$35)*I66)/(SUMIF($D$27:$D$35, \"<>0\", $C$27:$C$35)*100))=0 ), \"Données non disponibles\" )","v":"Données non disponibles"}]
[null,"Moyenne années 2 et 3 OU année 3",{"$f":"IF((SUMPRODUCT($C$11:$C$26,$D$11:$D$26)*E67)/(SUMIF($D$11:$D$26, \"<>0\", $C$11:$C$26)*100)=0, \"Vérifier les cases\", (IFERROR((SUMPRODUCT($C$11:$C$26,$D$11:$D$26)*E67)/(SUMIF($D$11:$D$26, \"<>0\", $C$11:$C$26)*100), \"Vérifier les cases\")))","v":"Vérifier les cases"},null,null,null,{"$f":"IFERROR(IF(SUMPRODUCT((($C$27:$C$35,$D$27:$D$35)*I67)/(SUMIF($D$27:$D$35, \"<>0\", $C$27:$C$35)*100))=0, \"Vérifier les cases\", SUMPRODUCT((($C$27:$C$35,$D$27:$D$35)*I67)/(SUMIF($D$27:$D$35, \"<>0\", $C$27:$C$35)*100))=0 ), \"Données non disponibles\" )","v":"Données non disponibles"}]
[null,"Moyenne années 2,3,4 OU année 4",{"$f":"IF((SUMPRODUCT($C$11:$C$26,$D$11:$D$26)*E68)/(SUMIF($D$11:$D$26, \"<>0\", $C$11:$C$26)*100)=0, \"Vérifier les cases\", (IFERROR((SUMPRODUCT($C$11:$C$26,$D$11:$D$26)*E68)/(SUMIF($D$11:$D$26, \"<>0\", $C$11:$C$26)*100), \"Vérifier les cases\")))","v":"Vérifier les cases"},null,null,null,{"$f":"IFERROR(IF(SUMPRODUCT((($C$27:$C$35,$D$27:$D$35)*I68)/(SUMIF($D$27:$D$35, \"<>0\", $C$27:$C$35)*100))=0, \"Vérifier les cases\", SUMPRODUCT((($C$27:$C$35,$D$27:$D$35)*I68)/(SUMIF($D$27:$D$35, \"<>0\", $C$27:$C$35)*100))=0 ), \"Données non disponibles\" )","v":"Données non disponibles"}]
[null,"Moyenne années 2,3,4,5 OU année 5",{"$f":"IF((SUMPRODUCT($C$11:$C$26,$D$11:$D$26)*E69)/(SUMIF($D$11:$D$26, \"<>0\", $C$11:$C$26)*100)=0, \"Vérifier les cases\", (IFERROR((SUMPRODUCT($C$11:$C$26,$D$11:$D$26)*E69)/(SUMIF($D$11:$D$26, \"<>0\", $C$11:$C$26)*100), \"Vérifier les cases\")))","v":"Vérifier les cases"},null,null,null,{"$f":"IFERROR(IF(SUMPRODUCT((($C$27:$C$35,$D$27:$D$35)*I69)/(SUMIF($D$27:$D$35, \"<>0\", $C$27:$C$35)*100))=0, \"Vérifier les cases\", SUMPRODUCT((($C$27:$C$35,$D$27:$D$35)*I69)/(SUMIF($D$27:$D$35, \"<>0\", $C$27:$C$35)*100))=0 ), \"Données non disponibles\" )","v":"Données non disponibles"}]

{"sheet":"Publipostage","index":1,"n_rows":1,"n_cols":37,"rows_kept":1,"cut":false,"hidden":false,"merged":[]}
["IFT Herb GC - engagé - année 2","IFT Herb GC - engagé - année 3","IFT Herb GC - engagé - année 4","IFT Herb GC - engagé - année 5","IFT Herb CL+PdT - engagé - année 2","IFT Herb CL+PdT - engagé - année 3","IFT Herb CL+PdT - engagé - année 4","IFT Herb CL+PdT - engagé - année 5","IFT Herb GC - non-engagé - année 2","IFT Herb GC - non-engagé - année 3","IFT Herb GC - non-engagé - année 4","IFT Herb GC - non-engagé - année 5","IFT Herb CL+PdT - non-engagé - année 2","IFT Herb CL+PdT - non-engagé - année 3","IFT Herb CL+PdT - non-engagé - année 4","IFT Herb CL+PdT - non-engagé - année 5","IFT Hors Herb GC - engagé - année 2","IFT Hors Herb GC - engagé - année 3","IFT Hors Herb GC - engagé - année 4","IFT Hors Herb GC - engagé - année 5","IFT Hors Herb CL+PdT - engagé - année 2","IFT Hors Herb CL+PdT - engagé - année 3","IFT Hors Herb CL+PdT - engagé - année 4","IFT Hors Herb CL+PdT - engagé - année 5","IFT Hors Herb GC - non-engagé - année 2","IFT Hors Herb GC - non-engagé - année 3","IFT Hors Herb GC - non-engagé - année 4","IFT Hors Herb GC - non-engagé - année 5","IFT Hors Herb CL+PdT - non-engagé - année 2","IFT Hors Herb CL+PdT - non-engagé - année 3","IFT Hors Herb CL+PdT - non-engagé - année 4","IFT Hors Herb CL+PdT - non-engagé - année 5","Echelle géographique","Surfaces herbacées imposées par le cahier des charges","Surfaces en PT dans le cas d'une mesure ouverte a la polyculture-élevage","Code de la MAEC","Code du PAEC"]

{"sheet":"Listes","index":2,"n_rows":83,"n_cols":1,"rows_kept":83,"cut":false,"hidden":true,"merged":[]}
["Liste cultures"]
["Blé tendre"]
["Blé dur"]
["Orge"]
["Triticale"]
["Colza"]
["Tournesol"]
["Pois protéagineux"]
["Maïs fourrage"]
["Maïs grain"]
["Betterave sucrière"]
["Pomme de terre"]
["Canne à sucre"]
["Féverole"]
["Soja"]
["Lin fibre"]
["Lin Oléagineux"]
["Carotte"]
["Poireau"]
["Salade"]
["Chou fleur, Brocoli à jets et Romanesco"]
["Autres choux (hors chou à choucroute)"]
["Melon"]
["Tomate"]
["Fraise"]
["Autres cultures légumières"]
["Prairies permanentes"]
["Prairies temporaires"]
[]
["Echelle géographique"]
["Alsace"]
["Aquitaine"]
["Auvergne"]
["Basse-Normandie"]
["Bourgogne"]
["Bretagne"]
["Centre"]
["Champagne-Ardenne"]
["Corse"]
["Franche-Comté"]
["Haute-Normandie"]
["Ile-de-France"]
["Languedoc-Roussillon"]
["Limousin"]
["Lorraine"]
["Midi-Pyrénées"]
["Nord-Pas-de-Calais"]
["Pays de la Loire"]
["Picardie"]
["Poitou-Charentes"]
["Provence-Alpes-Côte d'Azur"]
["Rhône-Alpes"]
["Martinique"]
["Guadeloupe"]
["Guyane"]
["Réunion"]
["Mayotte"]
["France métropolitaine"]
[]
["Type de traitement"]
["Herbicides"]
["Hors herbicides (ancienne méthode traitement de semences)"]
[]
[]
["Percentiles"]
["P70"]
["P60"]
["P50"]
["P40"]
["P30"]
["P20"]
["P10"]
[]
["Pourcentages"]
[90]
[80]
[70]
[]
["Surfaces herbacées imposées "]
[0.3]
[0.2]
[0.1]
[0]

{"sheet":"Tab_N","index":3,"n_rows":182,"n_cols":3,"rows_kept":182,"cut":false,"hidden":true,"merged":[]}
["Echelle géographique","Culture ","Pression en azote minéral"]
["Alsace","Blé tendre",167.9]
["Alsace","Maïs grain",178.9]
["Aquitaine","Triticale",93.3]
["Aquitaine","Tournesol",65.8]
["Aquitaine","Maïs fourrage",140]
["Aquitaine","Maïs grain",191.9]
["Aquitaine","Féverole",2.2000000000000002]
["Aquitaine","Soja",5]
["Auvergne","Blé tendre",148.9]
["Auvergne","Triticale",84.2]
["Auvergne","Colza",142.30000000000001]
["Auvergne","Tournesol",33.9]
["Auvergne","Maïs fourrage",68.8]
["Auvergne","Maïs grain",152]
["Basse-Normandie","Blé tendre",161.19999999999999]
["Basse-Normandie","Orge",130.30000000000001]
["Basse-Normandie","Triticale",107.4]
["Basse-Normandie","Colza",157]
["Basse-Normandie","Pois protéagineux",1]
["Basse-Normandie","Maïs fourrage",53]
["Basse-Normandie","Betterave sucrière",98.9]
["Basse-Normandie","Féverole",0]
["Bourgogne","Blé tendre",155.69999999999999]
["Bourgogne","Orge",132.19999999999999]
["Bourgogne","Triticale",88.4]
["Bourgogne","Colza",165.2]
["Bourgogne","Tournesol",33.299999999999997]
["Bourgogne","Pois protéagineux",0.6]
["Bourgogne","Maïs fourrage",112.4]
["Bourgogne","Maïs grain",156.69999999999999]
["Bourgogne","Soja",1]
["Bourgogne","Lin Oléagineux",79.400000000000006]
["Bretagne","Blé tendre",138.5]
["Bretagne","Orge",97.5]
["Bretagne","Triticale",98.3]
["Bretagne","Colza",81.8]
["Bretagne","Maïs fourrage",22.6]
["Bretagne","Maïs grain",26.4]
["Bretagne","Pomme de terre",76.8]
["Bretagne","Féverole",0.7]
["Centre","Blé tendre",178.8]
["Centre","Blé dur",203.9]
["Centre","Orge",115.9]
["Centre","Triticale",102.3]
["Centre","Colza",163.30000000000001]
["Centre","Tournesol",37]
["Centre","Pois protéagineux",0.2]
["Centre","Maïs fourrage",106.9]
["Centre","Maïs grain",142.1]
["Centre","Betterave sucrière",90.2]
["Centre","Pomme de terre",127.8]
["Centre","Féverole",0.8]
["Centre","Lin Oléagineux",75.3]
["Champagne-Ardenne","Blé tendre",174.3]
["Champagne-Ardenne","Orge",117.1]
["Champagne-Ardenne","Triticale",108.1]
["Champagne-Ardenne","Colza",172]
["Champagne-Ardenne","Pois protéagineux",1.9]
["Champagne-Ardenne","Maïs fourrage",121.1]
["Champagne-Ardenne","Maïs grain",138.30000000000001]
["Champagne-Ardenne","Betterave sucrière",72.7]
["Champagne-Ardenne","Pomme de terre",142.69999999999999]
["Champagne-Ardenne","Féverole",1.5]
["France","Blé tendre",164.1]
["France","Blé dur",188.1]
["France","Orge",120.1]
["France","Triticale",90.7]
["France","Colza",157.69999999999999]
["France","Tournesol",44.4]
["France","Pois protéagineux",1.2]
["France","Maïs fourrage",62.4]
["France","Maïs grain",143.6]
["France","Betterave sucrière",82.3]
["France","Pomme de terre",136]
["France","Féverole",1.7]
["France","Soja",2.7]
["France","Lin fibre",24.5]
["France","Lin Oléagineux",65.599999999999994]
["France","Prairies temporaires",42]
["France","Prairies permanentes",19.7]
["Franche-Comté","Blé tendre",156.9]
["Franche-Comté","Orge",127.2]
["Franche-Comté","Colza",170]
["Franche-Comté","Soja",3.8]
["Haute-Normandie","Blé tendre",170.1]
["Haute-Normandie","Orge",133.5]
["Haute-Normandie","Colza",159.5]
["Haute-Normandie","Pois protéagineux",1.8]
["Haute-Normandie","Maïs fourrage",83.8]
["Haute-Normandie","Betterave sucrière",80.400000000000006]
["Haute-Normandie","Pomme de terre",122.9]
["Haute-Normandie","Féverole",1.9]
["Haute-Normandie","Lin fibre",22.7]
["Île-de-France","Blé tendre",157.4]
["Île-de-France","Orge",112.7]
["Île-de-France","Colza",161.4]
["Île-de-France","Pois protéagineux",0.9]
["Île-de-France","Maïs grain",130.69999999999999]
["Île-de-France","Betterave sucrière",86.2]
["Île-de-France","Pomme de terre",123]
["Île-de-France","Féverole",6.6]
["Languedoc-Roussillon","Blé dur",148.80000000000001]
["Languedoc-Roussillon","Triticale",57.3]
["Languedoc-Roussillon","Tournesol",23.7]
["Languedoc-Roussillon","Pois protéagineux",1.3]
["Limousin","Triticale",86]
["Limousin","Maïs fourrage",64.5]
["Lorraine","Blé tendre",158.80000000000001]
["Lorraine","Orge",138.69999999999999]
["Lorraine","Triticale",110.4]
["Lorraine","Colza",165.8]
["Lorraine","Tournesol",53.4]
["Lorraine","Pois protéagineux",4.5999999999999996]
["Lorraine","Maïs fourrage",126.8]
["Lorraine","Maïs grain",142.69999999999999]
["Lorraine","Lin Oléagineux",96.3]
["Midi-Pyrénées","Blé tendre",157]
["Midi-Pyrénées","Blé dur",193.3]
["Midi-Pyrénées","Orge",97.8]
["Midi-Pyrénées","Triticale",83.6]
["Midi-Pyrénées","Colza",155.6]
["Midi-Pyrénées","Tournesol",45.4]
["Midi-Pyrénées","Pois protéagineux",1.2]
["Midi-Pyrénées","Maïs fourrage",96]
["Midi-Pyrénées","Maïs grain",176.5]
["Midi-Pyrénées","Féverole",0.2]
["Midi-Pyrénées","Soja",1.9]
["Midi-Pyrénées","Lin Oléagineux",50.2]
["Nord-Pas-de-Calais","Blé tendre",169.2]
["Nord-Pas-de-Calais","Orge",119.2]
["Nord-Pas-de-Calais","Colza",159.4]
["Nord-Pas-de-Calais","Pois protéagineux",2.4]
["Nord-Pas-de-Calais","Maïs fourrage",93.4]
["Nord-Pas-de-Calais","Maïs grain",108.9]
["Nord-Pas-de-Calais","Betterave sucrière",83.3]
["Nord-Pas-de-Calais","Pomme de terre",139.5]
["Nord-Pas-de-Calais","Féverole",3.7]
["Nord-Pas-de-Calais","Lin fibre",30.9]
["PACA","Blé dur",156.30000000000001]
["Pays de la Loire","Blé tendre",154.19999999999999]
["Pays de la Loire","Blé dur",200.7]
["Pays de la Loire","Orge",111.8]
["Pays de la Loire","Triticale",92.4]
["Pays de la Loire","Colza",131.69999999999999]
["Pays de la Loire","Tournesol",32.299999999999997]
["Pays de la Loire","Pois protéagineux",2.2999999999999998]
["Pays de la Loire","Maïs fourrage",36.9]
["Pays de la Loire","Maïs grain",91.1]
["Pays de la Loire","Féverole",0.4]
["Pays de la Loire","Lin Oléagineux",50]
["Picardie","Blé tendre",173]
["Picardie","Orge",134.1]
["Picardie","Colza",153.6]
["Picardie","Pois protéagineux",0.6]
["Picardie","Maïs fourrage",86.2]
["Picardie","Maïs grain",108.3]
["Picardie","Betterave sucrière",84.7]
["Picardie","Pomme de terre",148.69999999999999]
["Picardie","Féverole",0.6]
["Picardie","Lin fibre",23.3]
["Poitou-Charentes","Blé tendre",167.9]
["Poitou-Charentes","Blé dur",213]
["Poitou-Charentes","Orge",121.8]
["Poitou-Charentes","Triticale",94.6]
["Poitou-Charentes","Colza",162.9]
["Poitou-Charentes","Tournesol",42.5]
["Poitou-Charentes","Pois protéagineux",0]
["Poitou-Charentes","Maïs fourrage",90.1]
["Poitou-Charentes","Maïs grain",146.19999999999999]
["Poitou-Charentes","Féverole",2.9]
["Poitou-Charentes","Lin Oléagineux",68.7]
["Rhône-Alpes","Blé tendre",144.80000000000001]
["Rhône-Alpes","Blé dur",182.1]
["Rhône-Alpes","Orge",99.6]
["Rhône-Alpes","Triticale",76.2]
["Rhône-Alpes","Colza",148.30000000000001]
["Rhône-Alpes","Tournesol",47.8]
["Rhône-Alpes","Maïs fourrage",110.5]
["Rhône-Alpes","Maïs grain",166.7]
["Rhône-Alpes","Soja",2]
["Alsace","Carotte",23]

{"sheet":"Tab_IFT","index":4,"n_rows":497,"n_cols":10,"rows_kept":497,"cut":false,"hidden":true,"merged":[]}
["Type_traitement","Echelle géographique","Cultures","IFT P10","IFT P20","IFT P30","IFT P40","IFT P50","IFT P60","IFT P70"]
["Herbicides","Alsace","Blé tendre",0,0.63,0.8,0.89,1,1.03,1.21]
["Herbicides","Alsace","Maïs grain",0.93,1.1000000000000001,1.23,1.4,1.52,1.63,1.73]
["Herbicides","Aquitaine","Blé tendre",0.27,0.87,1.04,1.1599999999999999,1.24,1.42,1.74]
["Herbicides","Aquitaine","Féverole",0,0,0,0,0,0.43,0.55000000000000004]
["Herbicides","Aquitaine","Maïs fourrage",0.56999999999999995,0.79,0.87,1.03,1.07,1.25,1.4]
["Herbicides","Aquitaine","Maïs grain",0.68,0.94,1,1.1399999999999999,1.24,1.43,1.62]
["Herbicides","Aquitaine","Soja",0,0.88,1,1.48,1.66,1.85,1.96]
["Herbicides","Aquitaine","Tournesol",0.61,0.95,1.2,1.43,1.53,1.64,1.69]
["Herbicides","Aquitaine","Triticale",0,0.2,0.3,0.51,0.83,0.93,1.01]
["Herbicides","Auvergne","Blé tendre",0.59,0.85,0.94,1.18,1.42,1.59,1.86]
["Herbicides","Auvergne","Colza",0.61,0.91,1.06,1.23,1.43,1.6,1.83]
["Herbicides","Auvergne","Maïs fourrage",0.43,0.74,0.93,1.02,1.08,1.23,1.4]
["Herbicides","Auvergne","Maïs grain",0.88,1.1200000000000001,1.32,1.49,1.71,1.95,2.13]
["Herbicides","Auvergne","Orge",0.47,0.85,1.01,1.23,1.41,1.72,1.91]
["Herbicides","Auvergne","Tournesol",0.57999999999999996,0.94,1.1499999999999999,1.33,1.53,1.68,1.78]
["Herbicides","Auvergne","Triticale",0,0.11,0.67,0.83,0.94,1.23,1.44]
["Herbicides","Basse-Normandie","Betterave sucrière",1.7,1.91,2.13,2.29,2.5499999999999998,2.87,3.12]
["Herbicides","Basse-Normandie","Blé tendre",0.94,1.07,1.23,1.37,1.53,1.68,1.85]
["Herbicides","Basse-Normandie","Colza",0.88,1.05,1.21,1.37,1.51,1.68,1.94]
["Herbicides","Basse-Normandie","Féverole",0.72,1.18,1.38,1.59,1.79,1.9,2.14]
["Herbicides","Basse-Normandie","Maïs fourrage",0.73,0.95,1.1299999999999999,1.33,1.5,1.66,1.84]
["Herbicides","Basse-Normandie","Maïs grain",0.72,1.02,1.19,1.32,1.51,1.64,1.9]
["Herbicides","Basse-Normandie","Orge",0.72,0.91,1.18,1.44,1.67,1.82,2]
["Herbicides","Basse-Normandie","Pois protéagineux",0.88,1.1599999999999999,1.35,1.55,1.7,1.86,2]
["Herbicides","Basse-Normandie","Pomme de terre",1.39,1.59,1.76,2,2.16,2.35,2.59]
["Herbicides","Basse-Normandie","Triticale",0.12,0.73,0.96,1.1399999999999999,1.31,1.39,1.64]
["Herbicides","Bourgogne","Blé tendre",0.63,0.92,1,1.1200000000000001,1.38,1.56,1.81]
["Herbicides","Bourgogne","Colza",0.93,1.32,1.45,1.6,1.76,1.91,2.1800000000000002]
["Herbicides","Bourgogne","Lin oléagineux",0.75,1.25,1.69,1.86,1.96,2.2200000000000002,2.39]
["Herbicides","Bourgogne","Maïs fourrage",0.59,0.82,0.99,1.02,1.1499999999999999,1.3,1.46]
["Herbicides","Bourgogne","Maïs grain",0.76,1.1000000000000001,1.2,1.32,1.44,1.65,1.9]
["Herbicides","Bourgogne","Orge",0.75,1,1.27,1.51,1.67,1.86,2.1]
["Herbicides","Bourgogne","Pois protéagineux",0.04,0.64,0.83,0.94,1.05,1.19,1.45]
["Herbicides","Bourgogne","Soja",0.86,1.48,1.8,1.91,2.12,2.25,2.36]
["Herbicides","Bourgogne","Tournesol",0.53,0.77,0.96,1.08,1.24,1.35,1.53]
["Herbicides","Bourgogne","Triticale",0,0.42,0.82,0.94,1.06,1.31,1.53]
["Herbicides","Bretagne","Blé tendre",0.72,0.91,1.05,1.2,1.39,1.55,1.73]
["Herbicides","Bretagne","Colza",0.66,0.79,0.95,1,1.07,1.2,1.41]
["Herbicides","Bretagne","Féverole",0,0.33,0.8,1.04,1.24,1.38,1.64]
["Herbicides","Bretagne","Maïs fourrage",0.81,0.96,1.1000000000000001,1.28,1.39,1.6,1.75]
["Herbicides","Bretagne","Maïs grain",0.64,0.82,1.04,1.25,1.34,1.45,1.6]
["Herbicides","Bretagne","Orge",0.65,0.89,1.05,1.38,1.54,1.74,1.93]
["Herbicides","Bretagne","Pois protéagineux",0.37,0.51,0.88,1,1.1200000000000001,1.34,1.45]
["Herbicides","Bretagne","Pomme de terre",1.08,1.57,1.91,2.15,2.4900000000000002,2.73,2.96]
["Herbicides","Bretagne","Triticale",0.72,0.89,1.1000000000000001,1.25,1.38,1.59,1.86]
["Herbicides","Centre","Betterave sucrière",1.45,1.71,1.89,2.09,2.4,2.65,2.95]
["Herbicides","Centre","Blé dur",0.99,1.2,1.43,1.62,1.79,1.99,2.29]
["Herbicides","Centre","Blé tendre",0.9,1.1200000000000001,1.31,1.49,1.69,1.9,2.12]
["Herbicides","Centre","Colza",0.97,1.23,1.41,1.54,1.8,2.04,2.2400000000000002]
["Herbicides","Centre","Féverole",0,0,0.86,1,1.25,1.51,1.75]
["Herbicides","Centre","Lin oléagineux",1.38,1.75,1.87,2.13,2.4300000000000002,2.65,2.76]
["Herbicides","Centre","Maïs fourrage",0.72,0.92,1.01,1.19,1.31,1.45,1.66]
["Herbicides","Centre","Maïs grain",0.8,1.1000000000000001,1.32,1.45,1.7,1.91,2.09]
["Herbicides","Centre","Orge",0.85,1.1599999999999999,1.35,1.51,1.69,1.83,2.08]
["Herbicides","Centre","Pois protéagineux",0.56000000000000005,0.88,1.05,1.1499999999999999,1.31,1.48,1.62]
["Herbicides","Centre","Pomme de terre",1.4,1.6,1.75,1.85,1.95,2.09,2.2599999999999998]
["Herbicides","Centre","Tournesol",0.67,0.94,1.22,1.41,1.5,1.64,1.74]
["Herbicides","Centre","Triticale",0,0.7,0.84,1.03,1.1399999999999999,1.38,1.58]
["Herbicides","Champagne-Ardenne","Betterave sucrière",1.58,1.75,2.0299999999999998,2.2999999999999998,2.4900000000000002,2.74,3.04]
["Herbicides","Champagne-Ardenne","Blé tendre",0.88,1.03,1.1599999999999999,1.36,1.46,1.59,1.86]
["Herbicides","Champagne-Ardenne","Colza",0.88,1.05,1.26,1.45,1.72,2.02,2.2000000000000002]
["Herbicides","Champagne-Ardenne","Féverole",0,0.94,1.1599999999999999,1.27,1.34,1.51,1.63]
["Herbicides","Champagne-Ardenne","Maïs fourrage",0.71,0.97,1.1299999999999999,1.25,1.45,1.57,1.77]
["Herbicides","Champagne-Ardenne","Maïs grain",0.65,0.99,1.18,1.33,1.55,1.74,1.9]
["Herbicides","Champagne-Ardenne","Orge",0.55000000000000004,0.61,0.77,0.92,1.21,1.41,1.79]
["Herbicides","Champagne-Ardenne","Pois protéagineux",0.53,0.72,0.89,0.99,1.1100000000000001,1.27,1.41]
["Herbicides","Champagne-Ardenne","Pomme de terre",1.3,1.5,1.64,1.93,2.12,2.33,2.4900000000000002]
["Herbicides","Champagne-Ardenne","Tournesol",0.57999999999999996,0.83,1.01,1.1299999999999999,1.31,1.39,1.56]
["Herbicides","Champagne-Ardenne","Triticale",0.13,0.44,0.95,1.19,1.36,1.56,1.68]
["Herbicides","Franche-Comté","Blé tendre",0.71,1.07,1.24,1.37,1.51,1.67,1.85]
["Herbicides","Franche-Comté","Colza",0.92,1.03,1.17,1.26,1.53,1.65,1.83]
["Herbicides","Franche-Comté","Maïs fourrage",0.83,1.08,1.21,1.3,1.43,1.57,1.71]
["Herbicides","Franche-Comté","Maïs grain",0.76,1.05,1.24,1.38,1.49,1.7,1.93]
["Herbicides","Franche-Comté","Orge",0.81,1,1.22,1.45,1.64,1.76,1.94]
["Herbicides","Franche-Comté","Soja",0.86,1.39,1.5,1.69,1.87,1.99,2.04]
["Herbicides","Franche-Comté","Triticale",0.09,0.57999999999999996,0.82,0.97,1.19,1.45,1.65]
["Herbicides","Guadeloupe","Canne à sucre",0.82,1.36,1.74,1.91,2.08,2.16,2.4]
["Herbicides","Haute-Normandie","Betterave sucrière",1.67,1.97,2.27,2.4900000000000002,2.6,2.86,3.1]
["Herbicides","Haute-Normandie","Blé tendre",0.72,1.04,1.34,1.67,1.88,2.06,2.2400000000000002]
["Herbicides","Haute-Normandie","Colza",0.89,1.07,1.25,1.36,1.51,1.64,1.79]
["Herbicides","Haute-Normandie","Féverole",0.88,1,1.28,1.36,1.64,1.79,1.96]
["Herbicides","Haute-Normandie","Lin fibre",1.3,1.73,1.89,2.0499999999999998,2.37,2.54,2.67]
["Herbicides","Haute-Normandie","Maïs fourrage",0.76,0.86,0.98,1.1000000000000001,1.27,1.44,1.62]
["Herbicides","Haute-Normandie","Orge",0.83,1,1.2,1.37,1.53,1.73,1.99]
["Herbicides","Haute-Normandie","Pois protéagineux",0.83,1,1.1399999999999999,1.28,1.41,1.57,1.74]
["Herbicides","Haute-Normandie","Pomme de terre",1.7,1.87,2.12,2.2999999999999998,2.41,2.72,2.89]
["Herbicides","Ile-de-France","Betterave sucrière",1.42,1.75,2.0499999999999998,2.29,2.52,2.82,3.14]
["Herbicides","Ile-de-France","Blé tendre",0.84,1.03,1.1000000000000001,1.26,1.69,1.86,2.4300000000000002]
["Herbicides","Ile-de-France","Colza",0.55000000000000004,0.99,1.28,1.47,1.58,1.77,2.06]
["Herbicides","Ile-de-France","Féverole",0,0.5,0.94,1.03,1.18,1.32,1.53]
["Herbicides","Ile-de-France","Maïs grain",0.76,0.96,1.1100000000000001,1.26,1.45,1.51,1.76]
["Herbicides","Ile-de-France","Orge",0.59,0.84,1.04,1.29,1.4,1.61,1.85]
["Herbicides","Ile-de-France","Pois protéagineux",0.68,0.87,1,1.1000000000000001,1.3,1.43,1.63]
["Herbicides","Ile-de-France","Pomme de terre",1.02,1.38,1.53,1.74,2.0099999999999998,2.14,2.27]
["Herbicides","La Réunion","Canne à sucre",1.42,1.81,2.15,2.58,2.83,3.08,3.28]
["Herbicides","Languedoc-Roussillon","Blé dur",0,0,0.7,0.87,1,1.1200000000000001,1.45]
["Herbicides","Languedoc-Roussillon","Pois protéagineux",0.11,0.59,0.73,0.9,1.01,1.2,1.4]
["Herbicides","Languedoc-Roussillon","Tournesol",0.31,0.63,0.81,0.9,1.06,1.28,1.45]
["Herbicides","Languedoc-Roussillon","Triticale",0,0,0,0,0,0,0.06]
["Herbicides","Limousin","Maïs fourrage",0.34,0.71,0.83,0.92,0.97,1.03,1.1299999999999999]
["Herbicides","Limousin","Triticale",0,0.42,0.83,0.93,0.97,1.1000000000000001,1.27]
["Herbicides","Lorraine","Blé tendre",0.78,1.08,1.26,1.43,1.6,1.76,2]
["Herbicides","Lorraine","Colza",1.1000000000000001,1.4,1.53,1.69,1.85,2.08,2.33]
["Herbicides","Lorraine","Lin oléagineux",0.69,0.9,1.02,1.1000000000000001,1.49,1.79,1.8]
["Herbicides","Lorraine","Maïs fourrage",0.64,0.96,1.1299999999999999,1.26,1.4,1.49,1.61]
["Herbicides","Lorraine","Maïs grain",0.9,1.0900000000000001,1.21,1.33,1.51,1.72,1.96]
["Herbicides","Lorraine","Orge",0.64,0.83,1.1399999999999999,1.35,1.55,1.68,1.85]
["Herbicides","Lorraine","Pois protéagineux",0.28999999999999998,0.51,0.68,0.87,0.99,1.21,1.34]
["Herbicides","Lorraine","Tournesol",0.59,0.83,0.99,1.1399999999999999,1.28,1.46,1.59]
["Herbicides","Lorraine","Triticale",0,0.4,0.85,0.96,1.23,1.47,1.59]
["Herbicides","Martinique","Canne à sucre",1,1.17,1.8,2,2,2.63,2.63]
["Herbicides","Midi-Pyrénées","Blé dur",0.6,0.83,0.99,1.21,1.36,1.46,1.62]
["Herbicides","Midi-Pyrénées","Blé tendre",0.23,0.67,0.85,0.94,1.1499999999999999,1.34,1.59]
["Herbicides","Midi-Pyrénées","Colza",0.42,0.75,0.91,1.07,1.23,1.47,1.72]
["Herbicides","Midi-Pyrénées","Féverole",0,0,0,0.13,0.63,0.83,0.91]
["Herbicides","Midi-Pyrénées","Lin oléagineux",0,0,0,0,0.33,1,1.23]
["Herbicides","Midi-Pyrénées","Maïs fourrage",0.4,0.69,0.87,0.96,1,1.19,1.45]
["Herbicides","Midi-Pyrénées","Maïs grain",0.76,0.97,1.1100000000000001,1.28,1.42,1.63,1.77]
["Herbicides","Midi-Pyrénées","Orge",0,0.31,0.73,0.84,1.03,1.24,1.47]
["Herbicides","Midi-Pyrénées","Pois protéagineux",0,0.25,0.43,0.52,0.7,0.93,1.1000000000000001]
["Herbicides","Midi-Pyrénées","Soja",0,0,0.48,1.1200000000000001,1.47,1.75,1.86]
["Herbicides","Midi-Pyrénées","Tournesol",0.37,0.75,0.97,1.17,1.33,1.44,1.54]
["Herbicides","Midi-Pyrénées","Triticale",0,0,0.45,0.79,0.87,1.04,1.22]
["Herbicides","Nord-Pas-de-Calais","Betterave sucrière",1.42,1.7,1.95,2.15,2.42,2.69,3.01]
["Herbicides","Nord-Pas-de-Calais","Blé tendre",0.79,0.92,1.05,1.17,1.38,1.54,1.69]
["Herbicides","Nord-Pas-de-Calais","Colza",0.91,1.1000000000000001,1.2,1.32,1.47,1.67,1.9]
["Herbicides","Nord-Pas-de-Calais","Féverole",0.97,1.1499999999999999,1.29,1.47,1.58,1.68,1.79]
["Herbicides","Nord-Pas-de-Calais","Lin fibre",0.75,0.93,1.35,1.5,1.7,2,2.19]
["Herbicides","Nord-Pas-de-Calais","Maïs fourrage",0.78,0.92,1.08,1.24,1.35,1.52,1.69]
["Herbicides","Nord-Pas-de-Calais","Maïs grain",0.76,0.92,1.08,1.24,1.36,1.57,1.72]
["Herbicides","Nord-Pas-de-Calais","Orge",0.76,0.99,1.26,1.38,1.57,1.69,1.85]
["Herbicides","Nord-Pas-de-Calais","Pois protéagineux",0.71,0.93,1.05,1.19,1.33,1.44,1.64]
["Herbicides","Nord-Pas-de-Calais","Pomme de terre",1.56,1.86,2.0099999999999998,2.29,2.4700000000000002,2.63,2.79]
["Herbicides","Pays de la Loire","Blé dur",0.79,0.92,1.06,1.1599999999999999,1.32,1.55,1.65]
["Herbicides","Pays de la Loire","Blé tendre",0.74,1,1.19,1.38,1.6,1.8,1.91]
["Herbicides","Pays de la Loire","Colza",0.74,0.87,1.03,1.1499999999999999,1.35,1.55,1.82]
["Herbicides","Pays de la Loire","Féverole",0,0,0,0.67,0.71,0.95,1.23]
["Herbicides","Pays de la Loire","Lin oléagineux",0.68,1,1.18,1.38,1.67,1.84,2.1]
["Herbicides","Pays de la Loire","Maïs fourrage",0.67,0.86,0.98,1.07,1.26,1.43,1.59]
["Herbicides","Pays de la Loire","Maïs grain",0.69,0.89,1.1000000000000001,1.28,1.47,1.79,2.0499999999999998]
["Herbicides","Pays de la Loire","Orge",0.68,0.89,1.07,1.29,1.41,1.58,1.81]
["Herbicides","Pays de la Loire","Pois protéagineux",0.34,0.64,0.83,0.92,1.08,1.23,1.51]
["Herbicides","Pays de la Loire","Tournesol",0.75,0.97,1.1399999999999999,1.3,1.47,1.54,1.65]
["Herbicides","Pays de la Loire","Triticale",0,0.78,1.04,1.21,1.38,1.56,1.76]
["Herbicides","Picardie","Betterave sucrière",1.58,1.95,2.23,2.42,2.61,2.83,3.13]
["Herbicides","Picardie","Blé tendre",0.81,1.1100000000000001,1.3,1.37,1.57,1.83,2.06]
["Herbicides","Picardie","Colza",0.83,0.98,1.1499999999999999,1.25,1.43,1.66,1.81]
["Herbicides","Picardie","Féverole",0.62,0.94,1.1299999999999999,1.22,1.34,1.44,1.61]
["Herbicides","Picardie","Lin fibre",1.23,1.46,1.59,1.62,1.75,1.85,2.16]
["Herbicides","Picardie","Maïs fourrage",0.77,0.89,1.07,1.1499999999999999,1.3,1.43,1.55]
["Herbicides","Picardie","Maïs grain",0.76,0.99,1.1399999999999999,1.32,1.41,1.58,1.72]
["Herbicides","Picardie","Orge",0.68,0.89,1.04,1.25,1.43,1.59,1.8]
["Herbicides","Picardie","Pois protéagineux",0.88,1.04,1.18,1.29,1.4,1.55,1.71]
["Herbicides","Picardie","Pomme de terre",1.34,1.55,1.72,1.89,2.04,2.27,2.4500000000000002]
["Herbicides","Poitou-Charentes","Blé dur",0.71,0.93,1.1599999999999999,1.34,1.51,1.57,1.74]
["Herbicides","Poitou-Charentes","Blé tendre",0.62,0.78,1.2,1.34,1.47,1.69,1.87]
["Herbicides","Poitou-Charentes","Colza",0.93,1.1499999999999999,1.32,1.66,1.98,2.2000000000000002,2.54]
["Herbicides","Poitou-Charentes","Féverole",0,0,0.33,0.8,0.96,1.0900000000000001,1.27]
["Herbicides","Poitou-Charentes","Lin oléagineux",0.4,0.95,1.1599999999999999,1.56,1.71,2.06,2.2999999999999998]
["Herbicides","Poitou-Charentes","Maïs fourrage",0.49,0.83,0.99,1.1100000000000001,1.25,1.38,1.54]
["Herbicides","Poitou-Charentes","Maïs grain",0.89,1.0900000000000001,1.29,1.49,1.63,1.8,1.97]
["Herbicides","Poitou-Charentes","Orge",0.69,0.9,1.21,1.34,1.47,1.67,1.98]
["Herbicides","Poitou-Charentes","Pois protéagineux",0.15,0.62,0.8,0.87,0.92,1.05,1.21]
["Herbicides","Poitou-Charentes","Tournesol",0.63,0.95,1.21,1.33,1.45,1.52,1.66]
["Herbicides","Poitou-Charentes","Triticale",0,0.62,0.83,1.02,1.3,1.44,1.58]
["Herbicides","Provence-Alpes-Côte d'Azur","Blé dur",0,0.08,0.41,0.75,0.91,0.98,1.0900000000000001]
["Herbicides","Rhône-Alpes","Blé dur",0.08,0.42,0.75,0.89,0.95,0.99,1]
["Herbicides","Rhône-Alpes","Blé tendre",0.21,0.68,0.89,0.99,1.1000000000000001,1.24,1.56]
["Herbicides","Rhône-Alpes","Colza",0.64,0.86,0.89,1.02,1.1200000000000001,1.25,1.56]
["Herbicides","Rhône-Alpes","Maïs fourrage",0.84,1.02,1.18,1.3,1.37,1.48,1.64]
["Herbicides","Rhône-Alpes","Maïs grain",0.88,1.1299999999999999,1.28,1.48,1.62,1.81,2.06]
["Herbicides","Rhône-Alpes","Orge",0.18,0.76,0.92,1.03,1.38,1.59,1.79]
["Herbicides","Rhône-Alpes","Soja",0,0.96,1.28,1.64,1.82,2,2.37]
["Herbicides","Rhône-Alpes","Tournesol",0.5,0.96,1,1.1100000000000001,1.36,1.53,1.72]
["Herbicides","Rhône-Alpes","Triticale",0,0,0.25,0.81,1,1.28,1.62]
["Herbicides","France métropolitaine","Betterave sucrière",1.51,1.82,2.0699999999999998,2.33,2.5299999999999998,2.79,3.05]
["Herbicides","France métropolitaine","Blé dur",0.2,0.79,0.97,1.1100000000000001,1.34,1.53,1.74]
["Herbicides","France métropolitaine","Blé tendre",0.75,0.95,1.1499999999999999,1.29,1.49,1.68,1.93]
["Herbicides","France métropolitaine","Colza",0.87,1.07,1.24,1.45,1.63,1.84,2.09]
["Herbicides","France métropolitaine","Féverole",0,0,0.67,0.92,1.1299999999999999,1.3,1.54]
["Herbicides","France métropolitaine","Lin fibre",1.05,1.48,1.72,1.85,2.0499999999999998,2.36,2.5499999999999998]
["Herbicides","France métropolitaine","Lin oléagineux",0,0.78,1.1100000000000001,1.48,1.75,1.96,2.27]
["Herbicides","France métropolitaine","Maïs fourrage",0.71,0.91,1.02,1.17,1.33,1.49,1.65]
["Herbicides","France métropolitaine","Maïs grain",0.75,0.97,1.1299999999999999,1.31,1.45,1.64,1.85]
["Herbicides","France métropolitaine","Orge",0.61,0.85,1.06,1.28,1.5,1.69,1.9]
["Herbicides","France métropolitaine","Pois protéagineux",0.46,0.77,0.89,1.03,1.2,1.35,1.53]
["Herbicides","France métropolitaine","Pomme de terre",1.39,1.66,1.85,2.0299999999999998,2.25,2.44,2.64]
["Herbicides","France métropolitaine","Soja",0,0.64,1.19,1.48,1.75,1.87,2.0099999999999998]
["Herbicides","France métropolitaine","Tournesol",0.56000000000000005,0.85,1.08,1.24,1.4,1.52,1.63]
["Herbicides","France métropolitaine","Triticale",0,0.48,0.78,0.96,1.07,1.32,1.55]
["Hors herbicides (ancienne méthode traitement de semences)","Alsace","Blé tendre",1.17,1.47,1.88,2.1,2.42,2.67,2.85]
["Hors herbicides (ancienne méthode traitement de semences)","Alsace","Maïs grain",1,1,1,1.21,1.58,1.66,1.78]
["Hors herbicides (ancienne méthode traitement de semences)","Aquitaine","Blé tendre",1.17,1.47,1.93,2.23,2.4900000000000002,2.89,3.2]
["Hors herbicides (ancienne méthode traitement de semences)","Aquitaine","Féverole",0,0,0,0,0,0,0.91]
["Hors herbicides (ancienne méthode traitement de semences)","Aquitaine","Maïs fourrage",0.17,1,1,1,1,1.03,1.23]
["Hors herbicides (ancienne méthode traitement de semences)","Aquitaine","Maïs grain",0.67,1,1,1,1,1.2,1.74]
["Hors herbicides (ancienne méthode traitement de semences)","Aquitaine","Soja",0,0,0,0,0,0,0]
["Hors herbicides (ancienne méthode traitement de semences)","Aquitaine","Tournesol",0.8,1,1,1.22,1.5,1.86,2]
["Hors herbicides (ancienne méthode traitement de semences)","Aquitaine","Triticale",0,0,0.93,1,1,1.17,1.4]
["Hors herbicides (ancienne méthode traitement de semences)","Auvergne","Blé tendre",0.92,1.0900000000000001,1.21,1.46,1.74,2,2.29]
["Hors herbicides (ancienne méthode traitement de semences)","Auvergne","Colza",2.0699999999999998,2.9,3.46,3.85,4.22,4.62,4.99]
["Hors herbicides (ancienne méthode traitement de semences)","Auvergne","Maïs fourrage",0.67,1,1,1,1,1,1]
["Hors herbicides (ancienne méthode traitement de semences)","Auvergne","Maïs grain",0.67,1,1,1,1,1.37,1.74]
["Hors herbicides (ancienne méthode traitement de semences)","Auvergne","Orge",0.75,1.23,1.42,1.64,1.8,2.17,2.44]
["Hors herbicides (ancienne méthode traitement de semences)","Auvergne","Tournesol",1,1,1,1,1,1,1]
["Hors herbicides (ancienne méthode traitement de semences)","Auvergne","Triticale",0,0.86,1,1,1,1.27,1.39]
["Hors herbicides (ancienne méthode traitement de semences)","Basse-Normandie","Betterave sucrière",1.52,1.93,2,2,2.39,2.79,2.86]
["Hors herbicides (ancienne méthode traitement de semences)","Basse-Normandie","Blé tendre",1.58,2.23,2.62,3.04,3.43,3.77,3.99]
["Hors herbicides (ancienne méthode traitement de semences)","Basse-Normandie","Colza",2.6,3.12,3.8,4.18,4.53,5.08,5.38]
["Hors herbicides (ancienne méthode traitement de semences)","Basse-Normandie","Féverole",1,2.5,3.15,3.61,4.25,4.43,4.99]
["Hors herbicides (ancienne méthode traitement de semences)","Basse-Normandie","Maïs fourrage",0.67,1,1,1,1,1,1]
["Hors herbicides (ancienne méthode traitement de semences)","Basse-Normandie","Maïs grain",0.56000000000000005,0.67,1,1,1,1,1]
["Hors herbicides (ancienne méthode traitement de semences)","Basse-Normandie","Orge",1.65,2.1,2.37,2.58,2.86,3.09,3.31]
["Hors herbicides (ancienne méthode traitement de semences)","Basse-Normandie","Pois protéagineux",1.59,2.39,2.76,3.27,3.72,4.17,4.5199999999999996]
["Hors herbicides (ancienne méthode traitement de semences)","Basse-Normandie","Pomme de terre",7.73,9.4499999999999993,10.41,11.46,12.37,13.24,14.33]
["Hors herbicides (ancienne méthode traitement de semences)","Basse-Normandie","Triticale",0.67,1,1.49,1.81,2.08,2.41,2.68]
["Hors herbicides (ancienne méthode traitement de semences)","Bourgogne","Blé tendre",1.22,1.76,2.02,2.2999999999999998,2.66,2.97,3.53]
["Hors herbicides (ancienne méthode traitement de semences)","Bourgogne","Colza",3.23,3.72,4.0999999999999996,4.49,4.88,5.26,5.79]
["Hors herbicides (ancienne méthode traitement de semences)","Bourgogne","Lin oléagineux",0,1,1.33,1.8,2.0699999999999998,2.4,2.62]
["Hors herbicides (ancienne méthode traitement de semences)","Bourgogne","Maïs fourrage",1,1,1,1,1,1,1]
["Hors herbicides (ancienne méthode traitement de semences)","Bourgogne","Maïs grain",0.67,0.93,1,1,1,1,1.4]
["Hors herbicides (ancienne méthode traitement de semences)","Bourgogne","Orge",1.28,1.72,2.11,2.42,2.73,3.08,3.39]
["Hors herbicides (ancienne méthode traitement de semences)","Bourgogne","Pois protéagineux",0.47,1.56,2.06,2.52,2.87,3.23,3.54]
["Hors herbicides (ancienne méthode traitement de semences)","Bourgogne","Soja",0,0,0,0,0,0,0]
["Hors herbicides (ancienne méthode traitement de semences)","Bourgogne","Tournesol",0.67,1,1,1,1,1.57,1.98]
["Hors herbicides (ancienne méthode traitement de semences)","Bourgogne","Triticale",0,0.73,1,1,1.08,1.3,1.72]
["Hors herbicides (ancienne méthode traitement de semences)","Bretagne","Blé tendre",1.88,2.16,2.46,2.75,2.93,3.22,3.49]
["Hors herbicides (ancienne méthode traitement de semences)","Bretagne","Colza",1.19,1.53,1.87,2.12,2.68,2.92,3.32]
["Hors herbicides (ancienne méthode traitement de semences)","Bretagne","Féverole",0,0,1,1.8,2.0499999999999998,2.5,2.75]
["Hors herbicides (ancienne méthode traitement de semences)","Bretagne","Maïs fourrage",0.67,1,1,1,1,1,1]
["Hors herbicides (ancienne méthode traitement de semences)","Bretagne","Maïs grain",1,1,1,1,1,1,1]
["Hors herbicides (ancienne méthode traitement de semences)","Bretagne","Orge",1.36,1.79,2,2.19,2.48,2.77,2.97]
["Hors herbicides (ancienne méthode traitement de semences)","Bretagne","Pois protéagineux",0.67,1.1100000000000001,1.72,2.27,2.64,3.14,3.51]
["Hors herbicides (ancienne méthode traitement de semences)","Bretagne","Pomme de terre",5.36,7.61,9.4600000000000009,11.17,12.37,14.55,16.13]
["Hors herbicides (ancienne méthode traitement de semences)","Bretagne","Triticale",0.9,1.5,1.74,2.0699999999999998,2.44,2.68,2.89]
["Hors herbicides (ancienne méthode traitement de semences)","Centre","Betterave sucrière",2.17,2.64,2.93,3,3,3.14,3.68]
["Hors herbicides (ancienne méthode traitement de semences)","Centre","Blé dur",2.0499999999999998,2.46,2.8,3.2,3.5,3.7,4.07]
["Hors herbicides (ancienne méthode traitement de semences)","Centre","Blé tendre",1.34,1.92,2.21,2.63,2.97,3.21,3.58]
["Hors herbicides (ancienne méthode traitement de semences)","Centre","Colza",2.74,3.16,3.8,4.13,4.54,4.87,5.24]
["Hors herbicides (ancienne méthode traitement de semences)","Centre","Féverole",0,0,0,0.97,1.24,1.7,2.63]
["Hors herbicides (ancienne méthode traitement de semences)","Centre","Lin oléagineux",1,1.71,2.06,2.31,2.74,2.93,3.31]
["Hors herbicides (ancienne méthode traitement de semences)","Centre","Maïs fourrage",0.75,1,1,1,1,1,1]
["Hors herbicides (ancienne méthode traitement de semences)","Centre","Maïs grain",1,1,1,1,1,1.1399999999999999,1.69]
["Hors herbicides (ancienne méthode traitement de semences)","Centre","Orge",1.51,1.92,2.25,2.52,2.72,3,3.23]
["Hors herbicides (ancienne méthode traitement de semences)","Centre","Pois protéagineux",1.36,2.31,2.75,3.46,3.85,4.3899999999999997,4.92]
["Hors herbicides (ancienne méthode traitement de semences)","Centre","Pomme de terre",6.94,8.15,9.0299999999999994,9.7899999999999991,10.38,11.12,12.19]
["Hors herbicides (ancienne méthode traitement de semences)","Centre","Tournesol",1,1,1,1,1,1.2,1.72]
["Hors herbicides (ancienne méthode traitement de semences)","Centre","Triticale",0,0.57999999999999996,1,1.21,1.44,1.72,2]
["Hors herbicides (ancienne méthode traitement de semences)","Champagne-Ardenne","Betterave sucrière",1.93,2.2799999999999998,2.58,2.8,3.12,3.3,3.33]
["Hors herbicides (ancienne méthode traitement de semences)","Champagne-Ardenne","Blé tendre",2.16,2.79,3.24,3.65,4.07,4.45,4.8499999999999996]
["Hors herbicides (ancienne méthode traitement de semences)","Champagne-Ardenne","Colza",2.69,3.38,3.85,4.2300000000000004,4.7,5.12,5.48]
["Hors herbicides (ancienne méthode traitement de semences)","Champagne-Ardenne","Féverole",0,1,1.67,2.17,2.4500000000000002,2.95,3.35]
["Hors herbicides (ancienne méthode traitement de semences)","Champagne-Ardenne","Maïs fourrage",1,1,1,1,1,1,1]
["Hors herbicides (ancienne méthode traitement de semences)","Champagne-Ardenne","Maïs grain",1,1,1,1,1,1,1.22]
["Hors herbicides (ancienne méthode traitement de semences)","Champagne-Ardenne","Orge",1.5,1.73,2.06,2.27,2.52,2.75,3]
["Hors herbicides (ancienne méthode traitement de semences)","Champagne-Ardenne","Pois protéagineux",1.1100000000000001,1.73,2.25,2.5299999999999998,2.99,3.4,3.81]
["Hors herbicides (ancienne méthode traitement de semences)","Champagne-Ardenne","Pomme de terre",11.73,14.32,15.07,15.96,16.96,18.489999999999998,19.88]
["Hors herbicides (ancienne méthode traitement de semences)","Champagne-Ardenne","Tournesol",0.73,1,1,1.17,1.53,1.61,1.92]
["Hors herbicides (ancienne méthode traitement de semences)","Champagne-Ardenne","Triticale",0.33,0.85,1.24,1.55,1.82,2.14,2.29]
["Hors herbicides (ancienne méthode traitement de semences)","Franche-Comté","Blé tendre",0.93,1.91,2.2599999999999998,2.5299999999999998,2.83,3.35,3.84]
["Hors herbicides (ancienne méthode traitement de semences)","Franche-Comté","Colza",3.17,3.66,4.0999999999999996,4.49,5.03,5.34,5.77]
["Hors herbicides (ancienne méthode traitement de semences)","Franche-Comté","Maïs fourrage",1,1,1,1,1,1,1]
["Hors herbicides (ancienne méthode traitement de semences)","Franche-Comté","Maïs grain",0.67,1,1,1,1.18,1.32,1.64]
["Hors herbicides (ancienne méthode traitement de semences)","Franche-Comté","Orge",1.39,1.73,2.23,2.67,3.16,3.41,3.78]
["Hors herbicides (ancienne méthode traitement de semences)","Franche-Comté","Soja",0,0,0,0,0,0,0]
["Hors herbicides (ancienne méthode traitement de semences)","Franche-Comté","Triticale",0.25,0.93,1,1.17,1.37,1.72,1.89]
["Hors herbicides (ancienne méthode traitement de semences)","Guadeloupe","Canne à sucre",0,0,0,0,0,0,0]
["Hors herbicides (ancienne méthode traitement de semences)","Haute-Normandie","Betterave sucrière",1.23,1.74,1.93,1.99,2.13,2.44,2.77]
["Hors herbicides (ancienne méthode traitement de semences)","Haute-Normandie","Blé tendre",2.48,3.39,3.67,3.88,4.0599999999999996,4.37,4.7]
["Hors herbicides (ancienne méthode traitement de semences)","Haute-Normandie","Colza",2.74,3.44,3.89,4.2699999999999996,4.58,5.2,5.6]
["Hors herbicides (ancienne méthode traitement de semences)","Haute-Normandie","Féverole",0.8,1.19,2,2.4,2.87,3.36,4.3499999999999996]
["Hors herbicides (ancienne méthode traitement de semences)","Haute-Normandie","Lin fibre",1.92,2.21,2.44,2.86,3,3.43,3.71]
["Hors herbicides (ancienne méthode traitement de semences)","Haute-Normandie","Maïs fourrage",1,1,1,1,1,1,1]
["Hors herbicides (ancienne méthode traitement de semences)","Haute-Normandie","Orge",2.1,2.63,2.89,3.05,3.37,3.55,3.82]
["Hors herbicides (ancienne méthode traitement de semences)","Haute-Normandie","Pois protéagineux",2.08,2.91,3.31,3.83,4.33,4.7699999999999996,5.49]
["Hors herbicides (ancienne méthode traitement de semences)","Haute-Normandie","Pomme de terre",8.7899999999999991,10.44,11.71,12.79,13.81,14.73,15.79]
["Hors herbicides (ancienne méthode traitement de semences)","Ile-de-France","Betterave sucrière",1.33,1.92,2.34,2.64,2.87,3,3.13]
["Hors herbicides (ancienne méthode traitement de semences)","Ile-de-France","Blé tendre",2.37,3.23,3.53,3.73,4.1500000000000004,4.54,4.92]
["Hors herbicides (ancienne méthode traitement de semences)","Ile-de-France","Colza",2.63,2.97,3.47,3.91,4.3600000000000003,4.8099999999999996,5.3]
["Hors herbicides (ancienne méthode traitement de semences)","Ile-de-France","Féverole",0,1.5,2.17,2.6,2.94,3.03,3.46]
["Hors herbicides (ancienne méthode traitement de semences)","Ile-de-France","Maïs grain",1,1,1,1,1,1,1.3]
["Hors herbicides (ancienne méthode traitement de semences)","Ile-de-France","Orge",1.67,2.15,2.4300000000000002,2.69,2.94,3.14,3.44]
["Hors herbicides (ancienne méthode traitement de semences)","Ile-de-France","Pois protéagineux",1.75,2.39,3.07,3.6,4,4.22,4.68]
["Hors herbicides (ancienne méthode traitement de semences)","Ile-de-France","Pomme de terre",7.96,9.3000000000000007,10.47,11.11,12.56,13.38,14.67]
["Hors herbicides (ancienne méthode traitement de semences)","La Réunion","Canne à sucre",0.33,0.4,0.67,1,1,1,1.67]
["Hors herbicides (ancienne méthode traitement de semences)","Languedoc-Roussillon","Blé dur",0.67,1,1,1.22,1.86,2.15,2.39]
["Hors herbicides (ancienne méthode traitement de semences)","Languedoc-Roussillon","Pois protéagineux",0.55000000000000004,1.27,2.2799999999999998,2.88,3.3,3.68,4.01]
["Hors herbicides (ancienne méthode traitement de semences)","Languedoc-Roussillon","Tournesol",1,1,1,1,1.17,1.23,1.53]
["Hors herbicides (ancienne méthode traitement de semences)","Languedoc-Roussillon","Triticale",0,0,0,0,0.33,0.67,1]
["Hors herbicides (ancienne méthode traitement de semences)","Limousin","Maïs fourrage",1,1,1,1,1,1,1]
["Hors herbicides (ancienne méthode traitement de semences)","Limousin","Triticale",0,1,1,1,1,1.35,1.67]
["Hors herbicides (ancienne méthode traitement de semences)","Lorraine","Blé tendre",1.19,1.55,1.87,2.12,2.34,2.74,3.16]
["Hors herbicides (ancienne méthode traitement de semences)","Lorraine","Colza",2.1800000000000002,2.99,3.52,3.96,4.42,4.7699999999999996,5.27]
["Hors herbicides (ancienne méthode traitement de semences)","Lorraine","Lin oléagineux",1,1.46,1.71,2,2.2000000000000002,2.36,2.67]
["Hors herbicides (ancienne méthode traitement de semences)","Lorraine","Maïs fourrage",1,1,1,1,1,1,1]
["Hors herbicides (ancienne méthode traitement de semences)","Lorraine","Maïs grain",1,1,1,1,1,1.22,1.36]
["Hors herbicides (ancienne méthode traitement de semences)","Lorraine","Orge",0.82,1.45,1.73,1.97,2.1800000000000002,2.37,2.63]
["Hors herbicides (ancienne méthode traitement de semences)","Lorraine","Pois protéagineux",0,0.38,0.99,1.24,1.67,1.98,2.2999999999999998]
["Hors herbicides (ancienne méthode traitement de semences)","Lorraine","Tournesol",1,1,1,1.28,1.31,1.53,1.98]
["Hors herbicides (ancienne méthode traitement de semences)","Lorraine","Triticale",0,0.67,1,1,1.23,1.57,1.97]
["Hors herbicides (ancienne méthode traitement de semences)","Martinique","Canne à sucre",0,0,0,0,0,0,0]
["Hors herbicides (ancienne méthode traitement de semences)","Midi-Pyrénées","Blé dur",2,2.2400000000000002,2.37,2.5299999999999998,2.79,3.04,3.18]
["Hors herbicides (ancienne méthode traitement de semences)","Midi-Pyrénées","Blé tendre",0.73,1.29,1.6,1.76,1.97,2.2400000000000002,2.4500000000000002]
["Hors herbicides (ancienne méthode traitement de semences)","Midi-Pyrénées","Colza",1.43,2.2799999999999998,2.99,3.62,4.18,4.8099999999999996,5.23]
["Hors herbicides (ancienne méthode traitement de semences)","Midi-Pyrénées","Féverole",0,0,0,0,0.65,1.45,1.98]
["Hors herbicides (ancienne méthode traitement de semences)","Midi-Pyrénées","Lin oléagineux",0,0,0,0,0.6,2,2.61]
["Hors herbicides (ancienne méthode traitement de semences)","Midi-Pyrénées","Maïs fourrage",0.33,0.67,1,1,1,1,1]
["Hors herbicides (ancienne méthode traitement de semences)","Midi-Pyrénées","Maïs grain",0.67,1,1,1,1,1.44,1.87]
["Hors herbicides (ancienne méthode traitement de semences)","Midi-Pyrénées","Orge",0.1,1,1.1299999999999999,1.57,1.71,1.8,2]
["Hors herbicides (ancienne méthode traitement de semences)","Midi-Pyrénées","Pois protéagineux",0.18,1.1000000000000001,1.4,2.17,2.7,3.36,3.85]
["Hors herbicides (ancienne méthode traitement de semences)","Midi-Pyrénées","Soja",0,0,0,0,0,0,0]
["Hors herbicides (ancienne méthode traitement de semences)","Midi-Pyrénées","Tournesol",0.67,1,1,1,1,1.48,1.98]
["Hors herbicides (ancienne méthode traitement de semences)","Midi-Pyrénées","Triticale",0,0.17,1,1,1.1599999999999999,1.33,1.65]
["Hors herbicides (ancienne méthode traitement de semences)","Nord-Pas-de-Calais","Betterave sucrière",1,1.53,1.9,2,2,2.12,2.5499999999999998]
["Hors herbicides (ancienne méthode traitement de semences)","Nord-Pas-de-Calais","Blé tendre",2.5299999999999998,3.46,3.84,4.0199999999999996,4.34,4.68,5.23]
["Hors herbicides (ancienne méthode traitement de semences)","Nord-Pas-de-Calais","Colza",2.17,2.66,3.04,3.36,3.61,3.96,4.38]
["Hors herbicides (ancienne méthode traitement de semences)","Nord-Pas-de-Calais","Féverole",0.79,1.5,1.84,2.38,3,3.65,4.13]
["Hors herbicides (ancienne méthode traitement de semences)","Nord-Pas-de-Calais","Lin fibre",1.43,2,2.23,2.29,2.5,3.04,3.37]
["Hors herbicides (ancienne méthode traitement de semences)","Nord-Pas-de-Calais","Maïs fourrage",1,1,1,1,1,1,1]
["Hors herbicides (ancienne méthode traitement de semences)","Nord-Pas-de-Calais","Maïs grain",1,1,1,1,1,1,1]
["Hors herbicides (ancienne méthode traitement de semences)","Nord-Pas-de-Calais","Orge",1.71,2.36,2.64,2.84,3.17,3.5,3.74]
["Hors herbicides (ancienne méthode traitement de semences)","Nord-Pas-de-Calais","Pois protéagineux",1.56,2.25,2.77,3.03,3.42,3.96,4.38]
["Hors herbicides (ancienne méthode traitement de semences)","Nord-Pas-de-Calais","Pomme de terre",10.08,11.72,12.94,13.79,14.58,15.69,16.98]
["Hors herbicides (ancienne méthode traitement de semences)","Pays de la Loire","Blé dur",1.71,2.2200000000000002,2.44,2.57,2.77,2.95,3.06]
["Hors herbicides (ancienne méthode traitement de semences)","Pays de la Loire","Blé tendre",1.52,1.95,2.17,2.44,2.66,3.02,3.42]
["Hors herbicides (ancienne méthode traitement de semences)","Pays de la Loire","Colza",2.06,2.66,3.03,3.39,3.72,3.95,4.3899999999999997]
["Hors herbicides (ancienne méthode traitement de semences)","Pays de la Loire","Féverole",0,0,0,1,1.45,1.88,2.35]
["Hors herbicides (ancienne méthode traitement de semences)","Pays de la Loire","Lin oléagineux",1,1.8,2,2.2999999999999998,2.4,2.61,2.78]
["Hors herbicides (ancienne méthode traitement de semences)","Pays de la Loire","Maïs fourrage",0.67,1,1,1,1,1,1]
["Hors herbicides (ancienne méthode traitement de semences)","Pays de la Loire","Maïs grain",1,1,1,1,1,1,1]
["Hors herbicides (ancienne méthode traitement de semences)","Pays de la Loire","Orge",1.17,1.57,1.89,2.2000000000000002,2.56,2.71,2.99]
["Hors herbicides (ancienne méthode traitement de semences)","Pays de la Loire","Pois protéagineux",0.75,1.38,2.11,2.72,2.92,3.31,3.74]
["Hors herbicides (ancienne méthode traitement de semences)","Pays de la Loire","Tournesol",0.67,1,1,1,1,1,1.44]
["Hors herbicides (ancienne méthode traitement de semences)","Pays de la Loire","Triticale",0.36,1,1.48,1.69,1.8,1.99,2.38]
["Hors herbicides (ancienne méthode traitement de semences)","Picardie","Betterave sucrière",1.6,1.88,2,2.17,2.2000000000000002,2.62,2.83]
["Hors herbicides (ancienne méthode traitement de semences)","Picardie","Blé tendre",2.64,3.05,3.39,3.72,4.1500000000000004,4.32,4.5599999999999996]
["Hors herbicides (ancienne méthode traitement de semences)","Picardie","Colza",2.39,2.88,3.43,4.1100000000000003,4.46,4.9000000000000004,5.24]
["Hors herbicides (ancienne méthode traitement de semences)","Picardie","Féverole",1,1.43,1.8,2,2.56,2.8,3.33]
["Hors herbicides (ancienne méthode traitement de semences)","Picardie","Lin fibre",1.23,1.69,2,2.19,2.39,2.77,3.26]
["Hors herbicides (ancienne méthode traitement de semences)","Picardie","Maïs fourrage",1,1,1,1,1,1,1]
["Hors herbicides (ancienne méthode traitement de semences)","Picardie","Maïs grain",1,1,1,1,1,1,1]
["Hors herbicides (ancienne méthode traitement de semences)","Picardie","Orge",1.84,2.34,2.58,2.87,3.21,3.37,3.56]
["Hors herbicides (ancienne méthode traitement de semences)","Picardie","Pois protéagineux",2.09,2.69,3.12,3.51,3.86,4.3,4.6399999999999997]
["Hors herbicides (ancienne méthode traitement de semences)","Picardie","Pomme de terre",10.34,11.29,12.85,14.14,15.1,16.440000000000001,17.670000000000002]
["Hors herbicides (ancienne méthode traitement de semences)","Poitou-Charentes","Blé dur",1.93,2.33,2.58,2.8,3.05,3.28,3.64]
["Hors herbicides (ancienne méthode traitement de semences)","Poitou-Charentes","Blé tendre",0.97,1.49,2,2.27,2.59,2.85,3.28]
["Hors herbicides (ancienne méthode traitement de semences)","Poitou-Charentes","Colza",2.96,3.52,3.99,4.6100000000000003,5.05,5.43,5.72]
["Hors herbicides (ancienne méthode traitement de semences)","Poitou-Charentes","Féverole",0,0,0,0.98,1,1.73,2]
["Hors herbicides (ancienne méthode traitement de semences)","Poitou-Charentes","Lin oléagineux",0,0.9,1,1.6,2,2,2.4]
["Hors herbicides (ancienne méthode traitement de semences)","Poitou-Charentes","Maïs fourrage",0.67,1,1,1,1,1,1]
["Hors herbicides (ancienne méthode traitement de semences)","Poitou-Charentes","Maïs grain",0.92,1,1,1,1,1,1]
["Hors herbicides (ancienne méthode traitement de semences)","Poitou-Charentes","Orge",1.32,1.59,1.79,2.06,2.38,2.63,2.92]
["Hors herbicides (ancienne méthode traitement de semences)","Poitou-Charentes","Pois protéagineux",1.28,2.23,2.59,2.94,3.32,3.5,3.86]
["Hors herbicides (ancienne méthode traitement de semences)","Poitou-Charentes","Tournesol",0.72,1,1,1,1,1,1]
["Hors herbicides (ancienne méthode traitement de semences)","Poitou-Charentes","Triticale",0.13,1,1.1299999999999999,1.3,1.41,1.67,1.86]
["Hors herbicides (ancienne méthode traitement de semences)","Provence-Alpes-Côte d'Azur","Blé dur",0.67,1,1,1,1.1299999999999999,1.37,1.6]
["Hors herbicides (ancienne méthode traitement de semences)","Rhône-Alpes","Blé dur",1,1.1299999999999999,1.25,1.52,1.9,1.93,2.29]
["Hors herbicides (ancienne méthode traitement de semences)","Rhône-Alpes","Blé tendre",0.53,1,1,1.65,1.91,2.14,2.46]
["Hors herbicides (ancienne méthode traitement de semences)","Rhône-Alpes","Colza",1.98,2.52,3.03,3.32,3.78,4.1500000000000004,4.5199999999999996]
["Hors herbicides (ancienne méthode traitement de semences)","Rhône-Alpes","Maïs fourrage",1,1,1,1,1,1,1]
["Hors herbicides (ancienne méthode traitement de semences)","Rhône-Alpes","Maïs grain",0.67,1,1,1,1,1.51,1.83]
["Hors herbicides (ancienne méthode traitement de semences)","Rhône-Alpes","Orge",0.56999999999999995,1.21,1.33,1.58,1.88,2.08,2.29]
["Hors herbicides (ancienne méthode traitement de semences)","Rhône-Alpes","Soja",0,0,0,0,0,0,0]
["Hors herbicides (ancienne méthode traitement de semences)","Rhône-Alpes","Tournesol",0.57999999999999996,1,1,1,1,1.33,1.65]
["Hors herbicides (ancienne méthode traitement de semences)","Rhône-Alpes","Triticale",0,0.33,0.9,1,1,1,1.21]
["Hors herbicides (ancienne méthode traitement de semences)","France métropolitaine","Betterave sucrière",1.52,1.94,2.04,2.2000000000000002,2.6,2.84,3.06]
["Hors herbicides (ancienne méthode traitement de semences)","France métropolitaine","Blé dur",1,1.42,1.97,2.35,2.67,2.94,3.27]
["Hors herbicides (ancienne méthode traitement de semences)","France métropolitaine","Blé tendre",1.38,1.95,2.38,2.76,3.17,3.55,3.97]
["Hors herbicides (ancienne méthode traitement de semences)","France métropolitaine","Colza",2.4900000000000002,3.09,3.65,4.05,4.4800000000000004,4.87,5.32]
["Hors herbicides (ancienne méthode traitement de semences)","France métropolitaine","Féverole",0,0,0.75,1.24,1.86,2.4300000000000002,2.95]
["Hors herbicides (ancienne méthode traitement de semences)","France métropolitaine","Lin fibre",1.69,2,2.29,2.56,2.9,3.26,3.5]
["Hors herbicides (ancienne méthode traitement de semences)","France métropolitaine","Lin oléagineux",0,0.83,1.57,2,2.27,2.6,2.83]
["Hors herbicides (ancienne méthode traitement de semences)","France métropolitaine","Maïs fourrage",1,1,1,1,1,1,1]
["Hors herbicides (ancienne méthode traitement de semences)","France métropolitaine","Maïs grain",1,1,1,1,1,1,1.17]
["Hors herbicides (ancienne méthode traitement de semences)","France métropolitaine","Orge",1.3,1.73,2,2.33,2.59,2.87,3.17]
["Hors herbicides (ancienne méthode traitement de semences)","France métropolitaine","Pois protéagineux",0.97,1.91,2.4700000000000002,2.9,3.33,3.79,4.17]
["Hors herbicides (ancienne méthode traitement de semences)","France métropolitaine","Pomme de terre",8.8800000000000008,10.87,12.25,13.47,14.52,15.51,16.899999999999999]
["Hors herbicides (ancienne méthode traitement de semences)","France métropolitaine","Soja",0,0,0,0,0,0,0]
["Hors herbicides (ancienne méthode traitement de semences)","France métropolitaine","Tournesol",0.73,1,1,1,1,1.06,1.75]
["Hors herbicides (ancienne méthode traitement de semences)","France métropolitaine","Triticale",0,0.93,1,1,1.43,1.68,1.92]
["Herbicides","Ile-de-France","Salade",0,0,0,0,0.2,0.42,0.55000000000000004]
["Herbicides","Champagne-Ardenne","Carotte",0.76,1.46,1.87,2,2.06,2.19,2.4]
["Herbicides","Picardie","Carotte",0.93,1.43,1.64,1.78,1.88,1.96,2.17]
["Herbicides","Centre","Carotte",0.68,1.66,2,2.25,2.41,2.71,3.02]
["Herbicides","Centre","Poireau",0.18,0.51,0.57999999999999996,0.61,0.83,1.07,1.22]
["Herbicides","Centre","Salade",0.43,0.43,0.43,0.43,0.43,0.64,0.7]
["Herbicides","Basse-Normandie","Carotte",1.1200000000000001,1.57,2.0099999999999998,2.29,2.48,2.62,2.95]
["Herbicides","Basse-Normandie","Chou fleur, Brocoli à jets et Romanesco",0,0,0,0.25,0.75,0.8,0.97]
["Herbicides","Basse-Normandie","Autres choux (hors chou à choucroute)",0.22,0.69,0.84,0.88,0.95,1,1.19]
["Herbicides","Basse-Normandie","Poireau",0.35,0.64,0.85,1.07,1.24,1.39,1.64]
["Herbicides","Basse-Normandie","Salade",0,0.18,0.46,0.49,0.5,0.72,0.77]
["Herbicides","Nord-Pas-de-Calais","Carotte",0.57999999999999996,1.28,1.7,1.96,2.2000000000000002,2.38,2.59]
["Herbicides","Nord-Pas-de-Calais","Chou fleur, Brocoli à jets et Romanesco",0,0,0.48,0.66,1,1.24,1.35]
["Herbicides","Nord-Pas-de-Calais","Autres choux (hors chou à choucroute)",0,0,0,0.69,0.95,1.24,1.42]
["Herbicides","Nord-Pas-de-Calais","Poireau",0,0.23,0.26,0.28000000000000003,0.51,0.61,0.74]
["Herbicides","Pays de la Loire","Carotte",0.68,1.29,1.49,1.88,2.23,2.68,2.87]
["Herbicides","Pays de la Loire","Autres choux (hors chou à choucroute)",0,0,0,0,0,0,0.25]
["Herbicides","Pays de la Loire","Melon",0,0,0.28000000000000003,0.28999999999999998,0.32,0.36,0.87]
["Herbicides","Pays de la Loire","Poireau",0,0,0.35,0.46,0.85,0.91,0.91]
["Herbicides","Pays de la Loire","Salade",0,0,0.13,0.27,0.46,0.54,0.72]
["Herbicides","Pays de la Loire","Tomate",0,0,0,0,0,0,0]
["Herbicides","Bretagne","Carotte",0.8,1.34,1.7,2.16,2.44,2.71,2.87]
["Herbicides","Bretagne","Chou fleur, Brocoli à jets et Romanesco",0,0,0,0,0.46,0.63,0.95]
["Herbicides","Bretagne","Autres choux (hors chou à choucroute)",0,0,0,0.14000000000000001,0.39,0.55000000000000004,0.8]
["Herbicides","Bretagne","Poireau",0,0,0,0.6,0.84,0.86,1.1299999999999999]
["Herbicides","Bretagne","Salade",0,0,0.72,1,1,1,1]
["Herbicides","Bretagne","Tomate",0,0,0,0,0,0,0]
["Herbicides","Poitou-Charentes","Melon",0,0,0.25,0.53,0.72,0.87,0.87]
["Herbicides","Aquitaine","Carotte",1.88,2.5099999999999998,2.97,3.37,3.54,3.6,3.7]
["Herbicides","Aquitaine","Autres choux (hors chou à choucroute)",0,0,0.14000000000000001,0.28999999999999998,0.37,0.75,0.88]
["Herbicides","Aquitaine","Fraise",0,0,0.06,0.14000000000000001,0.18,0.25,0.35]
["Herbicides","Aquitaine","Melon",0,0,0,0,0,0.05,0.18]
["Herbicides","Aquitaine","Poireau",0,0,0,0.17,0.5,1.31,1.83]
["Herbicides","Aquitaine","Salade",0,0,0,0,0,0.2,0.63]
["Herbicides","Aquitaine","Tomate",0,0.51,0.51,0.51,0.55000000000000004,1.29,1.88]
["Herbicides","Midi-Pyrénées","Melon",0,0,0,0,0,0,0]
["Herbicides","Rhône-Alpes","Autres choux (hors chou à choucroute)",0,0,0,0,0.7,0.79,0.9]
["Herbicides","Rhône-Alpes","Fraise",0,0,0,0,0.12,0.27,0.53]
["Herbicides","Rhône-Alpes","Poireau",0,0,0.22,0.63,0.73,0.76,0.89]
["Herbicides","Rhône-Alpes","Salade",0,0,0,0.27,0.62,0.68,0.79]
["Herbicides","Rhône-Alpes","Tomate",0,0,0,0.25,0.6,1.1100000000000001,1.5]
["Herbicides","Languedoc-Roussillon","Melon",0,0,0,0,0,0,0]
["Herbicides","Languedoc-Roussillon","Salade",0,0,0,0,0,0,0.49]
["Herbicides","Languedoc-Roussillon","Tomate",0,0,0,0,0,0,0.5]
["Herbicides","Provence-Alpes-Côte d'Azur","Chou fleur, Brocoli à jets et Romanesco",0,0.5,0.5,0.78,1.03,1.08,1.25]
["Herbicides","Provence-Alpes-Côte d'Azur","Autres choux (hors chou à choucroute)",0,0,0,0.38,0.38,0.38,0.5]
["Herbicides","Provence-Alpes-Côte d'Azur","Fraise",0,0,0,0,0,0,0]
["Herbicides","Provence-Alpes-Côte d'Azur","Melon",0,0,0,0,0,0,0]
["Herbicides","Provence-Alpes-Côte d'Azur","Salade",0,0,0,0,0,0,0]
["Herbicides","Provence-Alpes-Côte d'Azur","Tomate",0,0,0.5,0.87,0.93,1.18,1.5]
["Herbicides","France métropolitaine","Carotte",1.02,1.7,2.08,2.38,2.62,3.01,3.4]
["Herbicides","France métropolitaine","Chou fleur, Brocoli à jets et Romanesco",0,0,0,0,0.5,0.75,0.97]
["Herbicides","France métropolitaine","Autres choux (hors chou à choucroute)",0,0,0,0.35,0.39,0.7,1.05]
["Herbicides","France métropolitaine","Fraise",0,0,0,0,0.08,0.16,0.32]
["Herbicides","France métropolitaine","Melon",0,0,0,0,0,0,0.18]
["Herbicides","France métropolitaine","Poireau",0,0.15,0.41,0.61,0.82,0.96,1.1399999999999999]
["Herbicides","France métropolitaine","Salade",0,0,0,0.18,0.27,0.54,0.7]
["Herbicides","France métropolitaine","Tomate",0,0,0,0,0.93,1.01,1.5]
["Hors herbicides (ancienne méthode traitement de semences)","Ile-de-France","Salade",0.5,1.01,1.67,2.34,2.34,2.66,3.1]
["Hors herbicides (ancienne méthode traitement de semences)","Champagne-Ardenne","Carotte",1.21,1.95,3.15,4.25,5,6.45,7.65]
["Hors herbicides (ancienne méthode traitement de semences)","Picardie","Carotte",0.6,1.46,1.75,2.38,2.85,3.34,3.92]
["Hors herbicides (ancienne méthode traitement de semences)","Centre","Carotte",1.35,1.69,2.38,2.93,3.4,3.75,4.4000000000000004]
["Hors herbicides (ancienne méthode traitement de semences)","Centre","Poireau",3,4.78,6.18,6.84,7.9,8.89,12.06]
["Hors herbicides (ancienne méthode traitement de semences)","Centre","Salade",3.25,3.25,3.46,3.59,3.75,4.05,4.75]
["Hors herbicides (ancienne méthode traitement de semences)","Basse-Normandie","Carotte",3.72,5.81,7.36,8.4700000000000006,9.77,10.28,10.79]
["Hors herbicides (ancienne méthode traitement de semences)","Basse-Normandie","Chou fleur, Brocoli à jets et Romanesco",1,1,1.92,2.21,2.58,3.31,3.63]
["Hors herbicides (ancienne méthode traitement de semences)","Basse-Normandie","Autres choux (hors chou à choucroute)",1.74,2.83,3.82,4.3,4.87,5.01,5.82]
["Hors herbicides (ancienne méthode traitement de semences)","Basse-Normandie","Poireau",3.69,6.11,7.39,8.15,9.2100000000000009,10.19,11.07]
["Hors herbicides (ancienne méthode traitement de semences)","Basse-Normandie","Salade",1.49,1.5,1.9,2.34,3.11,4.47,5.72]
["Hors herbicides (ancienne méthode traitement de semences)","Nord-Pas-de-Calais","Carotte",0,1.29,1.56,2.36,3.33,4.03,4.78]
["Hors herbicides (ancienne méthode traitement de semences)","Nord-Pas-de-Calais","Chou fleur, Brocoli à jets et Romanesco",1.56,2.2400000000000002,2.73,3.13,3.79,4.2699999999999996,5.13]
["Hors herbicides (ancienne méthode traitement de semences)","Nord-Pas-de-Calais","Autres choux (hors chou à choucroute)",3.51,4.79,6.03,7.02,8.74,9.77,11.56]
["Hors herbicides (ancienne méthode traitement de semences)","Nord-Pas-de-Calais","Poireau",0.88,2.2999999999999998,2.56,3.57,5.4,7,7.81]
["Hors herbicides (ancienne méthode traitement de semences)","Pays de la Loire","Carotte",0.85,1.69,2.25,2.75,3.4,3.96,5.16]
["Hors herbicides (ancienne méthode traitement de semences)","Pays de la Loire","Autres choux (hors chou à choucroute)",0.83,0.83,2.97,2.97,3.45,3.6,3.87]
["Hors herbicides (ancienne méthode traitement de semences)","Pays de la Loire","Melon",2.5499999999999998,3.36,3.98,4.71,4.9000000000000004,5.88,6.39]
["Hors herbicides (ancienne méthode traitement de semences)","Pays de la Loire","Poireau",0,1.7,2.27,2.91,4.7699999999999996,5.5,6.81]
["Hors herbicides (ancienne méthode traitement de semences)","Pays de la Loire","Salade",1,1,1.18,1.43,1.65,1.87,2]
["Hors herbicides (ancienne méthode traitement de semences)","Pays de la Loire","Tomate",0.33,0.86,1,1.84,2.34,3.5,4.17]
["Hors herbicides (ancienne méthode traitement de semences)","Bretagne","Carotte",1.49,2.89,3.9,4.88,5.55,5.9,6.75]
["Hors herbicides (ancienne méthode traitement de semences)","Bretagne","Chou fleur, Brocoli à jets et Romanesco",1,1,1.42,1.95,2,2.2599999999999998,2.67]
["Hors herbicides (ancienne méthode traitement de semences)","Bretagne","Autres choux (hors chou à choucroute)",0.5,1,1.6,2,2,2.44,3.4]
["Hors herbicides (ancienne méthode traitement de semences)","Bretagne","Poireau",0,0,1,2.67,3.8,4.59,6.82]
["Hors herbicides (ancienne méthode traitement de semences)","Bretagne","Salade",1,1.25,1.94,3.18,3.6,4.5,5.3]
["Hors herbicides (ancienne méthode traitement de semences)","Bretagne","Tomate",0,0.13,0.6,0.78,1.71,2.59,2.59]
["Hors herbicides (ancienne méthode traitement de semences)","Poitou-Charentes","Melon",2.11,3.37,4.3,4.5199999999999996,5.09,5.54,6.03]
["Hors herbicides (ancienne méthode traitement de semences)","Aquitaine","Carotte",1.47,1.89,2.67,3.66,4.45,4.97,5.19]
["Hors herbicides (ancienne méthode traitement de semences)","Aquitaine","Autres choux (hors chou à choucroute)",0.9,0.9,1.47,2.4700000000000002,2.79,3.83,5.46]
["Hors herbicides (ancienne méthode traitement de semences)","Aquitaine","Fraise",1.52,1.95,2.41,2.56,3.6,4.76,5.32]
["Hors herbicides (ancienne méthode traitement de semences)","Aquitaine","Melon",1.88,2.91,3.39,3.92,5.27,6.69,7.29]
["Hors herbicides (ancienne méthode traitement de semences)","Aquitaine","Poireau",0.95,1,1.5,2.83,2.83,4.93,7.83]
["Hors herbicides (ancienne méthode traitement de semences)","Aquitaine","Salade",0.4,0.5,0.9,1.86,1.91,3,3.09]
["Hors herbicides (ancienne méthode traitement de semences)","Aquitaine","Tomate",3.5,6.59,8.19,9.61,13.3,19.34,20.11]
["Hors herbicides (ancienne méthode traitement de semences)","Midi-Pyrénées","Melon",3.95,4.68,5.55,6.47,7.49,7.6,8.64]
["Hors herbicides (ancienne méthode traitement de semences)","Rhône-Alpes","Autres choux (hors chou à choucroute)",2.78,3.16,4.37,5.34,6.01,7.56,7.6]
["Hors herbicides (ancienne méthode traitement de semences)","Rhône-Alpes","Fraise",0.5,1.48,2.79,4.03,5.46,6.35,8.56]
["Hors herbicides (ancienne méthode traitement de semences)","Rhône-Alpes","Poireau",2.17,3.3,4.5,7.95,9.3699999999999992,11.56,12.4]
["Hors herbicides (ancienne méthode traitement de semences)","Rhône-Alpes","Salade",1.97,2.85,3.22,3.48,4.1100000000000003,7.87,9.5]
["Hors herbicides (ancienne méthode traitement de semences)","Rhône-Alpes","Tomate",0.5,1.42,3.15,4.3099999999999996,8.2200000000000006,9.59,12.96]
["Hors herbicides (ancienne méthode traitement de semences)","Languedoc-Roussillon","Melon",2.97,3.65,4.63,6.05,6.34,6.46,7.64]
["Hors herbicides (ancienne méthode traitement de semences)","Languedoc-Roussillon","Salade",0.4,1.5,3.07,3.82,5.26,5.76,6.93]
["Hors herbicides (ancienne méthode traitement de semences)","Languedoc-Roussillon","Tomate",1.25,4.91,8.36,9.44,10.06,10.06,12.32]
["Hors herbicides (ancienne méthode traitement de semences)","Provence-Alpes-Côte d'Azur","Chou fleur, Brocoli à jets et Romanesco",3.28,3.53,3.95,4.03,4.03,4.34,4.46]
["Hors herbicides (ancienne méthode traitement de semences)","Provence-Alpes-Côte d'Azur","Autres choux (hors chou à choucroute)",0.5,1.95,2,2,2.6,3.2,3.82]
["Hors herbicides (ancienne méthode traitement de semences)","Provence-Alpes-Côte d'Azur","Fraise",0,0,1.3,2,3.08,5,5.94]
["Hors herbicides (ancienne méthode traitement de semences)","Provence-Alpes-Côte d'Azur","Melon",2,2.94,3.5,4,4.4400000000000004,4.7,5.67]
["Hors herbicides (ancienne méthode traitement de semences)","Provence-Alpes-Côte d'Azur","Salade",0.8,2.54,4.13,4.47,5.14,6.18,7.11]
["Hors herbicides (ancienne méthode traitement de semences)","Provence-Alpes-Côte d'Azur","Tomate",1.92,4.16,7.17,7.76,9.6300000000000008,11.42,12.91]
["Hors herbicides (ancienne méthode traitement de semences)","France métropolitaine","Carotte",1.33,2.06,2.82,3.78,4.5599999999999996,5.13,5.89]
["Hors herbicides (ancienne méthode traitement de semences)","France métropolitaine","Chou fleur, Brocoli à jets et Romanesco",1,1,1.42,2,2,2.46,2.84]
["Hors herbicides (ancienne méthode traitement de semences)","France métropolitaine","Autres choux (hors chou à choucroute)",0.83,1.5,2.42,3,3.87,4.3600000000000003,5.66]
["Hors herbicides (ancienne méthode traitement de semences)","France métropolitaine","Fraise",0.7,1.93,2.2000000000000002,2.66,4.01,5.14,5.86]
["Hors herbicides (ancienne méthode traitement de semences)","France métropolitaine","Melon",2.5499999999999998,3.69,4.29,4.78,5.59,6.15,7.1]
["Hors herbicides (ancienne méthode traitement de semences)","France métropolitaine","Poireau",0.75,2.2999999999999998,3.92,5.4,6.84,8.2200000000000006,9.93]
["Hors herbicides (ancienne méthode traitement de semences)","France métropolitaine","Salade",1,1,1.33,1.71,2,2.5499999999999998,3.84]
["Hors herbicides (ancienne méthode traitement de semences)","France métropolitaine","Tomate",1.03,3.13,5.14,7.65,9.06,11.23,13.34]